Body Name,Body,Service Label,Service Code,Service Division Label,Service Division Code,Expenditure Category,Expenditure Code,CIPFA Detailed Expenditure Type,CIPFA Detailed Expenditure Code,Date,Transaction Number,CC 43 TBM Section,CCN 43 TBM Section,Net Amount,Capital and Revenue,Creditor Name
Brighton & Hove City Council,http://statistics.data.gov.uk/id/local-authority/00ML,Children`s & Education Serv,BVAEDU,Child Srvcs - Fostering,FLF,Third Party Payments,F,Other Establishments,EM,21/09/2016,PAY00897035,TOMA,Tourism and Marketing,350.00,Revenue,2Upfront Design
Brighton & Hove City Council,http://statistics.data.gov.uk/id/local-authority/00ML,Housing General Fund,BVAHOG,Homelessness,HML,Premises Related,C,Rents Payable,EM,23/09/2016,PAY00897851,VENU,Venues,350.00,Revenue,2Upfront Design
Brighton & Hove City Council,http://statistics.data.gov.uk/id/local-authority/00ML,Housing General Fund,BVAHOG,Homelessness,HML,Premises Related,C,Rents Payable,EM,28/09/2016,PAY00898822,RPMU,Royal Pavilion and Museums,350.00,Revenue,2Upfront Design
Brighton & Hove City Council,http://statistics.data.gov.uk/id/local-authority/00ML,Housing General Fund,BVAHOG,Homelessness,HML,Premises Related,C,Rents Payable,EM,28/09/2016,PAY00898979,PARK,Parking,2073.30,Revenue,3C Payment UK Ltd
Brighton & Hove City Council,http://statistics.data.gov.uk/id/local-authority/00ML,Children`s & Education Serv,BVAEDU,Child Srvcs - Fostering,FLF,Third Party Payments,F,Other Establishments,CC,30/09/2016,PAY00900140,ASSA,Hostel Accommodation,6000.00,Revenue,61 St Aubyns Ltd
Brighton & Hove City Council,http://statistics.data.gov.uk/id/local-authority/00ML,Children`s & Education Serv,BVAEDU,Child Srvcs Adoption,FAA,Third Party Payments,F,Other Establishments,EF,28/09/2016,PAY00899121,HIGH,Highways,2337.50,Revenue,6-10 Traffic Management Limited
Brighton & Hove City Council,http://statistics.data.gov.uk/id/local-authority/00ML,Children`s & Education Serv,BVAEDU,Child Srvcs - Fostering,FLF,Third Party Payments,F,Other Establishments,CA,07/09/2016,PAY00893080,VENU,Venues,1980.00,Revenue,A G M Floors Ltd
Brighton & Hove City Council,http://statistics.data.gov.uk/id/local-authority/00ML,Children`s & Education Serv,BVAEDU,Child Srvcs - Fostering,FLF,Third Party Payments,F,Other Establishments,GD,09/09/2016,PAY00894489,FAMP,Families\Prevention,708.10,Revenue,A M Counselling
Brighton & Hove City Council,http://statistics.data.gov.uk/id/local-authority/00ML,Children`s & Education Serv,BVAEDU,Child Srvcs - Fostering,FLF,Third Party Payments,F,Other Establishments,FH,07/09/2016,PAY00893113,LDIS,Learning Disabilities,690.98,Revenue,A TAD Ltd t/a Carewatch (Brighton & Hove)
Brighton & Hove City Council,http://statistics.data.gov.uk/id/local-authority/00ML,Children`s & Education Serv,BVAEDU,Child Srvcs - Fostering,FLF,Third Party Payments,F,Other Establishments,MB,07/09/2016,PAY00893113,COGN,Memory Cognition Support,-326.00,Revenue,A TAD Ltd t/a Carewatch (Brighton & Hove)
Brighton & Hove City Council,http://statistics.data.gov.uk/id/local-authority/00ML,Planning and Development,BVAPLA,Economic Development,ECD,Supplies and Services,E,Grants n Subscriptions,FH,07/09/2016,PAY00893113,COGN,Memory Cognition Support,1681.60,Revenue,A TAD Ltd t/a Carewatch (Brighton & Hove)
Brighton & Hove City Council,http://statistics.data.gov.uk/id/local-authority/00ML,Children`s & Education Serv,BVAEDU,Ed Mgmt and Support Services,EMG,Supplies and Services,E,Services,MB,07/09/2016,PAY00893113,MENH,Mental Health Support,-36.00,Revenue,A TAD Ltd t/a Carewatch (Brighton & Hove)
Brighton & Hove City Council,http://statistics.data.gov.uk/id/local-authority/00ML,Housing General Fund,BVAHOG,Homelessness,HML,Premises Related,C,Rents Payable,FH,07/09/2016,PAY00893113,MENH,Mental Health Support,730.10,Revenue,A TAD Ltd t/a Carewatch (Brighton & Hove)
Brighton & Hove City Council,http://statistics.data.gov.uk/id/local-authority/00ML,Housing General Fund,BVAHOG,Homelessness,HML,Premises Related,C,Rents Payable,MB,07/09/2016,PAY00893113,PHYS,Physical Support,-2418.00,Revenue,A TAD Ltd t/a Carewatch (Brighton & Hove)
Brighton & Hove City Council,http://statistics.data.gov.uk/id/local-authority/00ML,Central Support and Overheads,BVACEN,Support Services (SSC),PPT,Supplies and Services,E,Grants n Subscriptions,FH,07/09/2016,PAY00893113,PHYS,Physical Support,13650.18,Revenue,A TAD Ltd t/a Carewatch (Brighton & Hove)
Brighton & Hove City Council,http://statistics.data.gov.uk/id/local-authority/00ML,Central Services to the Public,BVACEN,Elections,ELE,Supplies and Services,E,Communications n Computing,FH,09/09/2016,PAY00893962,LDIS,Learning Disabilities,306.44,Revenue,A TAD Ltd t/a Carewatch (Brighton & Hove)
Brighton & Hove City Council,http://statistics.data.gov.uk/id/local-authority/00ML,Central Support and Overheads,BVACEN,Holding Accounts,PPH,Supplies and Services,E,Communications n Computing,MB,09/09/2016,PAY00893962,COGN,Memory Cognition Support,-445.00,Revenue,A TAD Ltd t/a Carewatch (Brighton & Hove)
Brighton & Hove City Council,http://statistics.data.gov.uk/id/local-authority/00ML,Planning and Development,BVAPLA,Environmental Initiatives,EVN,Supplies and Services,E,Communications n Computing,FH,09/09/2016,PAY00893962,COGN,Memory Cognition Support,1876.84,Revenue,A TAD Ltd t/a Carewatch (Brighton & Hove)
Brighton & Hove City Council,http://statistics.data.gov.uk/id/local-authority/00ML,Housing General Fund,BVAHOG,Homelessness,HML,Premises Related,C,Rents Payable,MB,09/09/2016,PAY00893962,MENH,Mental Health Support,-36.00,Revenue,A TAD Ltd t/a Carewatch (Brighton & Hove)
Brighton & Hove City Council,http://statistics.data.gov.uk/id/local-authority/00ML,Environment & Regulatory Serv,BVAERS,Management Services (DEC),MGT,Transport Related,D,Direct Transport Costs,FH,09/09/2016,PAY00893962,MENH,Mental Health Support,707.46,Revenue,A TAD Ltd t/a Carewatch (Brighton & Hove)
Brighton & Hove City Council,http://statistics.data.gov.uk/id/local-authority/00ML,Planning and Development,BVAPLA,Economic Development,ECD,Supplies and Services,E,Grants n Subscriptions,MB,09/09/2016,PAY00893962,PHYS,Physical Support,-2495.00,Revenue,A TAD Ltd t/a Carewatch (Brighton & Hove)
Brighton & Hove City Council,http://statistics.data.gov.uk/id/local-authority/00ML,Central Support and Overheads,BVACEN,Holding Accounts,PPH,Transport Related,D,Direct Transport Costs,FH,09/09/2016,PAY00893962,PHYS,Physical Support,13847.53,Revenue,A TAD Ltd t/a Carewatch (Brighton & Hove)
Brighton & Hove City Council,http://statistics.data.gov.uk/id/local-authority/00ML,Cultural and Related Serv,BVACUL,Management Services (DEC),MGT,Transport Related,D,Direct Transport Costs,FH,09/09/2016,PAY00893962,SORY,Sensory Support,23.10,Revenue,A TAD Ltd t/a Carewatch (Brighton & Hove)
Brighton & Hove City Council,http://statistics.data.gov.uk/id/local-authority/00ML,Planning and Development,BVAPLA,Economic Development,ECD,Supplies and Services,E,Grants n Subscriptions,FH,23/09/2016,PAY00898047,LDIS,Learning Disabilities,801.53,Revenue,A TAD Ltd t/a Carewatch (Brighton & Hove)
Brighton & Hove City Council,http://statistics.data.gov.uk/id/local-authority/00ML,Environment & Regulatory Serv,BVAERS,Management Services (DEC),MGT,Transport Related,D,Direct Transport Costs,MB,23/09/2016,PAY00898047,COGN,Memory Cognition Support,-890.00,Revenue,A TAD Ltd t/a Carewatch (Brighton & Hove)
Brighton & Hove City Council,http://statistics.data.gov.uk/id/local-authority/00ML,Planning and Development,BVAPLA,Economic Development,ECD,Supplies and Services,E,Grants n Subscriptions,FH,23/09/2016,PAY00898047,COGN,Memory Cognition Support,3892.96,Revenue,A TAD Ltd t/a Carewatch (Brighton & Hove)
Brighton & Hove City Council,http://statistics.data.gov.uk/id/local-authority/00ML,Adult Social Care,BVASOC,ASC Mental Health Support,MHP,Customer n Client Receipts,M,Fees n Charges,MB,23/09/2016,PAY00898047,MENH,Mental Health Support,-72.00,Revenue,A TAD Ltd t/a Carewatch (Brighton & Hove)
Brighton & Hove City Council,http://statistics.data.gov.uk/id/local-authority/00ML,Adult Social Care,BVASOC,ASC Mental Health Support,MHP,Third Party Payments,F,Other Establishments,FH,23/09/2016,PAY00898047,MENH,Mental Health Support,1357.84,Revenue,A TAD Ltd t/a Carewatch (Brighton & Hove)
Brighton & Hove City Council,http://statistics.data.gov.uk/id/local-authority/00ML,Adult Social Care,BVASOC,ASC Physical Support,PHY,Customer n Client Receipts,M,Fees n Charges,MB,23/09/2016,PAY00898047,PHYS,Physical Support,-4714.00,Revenue,A TAD Ltd t/a Carewatch (Brighton & Hove)
Brighton & Hove City Council,http://statistics.data.gov.uk/id/local-authority/00ML,Adult Social Care,BVASOC,ASC Physical Support,PHY,Third Party Payments,F,Other Establishments,FH,23/09/2016,PAY00898047,PHYS,Physical Support,29136.02,Revenue,A TAD Ltd t/a Carewatch (Brighton & Hove)
Brighton & Hove City Council,http://statistics.data.gov.uk/id/local-authority/00ML,Housing General Fund,BVAHOG,Homelessness,HML,Premises Related,C,Rents Payable,FH,30/09/2016,PAY00899754,LDIS,Learning Disabilities,190.27,Revenue,A TAD Ltd t/a Carewatch (Brighton & Hove)
Brighton & Hove City Council,http://statistics.data.gov.uk/id/local-authority/00ML,Housing General Fund,BVAHOG,Homelessness,HML,Premises Related,C,Rents Payable,MB,30/09/2016,PAY00899754,COGN,Memory Cognition Support,-408.00,Revenue,A TAD Ltd t/a Carewatch (Brighton & Hove)
Brighton & Hove City Council,http://statistics.data.gov.uk/id/local-authority/00ML,Housing General Fund,BVAHOG,Homelessness,HML,Premises Related,C,Rents Payable,FH,30/09/2016,PAY00899754,COGN,Memory Cognition Support,1980.72,Revenue,A TAD Ltd t/a Carewatch (Brighton & Hove)
Brighton & Hove City Council,http://statistics.data.gov.uk/id/local-authority/00ML,Adult Social Care,BVASOC,S Svcs Other Adult Services,ADT,Indirect Employees,B,Training,MB,30/09/2016,PAY00899754,MENH,Mental Health Support,-15.00,Revenue,A TAD Ltd t/a Carewatch (Brighton & Hove)
Brighton & Hove City Council,http://statistics.data.gov.uk/id/local-authority/00ML,Central Support and Overheads,BVACEN,Support Services (SSC),PPT,Indirect Employees,B,Training,FH,30/09/2016,PAY00899754,MENH,Mental Health Support,641.18,Revenue,A TAD Ltd t/a Carewatch (Brighton & Hove)
Brighton & Hove City Council,http://statistics.data.gov.uk/id/local-authority/00ML,Housing General Fund,BVAHOG,Homelessness,HML,Premises Related,C,Rents Payable,MB,30/09/2016,PAY00899754,PHYS,Physical Support,-3179.46,Revenue,A TAD Ltd t/a Carewatch (Brighton & Hove)
Brighton & Hove City Council,http://statistics.data.gov.uk/id/local-authority/00ML,Housing General Fund,BVAHOG,Homelessness,HML,Premises Related,C,Rents Payable,FH,30/09/2016,PAY00899754,PHYS,Physical Support,17936.56,Revenue,A TAD Ltd t/a Carewatch (Brighton & Hove)
Brighton & Hove City Council,http://statistics.data.gov.uk/id/local-authority/00ML,Housing General Fund,BVAHOG,Homelessness,HML,Premises Related,C,Rents Payable,FH,30/09/2016,PAY00899754,SORY,Sensory Support,23.10,Revenue,A TAD Ltd t/a Carewatch (Brighton & Hove)
Brighton & Hove City Council,http://statistics.data.gov.uk/id/local-authority/00ML,Planning and Development,BVAPLA,Economic Development,ECD,Supplies and Services,E,Grants n Subscriptions,MB,23/09/2016,PAY00898085,LDIS,Learning Disabilities,-321.80,Revenue,Abbey Care Group Ltd-Saxon Court
Brighton & Hove City Council,http://statistics.data.gov.uk/id/local-authority/00ML,Adult Social Care,BVASOC,ASC Memory Cognition Support,MEM,Customer n Client Receipts,M,Fees n Charges,FH,23/09/2016,PAY00898085,LDIS,Learning Disabilities,6296.60,Revenue,Abbey Care Group Ltd-Saxon Court
Brighton & Hove City Council,http://statistics.data.gov.uk/id/local-authority/00ML,Adult Social Care,BVASOC,ASC Memory Cognition Support,MEM,Third Party Payments,F,Other Establishments,EF,28/09/2016,PAY00898783,CHIC,Children In Care,250.00,Revenue,ABC Magazine Sussex
Brighton & Hove City Council,http://statistics.data.gov.uk/id/local-authority/00ML,Central Support and Overheads,BVACEN,Support Services (SSC),PPT,Third Party Payments,F,Other Establishments,JA,09/09/2016,PAY00893820,CFCS,Capital Financing Costs,9651.68,Revenue,Aberdeen Asset Investments Ltd
Brighton & Hove City Council,http://statistics.data.gov.uk/id/local-authority/00ML,Non-BHC Organisations,BVANON,Trusts,TRT,Supplies and Services,E,Miscellaneous Expenses,FH,14/09/2016,PAY00894945,PHYS,Physical Support,3720.00,Revenue,Abi House
Brighton & Hove City Council,http://statistics.data.gov.uk/id/local-authority/00ML,Adult Social Care,BVASOC,ASC Learning Disabilities,ALD,Customer n Client Receipts,M,Fees n Charges,MB,23/09/2016,PAY00898209,LDIS,Learning Disabilities,-400.60,Revenue,Abi House
Brighton & Hove City Council,http://statistics.data.gov.uk/id/local-authority/00ML,Adult Social Care,BVASOC,ASC Learning Disabilities,ALD,Third Party Payments,F,Other Establishments,FH,23/09/2016,PAY00898209,LDIS,Learning Disabilities,5220.20,Revenue,Abi House
Brighton & Hove City Council,http://statistics.data.gov.uk/id/local-authority/00ML,Non I&E,BVANON,CAP Education Services,4ED,Plant Machinery n Equipment,PE2,Plant Machinery n Equipment,PBL5,14/09/2016,PAY00894950,HPAI,Property & Investment,1600.00,Capital,ABIR Architects Ltd
Brighton & Hove City Council,http://statistics.data.gov.uk/id/local-authority/00ML,Housing General Fund,BVAHOG,Homelessness,HML,Premises Related,C,Rents Payable,EA,07/09/2016,PAY00893493,HPAI,Property & Investment,7210.50,Revenue,Abmec Ltd T/A Abbamechatronics
Brighton & Hove City Council,http://statistics.data.gov.uk/id/local-authority/00ML,Housing General Fund,BVAHOG,Homelessness,HML,Premises Related,C,Rents Payable,PBL5,07/09/2016,PAY00893493,HPAI,Property & Investment,1495.41,Capital,Abmec Ltd T/A Abbamechatronics
Brighton & Hove City Council,http://statistics.data.gov.uk/id/local-authority/00ML,Central Support and Overheads,BVACEN,Support Services (SSC),PPT,Premises Related,C,Cleaning n Domestic Supps,EA,14/09/2016,PAY00895261,HPAI,Property & Investment,2456.86,Revenue,Abmec Ltd T/A Abbamechatronics
Brighton & Hove City Council,http://statistics.data.gov.uk/id/local-authority/00ML,Housing Revenue Account,BVAHOU,Hsing Management - HRA,HGM,Premises Related,C,Repair Maint n Alterations,PBL5,23/09/2016,PAY00898562,HPAI,Property & Investment,386.83,Capital,Abmec Ltd T/A Abbamechatronics
Brighton & Hove City Council,http://statistics.data.gov.uk/id/local-authority/00ML,Children`s & Education Serv,BVAEDU,Management Services (DEC),MGT,Supplies and Services,E,Services,MB,14/09/2016,PAY00894850,SORY,Sensory Support,-224.00,Revenue,About Me Care & Support
Brighton & Hove City Council,http://statistics.data.gov.uk/id/local-authority/00ML,Housing General Fund,BVAHOG,Homelessness,HML,Premises Related,C,Rents Payable,FH,14/09/2016,PAY00894850,SORY,Sensory Support,717.85,Revenue,About Me Care & Support
Brighton & Hove City Council,http://statistics.data.gov.uk/id/local-authority/00ML,Children`s & Education Serv,BVAEDU,Child Srvcs - Other Yth Jstce,FYX,Supplies and Services,E,Miscellaneous Expenses,EA,23/09/2016,PAY00897809,RPMU,Royal Pavilion and Museums,1602.20,Revenue,Absolute Museum & Gallery Products Ltd
Brighton & Hove City Council,http://statistics.data.gov.uk/id/local-authority/00ML,Housing General Fund,BVAHOG,Homelessness,HML,Premises Related,C,Rents Payable,ED,14/09/2016,PAY00895180,HIII,Income Involvement Improvement,224.44,Revenue,ACB Ltd
Brighton & Hove City Council,http://statistics.data.gov.uk/id/local-authority/00ML,Housing General Fund,BVAHOG,Homelessness,HML,Supplies and Services,E,Services,FJ,14/09/2016,PAY00894775,CICL,City Clean,3860.00,Revenue,Accelerated Mailing & Marketing
Brighton & Hove City Council,http://statistics.data.gov.uk/id/local-authority/00ML,Cultural and Related Serv,BVACUL,Tourism,TRM,Supplies and Services,E,Miscellaneous Expenses,PBL5,28/09/2016,PAY00899167,HPAI,Property & Investment,5775.00,Capital,Access Automation Ltd
Brighton & Hove City Council,http://statistics.data.gov.uk/id/local-authority/00ML,Adult Social Care,BVASOC,ASC Physical Support,PHY,Supplies and Services,E,Catering,DG,07/09/2016,PAY00893059,OEDS,Other Education Support,1380.00,Revenue,Ace Travel Ltd
Brighton & Hove City Council,http://statistics.data.gov.uk/id/local-authority/00ML,Housing General Fund,BVAHOG,Homelessness,HML,Supplies and Services,E,Catering,EA,23/09/2016,PAY00898478,RPMU,Royal Pavilion and Museums,231.80,Revenue,Acopia Group Ltd
Brighton & Hove City Council,http://statistics.data.gov.uk/id/local-authority/00ML,Planning and Development,BVAPLA,Economic Development,ECD,Supplies and Services,E,Grants n Subscriptions,MB,23/09/2016,PAY00898041,LDIS,Learning Disabilities,-1839.76,Revenue,Acorn (Watford) Ltd
Brighton & Hove City Council,http://statistics.data.gov.uk/id/local-authority/00ML,Planning and Development,BVAPLA,Economic Development,ECD,Supplies and Services,E,Grants n Subscriptions,FH,23/09/2016,PAY00898041,LDIS,Learning Disabilities,15329.84,Revenue,Acorn (Watford) Ltd
Brighton & Hove City Council,http://statistics.data.gov.uk/id/local-authority/00ML,Environment & Regulatory Serv,BVAERS,Court Services,CRT,Supplies and Services,E,Equip't Furniture n Materials,CH,09/09/2016,PAY00894171,PROP,Property and Design,1490.94,Revenue,Acorn Environmental
Brighton & Hove City Council,http://statistics.data.gov.uk/id/local-authority/00ML,Planning and Development,BVAPLA,Economic Development,ECD,Supplies and Services,E,Grants n Subscriptions,CH,28/09/2016,PAY00899085,PROP,Property and Design,796.49,Revenue,Acorn Environmental
Brighton & Hove City Council,http://statistics.data.gov.uk/id/local-authority/00ML,Central Support and Overheads,BVACEN,Support Services (SSC),PPT,Supplies and Services,E,Communications n Computing,FH,28/09/2016,PAY00899282,AVFM,Agency Placements\VFM,8914.36,Revenue,Acorn Homes Uk Ltd
Brighton & Hove City Council,http://statistics.data.gov.uk/id/local-authority/00ML,Planning and Development,BVAPLA,Economic Development,ECD,Supplies and Services,E,Grants n Subscriptions,EK,07/09/2016,PAY00893118,EYRS,Early Years,59226.31,Revenue,ACPH Ltd T/a Hopscotch Nursery
Brighton & Hove City Council,http://statistics.data.gov.uk/id/local-authority/00ML,Children`s & Education Serv,BVAEDU,Child Srvcs Leaving Care,FAL,Third Party Payments,F,Other Establishments,EK,09/09/2016,PAY00893965,EYRS,Early Years,18223.28,Revenue,ACPH Ltd T/a Hopscotch Nursery
Brighton & Hove City Council,http://statistics.data.gov.uk/id/local-authority/00ML,Children`s & Education Serv,BVAEDU,Child Srvcs Leaving Care,FAL,Transfer Payments,G,Other Transfer Payments,EK,21/09/2016,PAY00897133,EYRS,Early Years,927.00,Revenue,ACPH Ltd T/a Hopscotch Nursery
Brighton & Hove City Council,http://statistics.data.gov.uk/id/local-authority/00ML,Children`s & Education Serv,BVAEDU,Child Srvcs - Fostering,FLF,Third Party Payments,F,Other Establishments,EF,07/09/2016,PAY00893440,ASIT,Assessment and SIT,3578.00,Revenue,Action First iPeople Ltd
Brighton & Hove City Council,http://statistics.data.gov.uk/id/local-authority/00ML,Children`s & Education Serv,BVAEDU,Child Srvcs - Fostering,FLF,Third Party Payments,F,Other Establishments,EF,14/09/2016,PAY00895190,ASIT,Assessment and SIT,295.00,Revenue,Action First iPeople Ltd
Brighton & Hove City Council,http://statistics.data.gov.uk/id/local-authority/00ML,Children`s & Education Serv,BVAEDU,Child Srvcs - Fostering,FLF,Third Party Payments,F,Other Establishments,EF,23/09/2016,PAY00898498,ASIT,Assessment and SIT,1218.00,Revenue,Action First iPeople Ltd
Brighton & Hove City Council,http://statistics.data.gov.uk/id/local-authority/00ML,Children`s & Education Serv,BVAEDU,Child Srvcs Leaving Care,FAL,Third Party Payments,F,Other Establishments,EF,30/09/2016,PAY00900158,ASIT,Assessment and SIT,885.00,Revenue,Action First iPeople Ltd
Brighton & Hove City Council,http://statistics.data.gov.uk/id/local-authority/00ML,Children`s & Education Serv,BVAEDU,Child Srvcs Leaving Care,FAL,Transfer Payments,G,Other Transfer Payments,EK,07/09/2016,PAY00893402,EYRS,Early Years,8309.81,Revenue,ActiveKids Nursery
Brighton & Hove City Council,http://statistics.data.gov.uk/id/local-authority/00ML,Children`s & Education Serv,BVAEDU,Child Srvcs - Fostering,FLF,Third Party Payments,F,Other Establishments,EK,09/09/2016,PAY00894328,EYRS,Early Years,3128.62,Revenue,ActiveKids Nursery
Brighton & Hove City Council,http://statistics.data.gov.uk/id/local-authority/00ML,Children`s & Education Serv,BVAEDU,Child Srvcs Leaving Care,FAL,Third Party Payments,F,Other Establishments,DA,28/09/2016,PAY00899215,CICL,City Clean,327.70,Revenue,Addex Trading
Brighton & Hove City Council,http://statistics.data.gov.uk/id/local-authority/00ML,Children`s & Education Serv,BVAEDU,Child Srvcs Leaving Care,FAL,Transfer Payments,G,Other Transfer Payments,FH,23/09/2016,PAY00898177,PHYS,Physical Support,2889.00,Revenue,Adelaide Healthcare Ltd
Brighton & Hove City Council,http://statistics.data.gov.uk/id/local-authority/00ML,Children`s & Education Serv,BVAEDU,Child Srvcs - Fostering,FLF,Third Party Payments,F,Other Establishments,FH,14/09/2016,PAY00894821,FINS,Financial Services,5193.20,Revenue,Adelaide Nursing Home
Brighton & Hove City Council,http://statistics.data.gov.uk/id/local-authority/00ML,Children`s & Education Serv,BVAEDU,Child Srvcs - Fostering,FLF,Third Party Payments,F,Other Establishments,MB,23/09/2016,PAY00898042,PHYS,Physical Support,-23715.20,Revenue,Adelaide Nursing Home
Brighton & Hove City Council,http://statistics.data.gov.uk/id/local-authority/00ML,Children`s & Education Serv,BVAEDU,Child Srvcs Leaving Care,FAL,Third Party Payments,F,Other Establishments,FH,23/09/2016,PAY00898042,PHYS,Physical Support,37015.96,Revenue,Adelaide Nursing Home
Brighton & Hove City Council,http://statistics.data.gov.uk/id/local-authority/00ML,Children`s & Education Serv,BVAEDU,Child Srvcs Leaving Care,FAL,Transfer Payments,G,Other Transfer Payments,CA,09/09/2016,PAY00894412,PROP,Property and Design,3890.00,Revenue,Adept Power Solutions Ltd
Brighton & Hove City Council,http://statistics.data.gov.uk/id/local-authority/00ML,Children`s & Education Serv,BVAEDU,Child Srvcs - Othr LAC Svcs,FLX,Third Party Payments,F,Other Establishments,MB,21/09/2016,PAY00897415,PHYS,Physical Support,-584.96,Revenue,Adiemus Care t/a Cams Ridge Care Home
Brighton & Hove City Council,http://statistics.data.gov.uk/id/local-authority/00ML,Children`s & Education Serv,BVAEDU,Child Srvcs - Othr LAC Svcs,FLX,Transfer Payments,G,Other Transfer Payments,FH,21/09/2016,PAY00897415,PHYS,Physical Support,3270.62,Revenue,Adiemus Care t/a Cams Ridge Care Home
Brighton & Hove City Council,http://statistics.data.gov.uk/id/local-authority/00ML,Children`s & Education Serv,BVAEDU,Child Srvcs Adoption,FAA,Third Party Payments,F,Other Establishments,EF,23/09/2016,PAY00898575,ASIT,Assessment and SIT,660.00,Revenue,Advance Social Care Services Limited
Brighton & Hove City Council,http://statistics.data.gov.uk/id/local-authority/00ML,Children`s & Education Serv,BVAEDU,Child Srvcs - Fostering,FLF,Third Party Payments,F,Other Establishments,EH,21/09/2016,PAY00896957,LEGS,Legal Services,1112.00,Revenue,Advanced Legal Solutions Ltd
Brighton & Hove City Council,http://statistics.data.gov.uk/id/local-authority/00ML,Children`s & Education Serv,BVAEDU,Child Srvcs - Fostering,FLF,Third Party Payments,F,Other Establishments,BM,28/09/2016,PAY00899294,ORGD,Organisational Development,1250.00,Revenue,Advantage Training Consultancy
Brighton & Hove City Council,http://statistics.data.gov.uk/id/local-authority/00ML,Children`s & Education Serv,BVAEDU,Child Srvcs Leaving Care,FAL,Third Party Payments,F,Other Establishments,PBL5,30/09/2016,PAY00899583,HWEN,Highways Engineering,1163.00,Capital,AECOM Ltd
Brighton & Hove City Council,http://statistics.data.gov.uk/id/local-authority/00ML,Children`s & Education Serv,BVAEDU,Child Srvcs Leaving Care,FAL,Transfer Payments,G,Other Transfer Payments,FH,28/09/2016,PAY00898841,LDIS,Learning Disabilities,14638.59,Revenue,Affinity Sutton Homes Ltd
Brighton & Hove City Council,http://statistics.data.gov.uk/id/local-authority/00ML,Children`s & Education Serv,BVAEDU,Child Srvcs - Fostering,FLF,Third Party Payments,F,Other Establishments,GD,30/09/2016,PAY00900193,CHIC,Children In Care,450.00,Revenue,Affitto Estate Agents
Brighton & Hove City Council,http://statistics.data.gov.uk/id/local-authority/00ML,Children`s & Education Serv,BVAEDU,Child Srvcs Leaving Care,FAL,Third Party Payments,F,Other Establishments,EK,09/09/2016,PAY00893816,CMNY,Communities and Equalities,15000.00,Revenue,AgeUK Brighton & Hove
Brighton & Hove City Council,http://statistics.data.gov.uk/id/local-authority/00ML,Children`s & Education Serv,BVAEDU,Child Srvcs Leaving Care,FAL,Transfer Payments,G,Other Transfer Payments,EF,02/09/2016,PAY00892793,REVS,Revenues and Benefits,1782.34,Revenue,Agilisys Contact Services Ltd
Brighton & Hove City Council,http://statistics.data.gov.uk/id/local-authority/00ML,Children`s & Education Serv,BVAEDU,Child Srvcs Leaving Care,FAL,Third Party Payments,F,Other Establishments,EF,28/09/2016,PAY00899278,REVS,Revenues and Benefits,2591.33,Revenue,Agilisys Contact Services Ltd
Brighton & Hove City Council,http://statistics.data.gov.uk/id/local-authority/00ML,Children`s & Education Serv,BVAEDU,Child Srvcs Leaving Care,FAL,Transfer Payments,G,Other Transfer Payments,MB,07/09/2016,PAY00893051,COGN,Memory Cognition Support,-209.00,Revenue,Agincare UK Ltd
Brighton & Hove City Council,http://statistics.data.gov.uk/id/local-authority/00ML,Children`s & Education Serv,BVAEDU,Child Srvcs - Fostering,FLF,Third Party Payments,F,Other Establishments,FH,07/09/2016,PAY00893051,COGN,Memory Cognition Support,1310.76,Revenue,Agincare UK Ltd
Brighton & Hove City Council,http://statistics.data.gov.uk/id/local-authority/00ML,Children`s & Education Serv,BVAEDU,Child Srvcs - Fostering,FLF,Third Party Payments,F,Other Establishments,FH,07/09/2016,PAY00893051,MENH,Mental Health Support,1066.64,Revenue,Agincare UK Ltd
Brighton & Hove City Council,http://statistics.data.gov.uk/id/local-authority/00ML,Children`s & Education Serv,BVAEDU,Child Srvcs - Fostering,FLF,Third Party Payments,F,Other Establishments,MB,07/09/2016,PAY00893051,PHYS,Physical Support,-2542.84,Revenue,Agincare UK Ltd
Brighton & Hove City Council,http://statistics.data.gov.uk/id/local-authority/00ML,Children`s & Education Serv,BVAEDU,Child Srvcs - Fostering,FLF,Third Party Payments,F,Other Establishments,FH,07/09/2016,PAY00893051,PHYS,Physical Support,21975.66,Revenue,Agincare UK Ltd
Brighton & Hove City Council,http://statistics.data.gov.uk/id/local-authority/00ML,Children`s & Education Serv,BVAEDU,Child Srvcs - Fostering,FLF,Third Party Payments,F,Other Establishments,FH,07/09/2016,PAY00893051,SORY,Sensory Support,125.23,Revenue,Agincare UK Ltd
Brighton & Hove City Council,http://statistics.data.gov.uk/id/local-authority/00ML,Children`s & Education Serv,BVAEDU,Child Srvcs - Fostering,FLF,Third Party Payments,F,Other Establishments,MB,07/09/2016,PAY00893051,SUBM,Substance Misuse Support,-17.00,Revenue,Agincare UK Ltd
Brighton & Hove City Council,http://statistics.data.gov.uk/id/local-authority/00ML,Children`s & Education Serv,BVAEDU,Child Srvcs Leaving Care,FAL,Transfer Payments,G,Other Transfer Payments,FH,07/09/2016,PAY00893051,SUBM,Substance Misuse Support,227.36,Revenue,Agincare UK Ltd
Brighton & Hove City Council,http://statistics.data.gov.uk/id/local-authority/00ML,Children`s & Education Serv,BVAEDU,Child Srvcs - Fostering,FLF,Third Party Payments,F,Other Establishments,MB,21/09/2016,PAY00897052,COGN,Memory Cognition Support,-418.00,Revenue,Agincare UK Ltd
Brighton & Hove City Council,http://statistics.data.gov.uk/id/local-authority/00ML,Children`s & Education Serv,BVAEDU,Child Srvcs - Fostering,FLF,Third Party Payments,F,Other Establishments,FH,21/09/2016,PAY00897052,COGN,Memory Cognition Support,2848.42,Revenue,Agincare UK Ltd
Brighton & Hove City Council,http://statistics.data.gov.uk/id/local-authority/00ML,Children`s & Education Serv,BVAEDU,Child Srvcs - Fostering,FLF,Third Party Payments,F,Other Establishments,FH,21/09/2016,PAY00897052,MENH,Mental Health Support,2318.35,Revenue,Agincare UK Ltd
Brighton & Hove City Council,http://statistics.data.gov.uk/id/local-authority/00ML,Children`s & Education Serv,BVAEDU,Child Srvcs - Fostering,FLF,Third Party Payments,F,Other Establishments,MB,21/09/2016,PAY00897052,PHYS,Physical Support,-5296.91,Revenue,Agincare UK Ltd
Brighton & Hove City Council,http://statistics.data.gov.uk/id/local-authority/00ML,Children`s & Education Serv,BVAEDU,Child Srvcs - Fostering,FLF,Third Party Payments,F,Other Establishments,FH,21/09/2016,PAY00897052,PHYS,Physical Support,36378.04,Revenue,Agincare UK Ltd
Brighton & Hove City Council,http://statistics.data.gov.uk/id/local-authority/00ML,Children`s & Education Serv,BVAEDU,Child Srvcs - Fostering,FLF,Third Party Payments,F,Other Establishments,FH,21/09/2016,PAY00897052,SORY,Sensory Support,248.60,Revenue,Agincare UK Ltd
Brighton & Hove City Council,http://statistics.data.gov.uk/id/local-authority/00ML,Children`s & Education Serv,BVAEDU,Child Srvcs - Fostering,FLF,Third Party Payments,F,Other Establishments,MB,21/09/2016,PAY00897052,SUBM,Substance Misuse Support,-34.00,Revenue,Agincare UK Ltd
Brighton & Hove City Council,http://statistics.data.gov.uk/id/local-authority/00ML,Children`s & Education Serv,BVAEDU,Child Srvcs Leaving Care,FAL,Third Party Payments,F,Other Establishments,FH,21/09/2016,PAY00897052,SUBM,Substance Misuse Support,481.01,Revenue,Agincare UK Ltd
Brighton & Hove City Council,http://statistics.data.gov.uk/id/local-authority/00ML,Children`s & Education Serv,BVAEDU,Child Srvcs Leaving Care,FAL,Transfer Payments,G,Other Transfer Payments,FH,28/09/2016,PAY00898838,PHYS,Physical Support,1330.20,Revenue,Agincare UK Ltd
Brighton & Hove City Council,http://statistics.data.gov.uk/id/local-authority/00ML,Children`s & Education Serv,BVAEDU,Child Srvcs Adoption,FAA,Third Party Payments,F,Other Establishments,CC,14/09/2016,PAY00895255,TAAS,Temp Accom and Allocations,650.00,Revenue,AHJ Holdings Ltd
Brighton & Hove City Council,http://statistics.data.gov.uk/id/local-authority/00ML,Children`s & Education Serv,BVAEDU,Child Srvcs - Fostering,FLF,Third Party Payments,F,Other Establishments,EG,30/09/2016,PAY00899518,RPMU,Royal Pavilion and Museums,1554.00,Revenue,Ahmad Tea Ltd
Brighton & Hove City Council,http://statistics.data.gov.uk/id/local-authority/00ML,Children`s & Education Serv,BVAEDU,Child Srvcs Leaving Care,FAL,Transfer Payments,G,Other Transfer Payments,MB,23/09/2016,PAY00897879,LDIS,Learning Disabilities,-3013.00,Revenue,Aitch Care Homes (London) Ltd
Brighton & Hove City Council,http://statistics.data.gov.uk/id/local-authority/00ML,Children`s & Education Serv,BVAEDU,Child Srvcs - Fostering,FLF,Third Party Payments,F,Other Establishments,FH,23/09/2016,PAY00897879,LDIS,Learning Disabilities,45271.00,Revenue,Aitch Care Homes (London) Ltd
Brighton & Hove City Council,http://statistics.data.gov.uk/id/local-authority/00ML,Children`s & Education Serv,BVAEDU,Child Srvcs - Fostering,FLF,Third Party Payments,F,Other Establishments,MB,07/09/2016,PAY00893431,PHYS,Physical Support,-598.04,Revenue,Akari Care Ltd t/a St Martha`s Care Centre
Brighton & Hove City Council,http://statistics.data.gov.uk/id/local-authority/00ML,Children`s & Education Serv,BVAEDU,Child Srvcs Leaving Care,FAL,Third Party Payments,F,Other Establishments,FH,07/09/2016,PAY00893431,PHYS,Physical Support,1844.00,Revenue,Akari Care Ltd t/a St Martha`s Care Centre
Brighton & Hove City Council,http://statistics.data.gov.uk/id/local-authority/00ML,Children`s & Education Serv,BVAEDU,Child Srvcs Leaving Care,FAL,Transfer Payments,G,Other Transfer Payments,EA,07/09/2016,PAY00893063,RPMU,Royal Pavilion and Museums,357.65,Revenue,AL Younger Ltd t/a Wessex Pictures
Brighton & Hove City Council,http://statistics.data.gov.uk/id/local-authority/00ML,Children`s & Education Serv,BVAEDU,Child Srvcs - Fostering,FLF,Third Party Payments,F,Other Establishments,PBL5,07/09/2016,PAY00893207,SPLE,Sport and Leisure,23010.00,Capital,Alan Keef Ltd
Brighton & Hove City Council,http://statistics.data.gov.uk/id/local-authority/00ML,Children`s & Education Serv,BVAEDU,Child Srvcs Leaving Care,FAL,Third Party Payments,F,Other Establishments,ED,23/09/2016,PAY00897896,PUPO,Public Protection,519.20,Revenue,Aldrington Press Ltd
Brighton & Hove City Council,http://statistics.data.gov.uk/id/local-authority/00ML,Children`s & Education Serv,BVAEDU,Child Srvcs Leaving Care,FAL,Transfer Payments,G,Other Transfer Payments,MB,30/09/2016,PAY00900114,PHYS,Physical Support,-834.00,Revenue,Alina Homecare Ltd
Brighton & Hove City Council,http://statistics.data.gov.uk/id/local-authority/00ML,Children`s & Education Serv,BVAEDU,Child Srvcs Adoption,FAA,Third Party Payments,F,Other Establishments,FH,30/09/2016,PAY00900114,PHYS,Physical Support,10118.80,Revenue,Alina Homecare Ltd
Brighton & Hove City Council,http://statistics.data.gov.uk/id/local-authority/00ML,Children`s & Education Serv,BVAEDU,Child Srvcs - Fostering,FLF,Third Party Payments,F,Other Establishments,MB,30/09/2016,PAY00900231,MENH,Mental Health Support,-400.60,Revenue,Alliance Home Care Ltd
Brighton & Hove City Council,http://statistics.data.gov.uk/id/local-authority/00ML,Children`s & Education Serv,BVAEDU,Child Srvcs - Fostering,FLF,Third Party Payments,F,Other Establishments,FH,30/09/2016,PAY00900231,MENH,Mental Health Support,3920.00,Revenue,Alliance Home Care Ltd
Brighton & Hove City Council,http://statistics.data.gov.uk/id/local-authority/00ML,Children`s & Education Serv,BVAEDU,Child Srvcs Leaving Care,FAL,Third Party Payments,F,Other Establishments,MB,07/09/2016,PAY00893019,COGN,Memory Cognition Support,-198.00,Revenue,Allied Healthcare
Brighton & Hove City Council,http://statistics.data.gov.uk/id/local-authority/00ML,Children`s & Education Serv,BVAEDU,Child Srvcs Leaving Care,FAL,Transfer Payments,G,Other Transfer Payments,FH,07/09/2016,PAY00893019,COGN,Memory Cognition Support,671.45,Revenue,Allied Healthcare
Brighton & Hove City Council,http://statistics.data.gov.uk/id/local-authority/00ML,Children`s & Education Serv,BVAEDU,Child Srvcs - Fostering,FLF,Third Party Payments,F,Other Establishments,MB,07/09/2016,PAY00893019,MENH,Mental Health Support,-133.00,Revenue,Allied Healthcare
Brighton & Hove City Council,http://statistics.data.gov.uk/id/local-authority/00ML,Children`s & Education Serv,BVAEDU,Child Srvcs - Fostering,FLF,Third Party Payments,F,Other Establishments,FH,07/09/2016,PAY00893019,MENH,Mental Health Support,300.97,Revenue,Allied Healthcare
Brighton & Hove City Council,http://statistics.data.gov.uk/id/local-authority/00ML,Children`s & Education Serv,BVAEDU,Child Srvcs Leaving Care,FAL,Third Party Payments,F,Other Establishments,MB,07/09/2016,PAY00893019,PHYS,Physical Support,-1286.00,Revenue,Allied Healthcare
Brighton & Hove City Council,http://statistics.data.gov.uk/id/local-authority/00ML,Children`s & Education Serv,BVAEDU,Child Srvcs Leaving Care,FAL,Transfer Payments,G,Other Transfer Payments,FH,07/09/2016,PAY00893019,PHYS,Physical Support,8555.24,Revenue,Allied Healthcare
Brighton & Hove City Council,http://statistics.data.gov.uk/id/local-authority/00ML,Children`s & Education Serv,BVAEDU,Child Srvcs Adoption,FAA,Third Party Payments,F,Other Establishments,MB,09/09/2016,PAY00893769,COGN,Memory Cognition Support,-221.00,Revenue,Allied Healthcare
Brighton & Hove City Council,http://statistics.data.gov.uk/id/local-authority/00ML,Children`s & Education Serv,BVAEDU,Child Srvcs - Fostering,FLF,Third Party Payments,F,Other Establishments,FH,09/09/2016,PAY00893769,COGN,Memory Cognition Support,656.28,Revenue,Allied Healthcare
Brighton & Hove City Council,http://statistics.data.gov.uk/id/local-authority/00ML,Children`s & Education Serv,BVAEDU,Child Srvcs - Fostering,FLF,Third Party Payments,F,Other Establishments,MB,09/09/2016,PAY00893769,MENH,Mental Health Support,-133.00,Revenue,Allied Healthcare
Brighton & Hove City Council,http://statistics.data.gov.uk/id/local-authority/00ML,Children`s & Education Serv,BVAEDU,Child Srvcs - Fostering,FLF,Third Party Payments,F,Other Establishments,FH,09/09/2016,PAY00893769,MENH,Mental Health Support,458.41,Revenue,Allied Healthcare
Brighton & Hove City Council,http://statistics.data.gov.uk/id/local-authority/00ML,Children`s & Education Serv,BVAEDU,Child Srvcs - Fostering,FLF,Third Party Payments,F,Other Establishments,MB,09/09/2016,PAY00893769,PHYS,Physical Support,-1288.00,Revenue,Allied Healthcare
Brighton & Hove City Council,http://statistics.data.gov.uk/id/local-authority/00ML,Children`s & Education Serv,BVAEDU,Child Srvcs - Fostering,FLF,Third Party Payments,F,Other Establishments,FH,09/09/2016,PAY00893769,PHYS,Physical Support,8521.49,Revenue,Allied Healthcare
Brighton & Hove City Council,http://statistics.data.gov.uk/id/local-authority/00ML,Children`s & Education Serv,BVAEDU,Child Srvcs - Fostering,FLF,Third Party Payments,F,Other Establishments,FH,14/09/2016,PAY00894711,LDIS,Learning Disabilities,242.55,Revenue,Allied Healthcare
Brighton & Hove City Council,http://statistics.data.gov.uk/id/local-authority/00ML,Children`s & Education Serv,BVAEDU,Child Srvcs Leaving Care,FAL,Third Party Payments,F,Other Establishments,MB,14/09/2016,PAY00894711,PHYS,Physical Support,-84.00,Revenue,Allied Healthcare
Brighton & Hove City Council,http://statistics.data.gov.uk/id/local-authority/00ML,Children`s & Education Serv,BVAEDU,Child Srvcs Leaving Care,FAL,Transfer Payments,G,Other Transfer Payments,FH,14/09/2016,PAY00894711,PHYS,Physical Support,3535.00,Revenue,Allied Healthcare
Brighton & Hove City Council,http://statistics.data.gov.uk/id/local-authority/00ML,Children`s & Education Serv,BVAEDU,Child Srvcs - Fostering,FLF,Third Party Payments,F,Other Establishments,FH,16/09/2016,PAY00895542,LDIS,Learning Disabilities,130.90,Revenue,Allied Healthcare
Brighton & Hove City Council,http://statistics.data.gov.uk/id/local-authority/00ML,Children`s & Education Serv,BVAEDU,Child Srvcs Leaving Care,FAL,Third Party Payments,F,Other Establishments,MB,16/09/2016,PAY00895542,COGN,Memory Cognition Support,-156.00,Revenue,Allied Healthcare
Brighton & Hove City Council,http://statistics.data.gov.uk/id/local-authority/00ML,Children`s & Education Serv,BVAEDU,Child Srvcs Leaving Care,FAL,Transfer Payments,G,Other Transfer Payments,FH,16/09/2016,PAY00895542,COGN,Memory Cognition Support,580.87,Revenue,Allied Healthcare
Brighton & Hove City Council,http://statistics.data.gov.uk/id/local-authority/00ML,Children`s & Education Serv,BVAEDU,Child Srvcs - Fostering,FLF,Third Party Payments,F,Other Establishments,MB,16/09/2016,PAY00895542,MENH,Mental Health Support,-133.00,Revenue,Allied Healthcare
Brighton & Hove City Council,http://statistics.data.gov.uk/id/local-authority/00ML,Children`s & Education Serv,BVAEDU,Child Srvcs Adoption,FAA,Third Party Payments,F,Other Establishments,FH,16/09/2016,PAY00895542,MENH,Mental Health Support,410.85,Revenue,Allied Healthcare
Brighton & Hove City Council,http://statistics.data.gov.uk/id/local-authority/00ML,Children`s & Education Serv,BVAEDU,Management Services (DEC),MGT,Supplies and Services,E,Miscellaneous Expenses,MB,16/09/2016,PAY00895542,PHYS,Physical Support,-1203.00,Revenue,Allied Healthcare
Brighton & Hove City Council,http://statistics.data.gov.uk/id/local-authority/00ML,Children`s & Education Serv,BVAEDU,Ed EY Central,EAE,Supplies and Services,E,Equip't Furniture n Materials,FH,16/09/2016,PAY00895542,PHYS,Physical Support,7972.88,Revenue,Allied Healthcare
Brighton & Hove City Council,http://statistics.data.gov.uk/id/local-authority/00ML,Cultural and Related Serv,BVACUL,Culture and Heritage,CHG,Supplies and Services,E,Equip't Furniture n Materials,FH,28/09/2016,PAY00898797,LDIS,Learning Disabilities,127.05,Revenue,Allied Healthcare
Brighton & Hove City Council,http://statistics.data.gov.uk/id/local-authority/00ML,Cultural and Related Serv,BVACUL,Culture and Heritage,CHG,Supplies and Services,E,Miscellaneous Expenses,MB,28/09/2016,PAY00898797,COGN,Memory Cognition Support,-397.00,Revenue,Allied Healthcare
Brighton & Hove City Council,http://statistics.data.gov.uk/id/local-authority/00ML,Cultural and Related Serv,BVACUL,Culture and Heritage,CHG,Supplies and Services,E,Services,FH,28/09/2016,PAY00898797,COGN,Memory Cognition Support,1768.92,Revenue,Allied Healthcare
Brighton & Hove City Council,http://statistics.data.gov.uk/id/local-authority/00ML,Environment & Regulatory Serv,BVAERS,Management Services (DEC),MGT,Transport Related,D,Direct Transport Costs,MB,28/09/2016,PAY00898797,MENH,Mental Health Support,-266.00,Revenue,Allied Healthcare
Brighton & Hove City Council,http://statistics.data.gov.uk/id/local-authority/00ML,Children`s & Education Serv,BVAEDU,Ed Secondary Schools,EJJ,Supplies and Services,E,Contributions to Provisions,FH,28/09/2016,PAY00898797,MENH,Mental Health Support,1019.13,Revenue,Allied Healthcare
Brighton & Hove City Council,http://statistics.data.gov.uk/id/local-authority/00ML,Children`s & Education Serv,BVAEDU,Child Srvcs - Othr LAC Svcs,FLX,Transfer Payments,G,Other Transfer Payments,MB,28/09/2016,PAY00898797,PHYS,Physical Support,-2540.00,Revenue,Allied Healthcare
Brighton & Hove City Council,http://statistics.data.gov.uk/id/local-authority/00ML,Planning and Development,BVAPLA,Economic Development,ECD,Supplies and Services,E,Grants n Subscriptions,FH,28/09/2016,PAY00898797,PHYS,Physical Support,16211.07,Revenue,Allied Healthcare
Brighton & Hove City Council,http://statistics.data.gov.uk/id/local-authority/00ML,Central Support and Overheads,BVACEN,Holding Accounts,PPH,Transport Related,D,Direct Transport Costs,CA,07/09/2016,PAY00893193,HPAI,Property & Investment,2052.63,Revenue,Allied Protection Ltd
Brighton & Hove City Council,http://statistics.data.gov.uk/id/local-authority/00ML,Adult Social Care,BVASOC,ASC Learning Disabilities,ALD,Premises Related,C,Cleaning n Domestic Supps,CA,23/09/2016,PAY00898160,HPAI,Property & Investment,1624.89,Revenue,Allied Protection Ltd
Brighton & Hove City Council,http://statistics.data.gov.uk/id/local-authority/00ML,Adult Social Care,BVASOC,ASC Learning Disabilities,ALD,Supplies and Services,E,Equip't Furniture n Materials,CA,07/09/2016,PAY00893004,LDAS,LD Accommodation Services,280.00,Revenue,Allsop & Francis Ltd
Brighton & Hove City Council,http://statistics.data.gov.uk/id/local-authority/00ML,Adult Social Care,BVASOC,ASC Memory Cognition Support,MEM,Premises Related,C,Cleaning n Domestic Supps,DA,09/09/2016,PAY00894227,CICL,City Clean,11542.36,Revenue,Allstar Business Solutions Ltd
Brighton & Hove City Council,http://statistics.data.gov.uk/id/local-authority/00ML,Adult Social Care,BVASOC,ASC Memory Cognition Support,MEM,Supplies and Services,E,Clothing Uniforms n Laundry,DA,28/09/2016,PAY00899139,CICL,City Clean,5226.26,Revenue,Allstar Business Solutions Ltd
Brighton & Hove City Council,http://statistics.data.gov.uk/id/local-authority/00ML,Adult Social Care,BVASOC,ASC Memory Cognition Support,MEM,Supplies and Services,E,Equip't Furniture n Materials,FJ,16/09/2016,PAY00895752,PROP,Property and Design,1950.00,Revenue,Allweather Roofing & Construction Ltd.
Brighton & Hove City Council,http://statistics.data.gov.uk/id/local-authority/00ML,Adult Social Care,BVASOC,ASC Physical Support,PHY,Premises Related,C,Cleaning n Domestic Supps,CA,23/09/2016,PAY00898043,PROP,Property and Design,280.00,Revenue,Allweather Roofing & Construction Ltd.
Brighton & Hove City Council,http://statistics.data.gov.uk/id/local-authority/00ML,Adult Social Care,BVASOC,ASC Physical Support,PHY,Supplies and Services,E,Equip't Furniture n Materials,CA,28/09/2016,PAY00898927,PROP,Property and Design,4300.00,Revenue,Allweather Roofing & Construction Ltd.
Brighton & Hove City Council,http://statistics.data.gov.uk/id/local-authority/00ML,Children`s & Education Serv,BVAEDU,Child Srvcs - Residential Svcs,FLR,Premises Related,C,Cleaning n Domestic Supps,DB,28/09/2016,PAY00898994,RCOP,Resource Centres Older People,288.61,Revenue,Alphabet (UK) Fleet Management Ltd
Brighton & Hove City Council,http://statistics.data.gov.uk/id/local-authority/00ML,Adult Social Care,BVASOC,ASC Physical Support,PHY,Customer n Client Receipts,M,Fees n Charges,DB,28/09/2016,PAY00898994,ASIT,Assessment and SIT,286.13,Revenue,Alphabet (UK) Fleet Management Ltd
Brighton & Hove City Council,http://statistics.data.gov.uk/id/local-authority/00ML,Adult Social Care,BVASOC,ASC Physical Support,PHY,Third Party Payments,F,Other Establishments,DB,28/09/2016,PAY00898994,MENH,Mental Health Support,172.67,Revenue,Alphabet (UK) Fleet Management Ltd
Brighton & Hove City Council,http://statistics.data.gov.uk/id/local-authority/00ML,Adult Social Care,BVASOC,ASC Physical Support,PHY,Customer n Client Receipts,M,Fees n Charges,DB,28/09/2016,PAY00898994,SOCK,Social Work,722.61,Revenue,Alphabet (UK) Fleet Management Ltd
Brighton & Hove City Council,http://statistics.data.gov.uk/id/local-authority/00ML,Adult Social Care,BVASOC,ASC Physical Support,PHY,Third Party Payments,F,Other Establishments,DB,28/09/2016,PAY00898994,DISS,Disability Services,298.84,Revenue,Alphabet (UK) Fleet Management Ltd
Brighton & Hove City Council,http://statistics.data.gov.uk/id/local-authority/00ML,Adult Social Care,BVASOC,ASC Memory Cognition Support,MEM,Customer n Client Receipts,M,Fees n Charges,DB,28/09/2016,PAY00898994,OEDS,Other Education Support,240.25,Revenue,Alphabet (UK) Fleet Management Ltd
Brighton & Hove City Council,http://statistics.data.gov.uk/id/local-authority/00ML,Adult Social Care,BVASOC,ASC Memory Cognition Support,MEM,Third Party Payments,F,Other Establishments,DB,28/09/2016,PAY00898994,PARK,Parking,381.30,Revenue,Alphabet (UK) Fleet Management Ltd
Brighton & Hove City Council,http://statistics.data.gov.uk/id/local-authority/00ML,Adult Social Care,BVASOC,ASC Physical Support,PHY,Customer n Client Receipts,M,Fees n Charges,DB,28/09/2016,PAY00898994,TAAS,Temp Accom and Allocations,400.21,Revenue,Alphabet (UK) Fleet Management Ltd
Brighton & Hove City Council,http://statistics.data.gov.uk/id/local-authority/00ML,Adult Social Care,BVASOC,ASC Physical Support,PHY,Third Party Payments,F,Other Establishments,DB,28/09/2016,PAY00898994,HTEN,Tenancy Services,163.06,Revenue,Alphabet (UK) Fleet Management Ltd
Brighton & Hove City Council,http://statistics.data.gov.uk/id/local-authority/00ML,Highways and Transportation,BVAHRT,Transport Plan Policy Strategy,TPP,Supplies and Services,E,Services,DB,28/09/2016,PAY00898994,HSTR,Housing Strategy,248.62,Revenue,Alphabet (UK) Fleet Management Ltd
Brighton & Hove City Council,http://statistics.data.gov.uk/id/local-authority/00ML,Central Support and Overheads,BVACEN,Support Services (SSC),PPT,Premises Related,C,Repair Maint n Alterations,LC,28/09/2016,PAY00898938,CONT,Contracts,-204.00,Revenue,Alzheimers Society (Sussex Locality)
Brighton & Hove City Council,http://statistics.data.gov.uk/id/local-authority/00ML,Children`s & Education Serv,BVAEDU,Ed Ed Other Other,ENF,Premises Related,C,Repair Maint n Alterations,FH,28/09/2016,PAY00898938,CONT,Contracts,1440.00,Revenue,Alzheimers Society (Sussex Locality)
Brighton & Hove City Council,http://statistics.data.gov.uk/id/local-authority/00ML,Children`s & Education Serv,BVAEDU,Child Srvcs - Fostering,FLF,Third Party Payments,F,Other Establishments,LC,30/09/2016,PAY00899763,CONT,Contracts,-199.00,Revenue,Alzheimers Society (Sussex Locality)
Brighton & Hove City Council,http://statistics.data.gov.uk/id/local-authority/00ML,Children`s & Education Serv,BVAEDU,Child Srvcs Leaving Care,FAL,Third Party Payments,F,Other Establishments,FH,30/09/2016,PAY00899763,CONT,Contracts,5824.56,Revenue,Alzheimers Society (Sussex Locality)
Brighton & Hove City Council,http://statistics.data.gov.uk/id/local-authority/00ML,Children`s & Education Serv,BVAEDU,Child Srvcs Leaving Care,FAL,Transfer Payments,G,Other Transfer Payments,PBL5,07/09/2016,PAY00893081,LIBS,Libraries,32671.04,Capital,AM Security Ltd t/a AM Fire & Security Group
Brighton & Hove City Council,http://statistics.data.gov.uk/id/local-authority/00ML,Housing General Fund,BVAHOG,Homelessness,HML,Premises Related,C,Rents Payable,CA,09/09/2016,PAY00893823,PROP,Property and Design,297.65,Revenue,AM Security Ltd t/a AM Fire & Security Group
Brighton & Hove City Council,http://statistics.data.gov.uk/id/local-authority/00ML,Children`s & Education Serv,BVAEDU,Child Srvcs - Fostering,FLF,Third Party Payments,F,Other Establishments,EF,09/09/2016,PAY00893823,PARK,Parking,1020.00,Revenue,AM Security Ltd t/a AM Fire & Security Group
Brighton & Hove City Council,http://statistics.data.gov.uk/id/local-authority/00ML,Children`s & Education Serv,BVAEDU,Child Srvcs - Fostering,FLF,Third Party Payments,F,Other Establishments,EF,28/09/2016,PAY00898871,YOTS,Youth Service,21.00,Revenue,AM Security Ltd t/a AM Fire & Security Group
Brighton & Hove City Council,http://statistics.data.gov.uk/id/local-authority/00ML,Housing General Fund,BVAHOG,Homelessness,HML,Premises Related,C,Rents Payable,PBL5,28/09/2016,PAY00898871,LIBS,Libraries,32513.73,Capital,AM Security Ltd t/a AM Fire & Security Group
Brighton & Hove City Council,http://statistics.data.gov.uk/id/local-authority/00ML,Children`s & Education Serv,BVAEDU,Child Srvcs - Fostering,FLF,Third Party Payments,F,Other Establishments,CA,30/09/2016,PAY00899616,SPLE,Sport and Leisure,225.30,Revenue,AM Security Ltd t/a AM Fire & Security Group
Brighton & Hove City Council,http://statistics.data.gov.uk/id/local-authority/00ML,Children`s & Education Serv,BVAEDU,Child Srvcs - Fostering,FLF,Third Party Payments,F,Other Establishments,FH,21/09/2016,PAY00896995,COGN,Memory Cognition Support,5223.42,Revenue,Amberley Lodge Care Home Ltd
Brighton & Hove City Council,http://statistics.data.gov.uk/id/local-authority/00ML,Environment & Regulatory Serv,BVAERS,Cem Crem and Mortuary Services,CCM,Supplies and Services,E,Equip't Furniture n Materials,EM,21/09/2016,PAY00896995,NBHC,Non Council,100.00,Revenue,Amberley Lodge Care Home Ltd
Brighton & Hove City Council,http://statistics.data.gov.uk/id/local-authority/00ML,Planning and Development,BVAPLA,Economic Development,ECD,Supplies and Services,E,Grants n Subscriptions,EK,07/09/2016,PAY00893119,EYRS,Early Years,5747.25,Revenue,Amigos Pre-School Playgroup
Brighton & Hove City Council,http://statistics.data.gov.uk/id/local-authority/00ML,Children`s & Education Serv,BVAEDU,Child Srvcs - Fostering,FLF,Third Party Payments,F,Other Establishments,EK,09/09/2016,PAY00893966,EYRS,Early Years,2433.38,Revenue,Amigos Pre-School Playgroup
Brighton & Hove City Council,http://statistics.data.gov.uk/id/local-authority/00ML,Housing General Fund,BVAHOG,Homelessness,HML,Premises Related,C,Rents Payable,DA,21/09/2016,PAY00897073,CIPK,City Parks,318.47,Revenue,AMP Groundcare Machinery Services Ltd
Brighton & Hove City Council,http://statistics.data.gov.uk/id/local-authority/00ML,Children`s & Education Serv,BVAEDU,Management Services (DEC),MGT,Supplies and Services,E,Services,EA,28/09/2016,PAY00898870,RCOP,Resource Centres Older People,25.00,Revenue,AMP Groundcare Machinery Services Ltd
Brighton & Hove City Council,http://statistics.data.gov.uk/id/local-authority/00ML,Housing General Fund,BVAHOG,Homelessness,HML,Premises Related,C,Rents Payable,DA,28/09/2016,PAY00898870,CICL,City Clean,996.43,Revenue,AMP Groundcare Machinery Services Ltd
Brighton & Hove City Council,http://statistics.data.gov.uk/id/local-authority/00ML,Housing General Fund,BVAHOG,Homelessness,HML,Premises Related,C,Rents Payable,CC,21/09/2016,PAY00897397,COMU,Communications,10000.00,Revenue,Amplicon Group Ltd
Brighton & Hove City Council,http://statistics.data.gov.uk/id/local-authority/00ML,Adult Social Care,BVASOC,ASC Learning Disabilities,ALD,Supplies and Services,E,Equip't Furniture n Materials,CA,21/09/2016,PAY00897532,PROP,Property and Design,370.00,Revenue,Angel Springs Ltd
Brighton & Hove City Council,http://statistics.data.gov.uk/id/local-authority/00ML,Children`s & Education Serv,BVAEDU,Child Srvcs - Fostering,FLF,Third Party Payments,F,Other Establishments,CE,21/09/2016,PAY00897532,EYRS,Early Years,269.51,Revenue,Angel Springs Ltd
Brighton & Hove City Council,http://statistics.data.gov.uk/id/local-authority/00ML,Children`s & Education Serv,BVAEDU,Child Srvcs - Fostering,FLF,Third Party Payments,F,Other Establishments,EB,21/09/2016,PAY00897532,ASSA,Hostel Accommodation,309.00,Revenue,Angel Springs Ltd
Brighton & Hove City Council,http://statistics.data.gov.uk/id/local-authority/00ML,Housing General Fund,BVAHOG,Homelessness,HML,Premises Related,C,Rents Payable,ED,21/09/2016,PAY00897532,HIII,Income Involvement Improvement,-467.13,Revenue,Angel Springs Ltd
Brighton & Hove City Council,http://statistics.data.gov.uk/id/local-authority/00ML,Housing General Fund,BVAHOG,Homelessness,HML,Premises Related,C,Rents Payable,EB,28/09/2016,PAY00899339,LIBS,Libraries,278.10,Revenue,Angel Springs Ltd
Brighton & Hove City Council,http://statistics.data.gov.uk/id/local-authority/00ML,Children`s & Education Serv,BVAEDU,Child Srvcs Adoption,FAA,Third Party Payments,F,Other Establishments,EK,07/09/2016,PAY00893244,EYRS,Early Years,6013.88,Revenue,Angmering Day Nurseries Ltd
Brighton & Hove City Council,http://statistics.data.gov.uk/id/local-authority/00ML,Children`s & Education Serv,BVAEDU,Child Srvcs Adoption,FAA,Third Party Payments,F,Other Establishments,EK,09/09/2016,PAY00894131,EYRS,Early Years,2278.88,Revenue,Angmering Day Nurseries Ltd
Brighton & Hove City Council,http://statistics.data.gov.uk/id/local-authority/00ML,Children`s & Education Serv,BVAEDU,Child Srvcs Leaving Care,FAL,Third Party Payments,F,Other Establishments,EF,21/09/2016,PAY00897371,RPMU,Royal Pavilion and Museums,4955.05,Revenue,AP Security (APS) Ltd
Brighton & Hove City Council,http://statistics.data.gov.uk/id/local-authority/00ML,Children`s & Education Serv,BVAEDU,Child Srvcs Leaving Care,FAL,Transfer Payments,G,Other Transfer Payments,EF,09/09/2016,PAY00894524,NBHC,Non Council,2000.00,Revenue,Apollo Fundraising
Brighton & Hove City Council,http://statistics.data.gov.uk/id/local-authority/00ML,Housing General Fund,BVAHOG,Homelessness,HML,Premises Related,C,Rents Payable,EF,30/09/2016,PAY00900265,NBHC,Non Council,1800.00,Revenue,Apollo Fundraising
Brighton & Hove City Council,http://statistics.data.gov.uk/id/local-authority/00ML,Children`s & Education Serv,BVAEDU,Child Srvcs - Fostering,FLF,Third Party Payments,F,Other Establishments,EA,14/09/2016,PAY00894855,HPAI,Property & Investment,3050.98,Revenue,Appello
Brighton & Hove City Council,http://statistics.data.gov.uk/id/local-authority/00ML,Housing General Fund,BVAHOG,Homelessness,HML,Premises Related,C,Rents Payable,CC,09/09/2016,PAY00894078,TAAS,Temp Accom and Allocations,1350.00,Revenue,Applegate Properties Ltd
Brighton & Hove City Council,http://statistics.data.gov.uk/id/local-authority/00ML,Children`s & Education Serv,BVAEDU,Child Srvcs Adoption,FAA,Third Party Payments,F,Other Establishments,CA,21/09/2016,PAY00897285,PARK,Parking,798.00,Revenue,APS Aegis Limited
Brighton & Hove City Council,http://statistics.data.gov.uk/id/local-authority/00ML,Children`s & Education Serv,BVAEDU,Child Srvcs - Fostering,FLF,Third Party Payments,F,Other Establishments,CA,09/09/2016,PAY00893796,PARK,Parking,452.39,Revenue,APT Skidata Ltd
Brighton & Hove City Council,http://statistics.data.gov.uk/id/local-authority/00ML,Housing General Fund,BVAHOG,Homelessness,HML,Premises Related,C,Rents Payable,EA,09/09/2016,PAY00893796,PARK,Parking,1791.41,Revenue,APT Skidata Ltd
Brighton & Hove City Council,http://statistics.data.gov.uk/id/local-authority/00ML,Housing General Fund,BVAHOG,Homelessness,HML,Premises Related,C,Rents Payable,CA,30/09/2016,PAY00899602,PARK,Parking,17421.58,Revenue,APT Skidata Ltd
Brighton & Hove City Council,http://statistics.data.gov.uk/id/local-authority/00ML,Children`s & Education Serv,BVAEDU,Child Srvcs - Fostering,FLF,Third Party Payments,F,Other Establishments,EF,09/09/2016,PAY00893731,OEDS,Other Education Support,342.00,Revenue,AQA Education
Brighton & Hove City Council,http://statistics.data.gov.uk/id/local-authority/00ML,Children`s & Education Serv,BVAEDU,Child Srvcs Leaving Care,FAL,Third Party Payments,F,Other Establishments,EM,28/09/2016,PAY00899299,SPLE,Sport and Leisure,78.00,Revenue,Aquam Water Services
Brighton & Hove City Council,http://statistics.data.gov.uk/id/local-authority/00ML,Children`s & Education Serv,BVAEDU,Child Srvcs Leaving Care,FAL,Transfer Payments,G,Other Transfer Payments,CA,28/09/2016,PAY00899299,PROP,Property and Design,231.20,Revenue,Aquam Water Services
Brighton & Hove City Council,http://statistics.data.gov.uk/id/local-authority/00ML,Children`s & Education Serv,BVAEDU,Child Srvcs - Fostering,FLF,Third Party Payments,F,Other Establishments,PFL5,23/09/2016,PAY00898637,PSHG,Private Sector Housing,702.50,Capital,Aquarius Hygiene
Brighton & Hove City Council,http://statistics.data.gov.uk/id/local-authority/00ML,Children`s & Education Serv,BVAEDU,Child Srvcs - Other Fam Supp,FFX,Transfer Payments,G,Other Transfer Payments,EA,14/09/2016,PAY00894777,CICL,City Clean,1827.60,Revenue,Aquarius Solutions
Brighton & Hove City Council,http://statistics.data.gov.uk/id/local-authority/00ML,Housing General Fund,BVAHOG,Homelessness,HML,Supplies and Services,E,Miscellaneous Expenses,FH,14/09/2016,PAY00894773,AVFM,Agency Placements\VFM,24000.00,Revenue,ARC Adventure (Sussex) Ltd
Brighton & Hove City Council,http://statistics.data.gov.uk/id/local-authority/00ML,Housing General Fund,BVAHOG,Homelessness,HML,Premises Related,C,Rents Payable,MB,23/09/2016,PAY00898552,COGN,Memory Cognition Support,-452.80,Revenue,Archmore Care Services
Brighton & Hove City Council,http://statistics.data.gov.uk/id/local-authority/00ML,Children`s & Education Serv,BVAEDU,Child Srvcs - Fostering,FLF,Third Party Payments,F,Other Establishments,FH,23/09/2016,PAY00898552,COGN,Memory Cognition Support,5288.48,Revenue,Archmore Care Services
Brighton & Hove City Council,http://statistics.data.gov.uk/id/local-authority/00ML,Housing General Fund,BVAHOG,Homelessness,HML,Premises Related,C,Rents Payable,MB,23/09/2016,PAY00897803,COGN,Memory Cognition Support,-1510.44,Revenue,Archmore Care Services Ltd T/A Birchwood Grove NH
Brighton & Hove City Council,http://statistics.data.gov.uk/id/local-authority/00ML,Housing General Fund,BVAHOG,Homelessness,HML,Premises Related,C,Rents Payable,FH,23/09/2016,PAY00897803,COGN,Memory Cognition Support,9029.95,Revenue,Archmore Care Services Ltd T/A Birchwood Grove NH
Brighton & Hove City Council,http://statistics.data.gov.uk/id/local-authority/00ML,Housing General Fund,BVAHOG,Homelessness,HML,Premises Related,C,Rents Payable,MB,23/09/2016,PAY00897803,PHYS,Physical Support,-505.20,Revenue,Archmore Care Services Ltd T/A Birchwood Grove NH
Brighton & Hove City Council,http://statistics.data.gov.uk/id/local-authority/00ML,Housing General Fund,BVAHOG,Homelessness,HML,Premises Related,C,Rents Payable,FH,23/09/2016,PAY00897803,PHYS,Physical Support,5902.82,Revenue,Archmore Care Services Ltd T/A Birchwood Grove NH
Brighton & Hove City Council,http://statistics.data.gov.uk/id/local-authority/00ML,Housing General Fund,BVAHOG,Homelessness,HML,Premises Related,C,Rents Payable,PBL5,23/09/2016,PAY00898428,HPAI,Property & Investment,650.00,Capital,Arcus Consulting LLP
Brighton & Hove City Council,http://statistics.data.gov.uk/id/local-authority/00ML,Housing General Fund,BVAHOG,Homelessness,HML,Premises Related,C,Rents Payable,GD,16/09/2016,PAY00895603,CHIC,Children In Care,647.80,Revenue,Argos Business Solutions Ltd
Brighton & Hove City Council,http://statistics.data.gov.uk/id/local-authority/00ML,Children`s & Education Serv,BVAEDU,Child Srvcs - Fostering,FLF,Third Party Payments,F,Other Establishments,GD,16/09/2016,PAY00895603,CHIC,Children In Care,83.28,Revenue,Argos Business Solutions Ltd
Brighton & Hove City Council,http://statistics.data.gov.uk/id/local-authority/00ML,Children`s & Education Serv,BVAEDU,Child Srvcs - Fostering,FLF,Third Party Payments,F,Other Establishments,EA,16/09/2016,PAY00895603,EYRS,Early Years,311.11,Revenue,Argos Business Solutions Ltd
Brighton & Hove City Council,http://statistics.data.gov.uk/id/local-authority/00ML,Children`s & Education Serv,BVAEDU,Child Srvcs - Fostering,FLF,Third Party Payments,F,Other Establishments,EA,23/09/2016,PAY00897886,MGMT,Management,267.44,Revenue,Argos Business Solutions Ltd
Brighton & Hove City Council,http://statistics.data.gov.uk/id/local-authority/00ML,Housing General Fund,BVAHOG,Homelessness,HML,Premises Related,C,Rents Payable,GD,23/09/2016,PAY00897886,CHIC,Children In Care,440.37,Revenue,Argos Business Solutions Ltd
Brighton & Hove City Council,http://statistics.data.gov.uk/id/local-authority/00ML,Housing General Fund,BVAHOG,Homelessness,HML,Premises Related,C,Rents Payable,GD,23/09/2016,PAY00897886,CHIC,Children In Care,133.71,Revenue,Argos Business Solutions Ltd
Brighton & Hove City Council,http://statistics.data.gov.uk/id/local-authority/00ML,Central Support and Overheads,BVACEN,Support Services (SSC),PPT,Supplies and Services,E,Equip't Furniture n Materials,EA,30/09/2016,PAY00899609,DAYS,Day Services,190.78,Revenue,Argos Business Solutions Ltd
Brighton & Hove City Council,http://statistics.data.gov.uk/id/local-authority/00ML,Housing General Fund,BVAHOG,Homelessness,HML,Premises Related,C,Rents Payable,EM,30/09/2016,PAY00899609,DAYS,Day Services,211.61,Revenue,Argos Business Solutions Ltd
Brighton & Hove City Council,http://statistics.data.gov.uk/id/local-authority/00ML,Housing General Fund,BVAHOG,Homelessness,HML,Premises Related,C,Rents Payable,GD,30/09/2016,PAY00899609,CHIC,Children In Care,191.98,Revenue,Argos Business Solutions Ltd
Brighton & Hove City Council,http://statistics.data.gov.uk/id/local-authority/00ML,Children`s & Education Serv,BVAEDU,Child Srvcs - Fostering,FLF,Third Party Payments,F,Other Establishments,GD,30/09/2016,PAY00899609,CHIC,Children In Care,88.12,Revenue,Argos Business Solutions Ltd
Brighton & Hove City Council,http://statistics.data.gov.uk/id/local-authority/00ML,Housing General Fund,BVAHOG,Homelessness,HML,Premises Related,C,Rents Payable,EA,30/09/2016,PAY00899609,EYRS,Early Years,134.11,Revenue,Argos Business Solutions Ltd
Brighton & Hove City Council,http://statistics.data.gov.uk/id/local-authority/00ML,Housing General Fund,BVAHOG,Homelessness,HML,Premises Related,C,Rents Payable,EA,30/09/2016,PAY00899609,ASSA,Hostel Accommodation,80.54,Revenue,Argos Business Solutions Ltd
Brighton & Hove City Council,http://statistics.data.gov.uk/id/local-authority/00ML,Housing General Fund,BVAHOG,Homelessness,HML,Premises Related,C,Rents Payable,EK,08/09/2016,PAY512723,NBHC,Non Council,446.00,Revenue,Argos Distributors Ltd
Brighton & Hove City Council,http://statistics.data.gov.uk/id/local-authority/00ML,Children`s & Education Serv,BVAEDU,Child Srvcs - Fostering,FLF,Third Party Payments,F,Other Establishments,EK,08/09/2016,PAY512724,NBHC,Non Council,267.94,Revenue,Argos Distributors Ltd
Brighton & Hove City Council,http://statistics.data.gov.uk/id/local-authority/00ML,Children`s & Education Serv,BVAEDU,Child Srvcs - Fostering,FLF,Third Party Payments,F,Other Establishments,EK,08/09/2016,PAY512725,NBHC,Non Council,269.99,Revenue,Argos Distributors Ltd
Brighton & Hove City Council,http://statistics.data.gov.uk/id/local-authority/00ML,Housing General Fund,BVAHOG,Homelessness,HML,Premises Related,C,Rents Payable,FH,14/09/2016,PAY00894822,PHYS,Physical Support,6428.57,Revenue,Arlington House
Brighton & Hove City Council,http://statistics.data.gov.uk/id/local-authority/00ML,Housing General Fund,BVAHOG,Homelessness,HML,Premises Related,C,Rents Payable,MB,23/09/2016,PAY00898044,COGN,Memory Cognition Support,-5580.60,Revenue,Arlington House
Brighton & Hove City Council,http://statistics.data.gov.uk/id/local-authority/00ML,Children`s & Education Serv,BVAEDU,Child Srvcs - Fostering,FLF,Third Party Payments,F,Other Establishments,FH,23/09/2016,PAY00898044,COGN,Memory Cognition Support,15204.00,Revenue,Arlington House
Brighton & Hove City Council,http://statistics.data.gov.uk/id/local-authority/00ML,Children`s & Education Serv,BVAEDU,Child Srvcs - Fostering,FLF,Third Party Payments,F,Other Establishments,MB,23/09/2016,PAY00898044,PHYS,Physical Support,-3179.28,Revenue,Arlington House
Brighton & Hove City Council,http://statistics.data.gov.uk/id/local-authority/00ML,Children`s & Education Serv,BVAEDU,Child Srvcs - Fostering,FLF,Third Party Payments,F,Other Establishments,FH,23/09/2016,PAY00898044,PHYS,Physical Support,34389.14,Revenue,Arlington House
Brighton & Hove City Council,http://statistics.data.gov.uk/id/local-authority/00ML,Housing General Fund,BVAHOG,Homelessness,HML,Premises Related,C,Rents Payable,BM,02/09/2016,PAY00892326,ORGD,Organisational Development,196.00,Revenue,Artagent Ltd t/a David Taylor Training
Brighton & Hove City Council,http://statistics.data.gov.uk/id/local-authority/00ML,Children`s & Education Serv,BVAEDU,Child Srvcs - Fostering,FLF,Third Party Payments,F,Other Establishments,BM,02/09/2016,PAY00892326,ORGD,Organisational Development,154.00,Revenue,Artagent Ltd t/a David Taylor Training
Brighton & Hove City Council,http://statistics.data.gov.uk/id/local-authority/00ML,Housing General Fund,BVAHOG,Homelessness,HML,Premises Related,C,Rents Payable,BM,14/09/2016,PAY00894727,ORGD,Organisational Development,350.00,Revenue,Artagent Ltd t/a David Taylor Training
Brighton & Hove City Council,http://statistics.data.gov.uk/id/local-authority/00ML,Housing General Fund,BVAHOG,Homelessness,HML,Premises Related,C,Rents Payable,BM,28/09/2016,PAY00898813,ORGD,Organisational Development,392.00,Revenue,Artagent Ltd t/a David Taylor Training
Brighton & Hove City Council,http://statistics.data.gov.uk/id/local-authority/00ML,Housing General Fund,BVAHOG,Homelessness,HML,Premises Related,C,Rents Payable,BM,28/09/2016,PAY00898813,ORGD,Organisational Development,308.00,Revenue,Artagent Ltd t/a David Taylor Training
Brighton & Hove City Council,http://statistics.data.gov.uk/id/local-authority/00ML,Housing General Fund,BVAHOG,Homelessness,HML,Premises Related,C,Rents Payable,EK,14/09/2016,PAY00895201,CMNY,Communities and Equalities,2500.00,Revenue,Artspace Brighton
Brighton & Hove City Council,http://statistics.data.gov.uk/id/local-authority/00ML,Children`s & Education Serv,BVAEDU,Child Srvcs - Fostering,FLF,Third Party Payments,F,Other Establishments,EA,21/09/2016,PAY00897462,TPRS,Transport Plan and Road Safety,1875.00,Revenue,Artspace Brighton
Brighton & Hove City Council,http://statistics.data.gov.uk/id/local-authority/00ML,Housing General Fund,BVAHOG,Homelessness,HML,Premises Related,C,Rents Payable,MB,14/09/2016,PAY00894949,LDIS,Learning Disabilities,-2880.00,Revenue,Arundel Domiciliary Care Services
Brighton & Hove City Council,http://statistics.data.gov.uk/id/local-authority/00ML,Children`s & Education Serv,BVAEDU,Child Srvcs - Fostering,FLF,Third Party Payments,F,Other Establishments,FH,14/09/2016,PAY00894949,LDIS,Learning Disabilities,103275.92,Revenue,Arundel Domiciliary Care Services
Brighton & Hove City Council,http://statistics.data.gov.uk/id/local-authority/00ML,Housing General Fund,BVAHOG,Homelessness,HML,Premises Related,C,Rents Payable,FH,14/09/2016,PAY00894823,FINS,Financial Services,10665.39,Revenue,Arundel Park Lodge
Brighton & Hove City Council,http://statistics.data.gov.uk/id/local-authority/00ML,Children`s & Education Serv,BVAEDU,Child Srvcs - Fostering,FLF,Third Party Payments,F,Other Establishments,FH,16/09/2016,PAY00895753,PHYS,Physical Support,7691.44,Revenue,Arundel Park Lodge
Brighton & Hove City Council,http://statistics.data.gov.uk/id/local-authority/00ML,Children`s & Education Serv,BVAEDU,Child Srvcs - Fostering,FLF,Third Party Payments,F,Other Establishments,MB,23/09/2016,PAY00898045,PHYS,Physical Support,-5359.40,Revenue,Arundel Park Lodge
Brighton & Hove City Council,http://statistics.data.gov.uk/id/local-authority/00ML,Children`s & Education Serv,BVAEDU,Child Srvcs - Fostering,FLF,Third Party Payments,F,Other Establishments,FH,23/09/2016,PAY00898045,PHYS,Physical Support,25583.40,Revenue,Arundel Park Lodge
Brighton & Hove City Council,http://statistics.data.gov.uk/id/local-authority/00ML,Housing General Fund,BVAHOG,Homelessness,HML,Premises Related,C,Rents Payable,PBL5,23/09/2016,PAY00898334,OEDS,Other Education Support,5714.50,Capital,Asbestos First Ltd
Brighton & Hove City Council,http://statistics.data.gov.uk/id/local-authority/00ML,Children`s & Education Serv,BVAEDU,Child Srvcs - Fostering,FLF,Third Party Payments,F,Other Establishments,PBL5,28/09/2016,PAY00898792,HPAI,Property & Investment,5935.00,Capital,Ascendit Lifts Ltd
Brighton & Hove City Council,http://statistics.data.gov.uk/id/local-authority/00ML,Housing General Fund,BVAHOG,Homelessness,HML,Premises Related,C,Rents Payable,PFL5,30/09/2016,PAY00899575,PSHG,Private Sector Housing,8925.00,Capital,Ascendit Lifts Ltd
Brighton & Hove City Council,http://statistics.data.gov.uk/id/local-authority/00ML,Housing General Fund,BVAHOG,Homelessness,HML,Premises Related,C,Rents Payable,PBL5,30/09/2016,PAY00899575,HPAI,Property & Investment,5865.00,Capital,Ascendit Lifts Ltd
Brighton & Hove City Council,http://statistics.data.gov.uk/id/local-authority/00ML,Children`s & Education Serv,BVAEDU,Child Srvcs - Fostering,FLF,Third Party Payments,F,Other Establishments,MB,21/09/2016,PAY00896953,LDIS,Learning Disabilities,-321.80,Revenue,ASD Unique Services LLP
Brighton & Hove City Council,http://statistics.data.gov.uk/id/local-authority/00ML,Cultural and Related Serv,BVACUL,Culture and Heritage,CHG,Premises Related,C,Repair Maint n Alterations,FH,21/09/2016,PAY00896953,LDIS,Learning Disabilities,4486.20,Revenue,ASD Unique Services LLP
Brighton & Hove City Council,http://statistics.data.gov.uk/id/local-authority/00ML,Children`s & Education Serv,BVAEDU,Child Srvcs - Fostering,FLF,Third Party Payments,F,Other Establishments,MB,14/09/2016,PAY00895287,COGN,Memory Cognition Support,-653.50,Revenue,Ash House (Yorkshire) Ltd
Brighton & Hove City Council,http://statistics.data.gov.uk/id/local-authority/00ML,Children`s & Education Serv,BVAEDU,Child Srvcs - Fostering,FLF,Third Party Payments,F,Other Establishments,FH,14/09/2016,PAY00895287,COGN,Memory Cognition Support,2105.00,Revenue,Ash House (Yorkshire) Ltd
Brighton & Hove City Council,http://statistics.data.gov.uk/id/local-authority/00ML,Planning and Development,BVAPLA,Economic Development,ECD,Supplies and Services,E,Grants n Subscriptions,EA,02/09/2016,PAY00892485,BERE,Bereavement,1676.20,Revenue,Ashdown Supplies
Brighton & Hove City Council,http://statistics.data.gov.uk/id/local-authority/00ML,Housing General Fund,BVAHOG,Homelessness,HML,Premises Related,C,Rents Payable,EA,21/09/2016,PAY00897168,BERE,Bereavement,340.00,Revenue,Ashdown Supplies
Brighton & Hove City Council,http://statistics.data.gov.uk/id/local-authority/00ML,Children`s & Education Serv,BVAEDU,Child Srvcs - Fostering,FLF,Third Party Payments,F,Other Establishments,FH,07/09/2016,PAY00892935,MENH,Mental Health Support,3064.72,Revenue,Ashford House Ltd
Brighton & Hove City Council,http://statistics.data.gov.uk/id/local-authority/00ML,Children`s & Education Serv,BVAEDU,Child Srvcs - Fostering,FLF,Third Party Payments,F,Other Establishments,MB,16/09/2016,PAY00896090,COGN,Memory Cognition Support,-1045.60,Revenue,Ashleigh Manor
Brighton & Hove City Council,http://statistics.data.gov.uk/id/local-authority/00ML,Children`s & Education Serv,BVAEDU,Child Srvcs - Fostering,FLF,Third Party Payments,F,Other Establishments,FH,16/09/2016,PAY00896090,COGN,Memory Cognition Support,3695.44,Revenue,Ashleigh Manor
Brighton & Hove City Council,http://statistics.data.gov.uk/id/local-authority/00ML,Children`s & Education Serv,BVAEDU,Child Srvcs - Fostering,FLF,Third Party Payments,F,Other Establishments,MB,07/09/2016,PAY00893270,LDIS,Learning Disabilities,-332.00,Revenue,Ashmeadows House Ltd
Brighton & Hove City Council,http://statistics.data.gov.uk/id/local-authority/00ML,Housing General Fund,BVAHOG,Homelessness,HML,Premises Related,C,Rents Payable,FH,07/09/2016,PAY00893270,LDIS,Learning Disabilities,4942.48,Revenue,Ashmeadows House Ltd
Brighton & Hove City Council,http://statistics.data.gov.uk/id/local-authority/00ML,Housing General Fund,BVAHOG,Homelessness,HML,Premises Related,C,Rents Payable,FH,07/09/2016,PAY00893270,MENH,Mental Health Support,2025.00,Revenue,Ashmeadows House Ltd
Brighton & Hove City Council,http://statistics.data.gov.uk/id/local-authority/00ML,Children`s & Education Serv,BVAEDU,Child Srvcs Adoption,FAA,Third Party Payments,F,Other Establishments,MB,23/09/2016,PAY00897836,COGN,Memory Cognition Support,-522.80,Revenue,Ashton Care
Brighton & Hove City Council,http://statistics.data.gov.uk/id/local-authority/00ML,Children`s & Education Serv,BVAEDU,Child Srvcs - Fostering,FLF,Third Party Payments,F,Other Establishments,FH,23/09/2016,PAY00897836,COGN,Memory Cognition Support,1876.00,Revenue,Ashton Care
Brighton & Hove City Council,http://statistics.data.gov.uk/id/local-authority/00ML,Children`s & Education Serv,BVAEDU,Child Srvcs - Fostering,FLF,Third Party Payments,F,Other Establishments,FH,23/09/2016,PAY00898475,COGN,Memory Cognition Support,2889.00,Revenue,Ashton House
Brighton & Hove City Council,http://statistics.data.gov.uk/id/local-authority/00ML,Children`s & Education Serv,BVAEDU,Child Srvcs - Fostering,FLF,Third Party Payments,F,Other Establishments,FH,23/09/2016,PAY00898475,PHYS,Physical Support,2348.00,Revenue,Ashton House
Brighton & Hove City Council,http://statistics.data.gov.uk/id/local-authority/00ML,Housing General Fund,BVAHOG,Homelessness,HML,Premises Related,C,Rents Payable,DA,28/09/2016,PAY00899164,CICL,City Clean,260.00,Revenue,Ashwoods Automotive Ltd
Brighton & Hove City Council,http://statistics.data.gov.uk/id/local-authority/00ML,Housing General Fund,BVAHOG,Homelessness,HML,Premises Related,C,Rents Payable,MB,23/09/2016,PAY00897776,COGN,Memory Cognition Support,-4849.04,Revenue,Aspen House
Brighton & Hove City Council,http://statistics.data.gov.uk/id/local-authority/00ML,Children`s & Education Serv,BVAEDU,Child Srvcs - Fostering,FLF,Third Party Payments,F,Other Establishments,FH,23/09/2016,PAY00897776,COGN,Memory Cognition Support,18232.00,Revenue,Aspen House
Brighton & Hove City Council,http://statistics.data.gov.uk/id/local-authority/00ML,Housing General Fund,BVAHOG,Homelessness,HML,Premises Related,C,Rents Payable,FJ,07/09/2016,PAY00893533,PROP,Property and Design,1200.00,Revenue,Aspen Tree Care
Brighton & Hove City Council,http://statistics.data.gov.uk/id/local-authority/00ML,Adult Social Care,BVASOC,ASC Learning Disabilities,ALD,Third Party Payments,F,Other Establishments,FH,07/09/2016,PAY00892976,OEDS,Other Education Support,948.15,Revenue,Asphaleia Ltd
Brighton & Hove City Council,http://statistics.data.gov.uk/id/local-authority/00ML,Housing General Fund,BVAHOG,Homelessness,HML,Premises Related,C,Rents Payable,FH,14/09/2016,PAY00894672,AVFM,Agency Placements\VFM,13413.71,Revenue,Asphaleia Ltd
Brighton & Hove City Council,http://statistics.data.gov.uk/id/local-authority/00ML,Housing General Fund,BVAHOG,Homelessness,HML,Premises Related,C,Rents Payable,FH,07/09/2016,PAY00893153,LDIS,Learning Disabilities,19554.32,Revenue,Aspirations Active
Brighton & Hove City Council,http://statistics.data.gov.uk/id/local-authority/00ML,Children`s & Education Serv,BVAEDU,Child Srvcs - Fostering,FLF,Third Party Payments,F,Other Establishments,MB,23/09/2016,PAY00898491,PHYS,Physical Support,-1196.04,Revenue,Aspire Life Care
Brighton & Hove City Council,http://statistics.data.gov.uk/id/local-authority/00ML,Housing General Fund,BVAHOG,Homelessness,HML,Premises Related,C,Rents Payable,FH,23/09/2016,PAY00898491,PHYS,Physical Support,1892.56,Revenue,Aspire Life Care
Brighton & Hove City Council,http://statistics.data.gov.uk/id/local-authority/00ML,Children`s & Education Serv,BVAEDU,Child Srvcs Com and Scl Work,FCW,Customer n Client Receipts,M,Fees n Charges,FH,14/09/2016,PAY00894739,LDIS,Learning Disabilities,566.67,Revenue,Assert (B&H)
Brighton & Hove City Council,http://statistics.data.gov.uk/id/local-authority/00ML,Housing General Fund,BVAHOG,Homelessness,HML,Premises Related,C,Rents Payable,AA,23/09/2016,PAY00897762,ELEC,Elections,6822.30,Revenue,Assoc Of Electoral Administrators Ltd
Brighton & Hove City Council,http://statistics.data.gov.uk/id/local-authority/00ML,Children`s & Education Serv,BVAEDU,Child Srvcs - Fostering,FLF,Third Party Payments,F,Other Establishments,CH,21/09/2016,PAY00897243,RPMU,Royal Pavilion and Museums,240.00,Revenue,Astound Facilities Group
Brighton & Hove City Council,http://statistics.data.gov.uk/id/local-authority/00ML,Children`s & Education Serv,BVAEDU,Child Srvcs - Fostering,FLF,Third Party Payments,F,Other Establishments,DA,28/09/2016,PAY00898872,LDAS,LD Accommodation Services,369.46,Revenue,ATS Euromaster Ltd
Brighton & Hove City Council,http://statistics.data.gov.uk/id/local-authority/00ML,Children`s & Education Serv,BVAEDU,Child Srvcs - Fostering,FLF,Third Party Payments,F,Other Establishments,DA,28/09/2016,PAY00898872,RCOP,Resource Centres Older People,97.06,Revenue,ATS Euromaster Ltd
Brighton & Hove City Council,http://statistics.data.gov.uk/id/local-authority/00ML,Housing General Fund,BVAHOG,Homelessness,HML,Premises Related,C,Rents Payable,DA,28/09/2016,PAY00898872,PROP,Property and Design,57.38,Revenue,ATS Euromaster Ltd
Brighton & Hove City Council,http://statistics.data.gov.uk/id/local-authority/00ML,Housing General Fund,BVAHOG,Homelessness,HML,Premises Related,C,Rents Payable,DA,28/09/2016,PAY00898872,YOTS,Youth Service,44.40,Revenue,ATS Euromaster Ltd
Brighton & Hove City Council,http://statistics.data.gov.uk/id/local-authority/00ML,Children`s & Education Serv,BVAEDU,Child Srvcs - Fostering,FLF,Third Party Payments,F,Other Establishments,DA,28/09/2016,PAY00898872,CIPK,City Parks,3952.58,Revenue,ATS Euromaster Ltd
Brighton & Hove City Council,http://statistics.data.gov.uk/id/local-authority/00ML,Children`s & Education Serv,BVAEDU,Child Srvcs - Fostering,FLF,Third Party Payments,F,Other Establishments,DA,28/09/2016,PAY00898872,CICL,City Clean,331.32,Revenue,ATS Euromaster Ltd
Brighton & Hove City Council,http://statistics.data.gov.uk/id/local-authority/00ML,Children`s & Education Serv,BVAEDU,Child Srvcs - Fostering,FLF,Third Party Payments,F,Other Establishments,DA,28/09/2016,PAY00898872,CICL,City Clean,1106.48,Revenue,ATS Euromaster Ltd
Brighton & Hove City Council,http://statistics.data.gov.uk/id/local-authority/00ML,Children`s & Education Serv,BVAEDU,Child Srvcs Adoption,FAA,Third Party Payments,F,Other Establishments,DA,28/09/2016,PAY00898872,CICL,City Clean,5786.93,Revenue,ATS Euromaster Ltd
Brighton & Hove City Council,http://statistics.data.gov.uk/id/local-authority/00ML,Planning and Development,BVAPLA,Economic Development,ECD,Supplies and Services,E,Grants n Subscriptions,DA,28/09/2016,PAY00898872,HTEN,Tenancy Services,149.43,Revenue,ATS Euromaster Ltd
Brighton & Hove City Council,http://statistics.data.gov.uk/id/local-authority/00ML,Housing General Fund,BVAHOG,Homelessness,HML,Premises Related,C,Rents Payable,MB,14/09/2016,PAY00895220,CHIC,Children In Care,520.00,Revenue,Attachment Works Ltd
Brighton & Hove City Council,http://statistics.data.gov.uk/id/local-authority/00ML,Children`s & Education Serv,BVAEDU,Child Srvcs - Fostering,FLF,Third Party Payments,F,Other Establishments,EK,09/09/2016,PAY00893792,CMNY,Communities and Equalities,2500.00,Revenue,Audioactive 2
Brighton & Hove City Council,http://statistics.data.gov.uk/id/local-authority/00ML,Housing General Fund,BVAHOG,Homelessness,HML,Premises Related,C,Rents Payable,EG,28/09/2016,PAY00899066,LIBS,Libraries,279.00,Revenue,Aurora World UK Ltd.
Brighton & Hove City Council,http://statistics.data.gov.uk/id/local-authority/00ML,Housing General Fund,BVAHOG,Homelessness,HML,Premises Related,C,Rents Payable,GD,07/09/2016,PAY00893160,DISS,Disability Services,337.32,Revenue,Autism Sussex Ltd
Brighton & Hove City Council,http://statistics.data.gov.uk/id/local-authority/00ML,Children`s & Education Serv,BVAEDU,Child Srvcs - Fostering,FLF,Third Party Payments,F,Other Establishments,MB,23/09/2016,PAY00898099,LDIS,Learning Disabilities,-1437.40,Revenue,Autism Sussex Ltd
Brighton & Hove City Council,http://statistics.data.gov.uk/id/local-authority/00ML,Housing General Fund,BVAHOG,Homelessness,HML,Premises Related,C,Rents Payable,FH,23/09/2016,PAY00898099,LDIS,Learning Disabilities,24697.60,Revenue,Autism Sussex Ltd
Brighton & Hove City Council,http://statistics.data.gov.uk/id/local-authority/00ML,Housing General Fund,BVAHOG,Homelessness,HML,Premises Related,C,Rents Payable,MB,28/09/2016,PAY00898943,LDIS,Learning Disabilities,-76.00,Revenue,Autism Sussex Ltd
Brighton & Hove City Council,http://statistics.data.gov.uk/id/local-authority/00ML,Children`s & Education Serv,BVAEDU,Child Srvcs - Fostering,FLF,Third Party Payments,F,Other Establishments,FH,28/09/2016,PAY00898943,LDIS,Learning Disabilities,8286.10,Revenue,Autism Sussex Ltd
Brighton & Hove City Council,http://statistics.data.gov.uk/id/local-authority/00ML,Housing General Fund,BVAHOG,Homelessness,HML,Premises Related,C,Rents Payable,MB,28/09/2016,PAY00898943,MENH,Mental Health Support,-270.00,Revenue,Autism Sussex Ltd
Brighton & Hove City Council,http://statistics.data.gov.uk/id/local-authority/00ML,Children`s & Education Serv,BVAEDU,Child Srvcs - Fostering,FLF,Third Party Payments,F,Other Establishments,FH,28/09/2016,PAY00898943,MENH,Mental Health Support,2128.50,Revenue,Autism Sussex Ltd
Brighton & Hove City Council,http://statistics.data.gov.uk/id/local-authority/00ML,Children`s & Education Serv,BVAEDU,Child Srvcs - Fostering,FLF,Third Party Payments,F,Other Establishments,MB,28/09/2016,PAY00898943,PHYS,Physical Support,-104.00,Revenue,Autism Sussex Ltd
Brighton & Hove City Council,http://statistics.data.gov.uk/id/local-authority/00ML,Children`s & Education Serv,BVAEDU,Child Srvcs - Fostering,FLF,Third Party Payments,F,Other Establishments,FH,28/09/2016,PAY00898943,PHYS,Physical Support,676.50,Revenue,Autism Sussex Ltd
Brighton & Hove City Council,http://statistics.data.gov.uk/id/local-authority/00ML,Children`s & Education Serv,BVAEDU,Child Srvcs - Fostering,FLF,Third Party Payments,F,Other Establishments,MB,07/09/2016,PAY00893508,COGN,Memory Cognition Support,-284.12,Revenue,Avery Healthcare - Birchwood Grange Care Home
Brighton & Hove City Council,http://statistics.data.gov.uk/id/local-authority/00ML,Children`s & Education Serv,BVAEDU,Child Srvcs - Fostering,FLF,Third Party Payments,F,Other Establishments,FH,07/09/2016,PAY00893508,COGN,Memory Cognition Support,4373.50,Revenue,Avery Healthcare - Birchwood Grange Care Home
Brighton & Hove City Council,http://statistics.data.gov.uk/id/local-authority/00ML,Housing General Fund,BVAHOG,Homelessness,HML,Premises Related,C,Rents Payable,EM,28/09/2016,PAY00898801,ICTA,ICT,1750.00,Revenue,Aviation Projects Ltd
Brighton & Hove City Council,http://statistics.data.gov.uk/id/local-authority/00ML,Housing General Fund,BVAHOG,Homelessness,HML,Premises Related,C,Rents Payable,CC,09/09/2016,PAY00894165,RPMU,Royal Pavilion and Museums,1333.74,Revenue,Aviva Investors Global Services Limited
Brighton & Hove City Council,http://statistics.data.gov.uk/id/local-authority/00ML,Housing General Fund,BVAHOG,Homelessness,HML,Premises Related,C,Rents Payable,CC,28/09/2016,PAY00899079,HPAI,Property & Investment,45000.00,Revenue,Aviva Investors Global Services Limited
Brighton & Hove City Council,http://statistics.data.gov.uk/id/local-authority/00ML,Housing General Fund,BVAHOG,Homelessness,HML,Premises Related,C,Rents Payable,CA,28/09/2016,PAY00899079,HPAI,Property & Investment,3657.25,Revenue,Aviva Investors Global Services Limited
Brighton & Hove City Council,http://statistics.data.gov.uk/id/local-authority/00ML,Housing General Fund,BVAHOG,Homelessness,HML,Premises Related,C,Rents Payable,CC,02/09/2016,PAY00892336,TAAS,Temp Accom and Allocations,950.00,Revenue,Avon Estates (London) Ltd
Brighton & Hove City Council,http://statistics.data.gov.uk/id/local-authority/00ML,Housing General Fund,BVAHOG,Homelessness,HML,Premises Related,C,Rents Payable,CA,09/09/2016,PAY00893793,TAAS,Temp Accom and Allocations,374.79,Revenue,Avon Estates (London) Ltd
Brighton & Hove City Council,http://statistics.data.gov.uk/id/local-authority/00ML,Children`s & Education Serv,BVAEDU,Child Srvcs - Fostering,FLF,Third Party Payments,F,Other Establishments,CC,30/09/2016,PAY00899601,TAAS,Temp Accom and Allocations,950.00,Revenue,Avon Estates (London) Ltd
Brighton & Hove City Council,http://statistics.data.gov.uk/id/local-authority/00ML,Children`s & Education Serv,BVAEDU,Child Srvcs - Fostering,FLF,Third Party Payments,F,Other Establishments,EM,21/09/2016,PAY00897045,ICTA,ICT,5700.00,Revenue,AWCFA Limited
Brighton & Hove City Council,http://statistics.data.gov.uk/id/local-authority/00ML,Children`s & Education Serv,BVAEDU,Child Srvcs Leaving Care,FAL,Third Party Payments,F,Other Establishments,CA,02/09/2016,PAY00892588,VENU,Venues,225.34,Revenue,Aztec Chemicals Limited
Brighton & Hove City Council,http://statistics.data.gov.uk/id/local-authority/00ML,Children`s & Education Serv,BVAEDU,Child Srvcs Leaving Care,FAL,Transfer Payments,G,Other Transfer Payments,MB,09/09/2016,PAY00893985,PHYS,Physical Support,-343.80,Revenue,B & J G Richardson Business Account
Brighton & Hove City Council,http://statistics.data.gov.uk/id/local-authority/00ML,Housing General Fund,BVAHOG,Homelessness,HML,Premises Related,C,Rents Payable,FH,09/09/2016,PAY00893985,PHYS,Physical Support,5459.64,Revenue,B & J G Richardson Business Account
Brighton & Hove City Council,http://statistics.data.gov.uk/id/local-authority/00ML,Housing General Fund,BVAHOG,Homelessness,HML,Premises Related,C,Rents Payable,CA,14/09/2016,PAY00894700,TAAS,Temp Accom and Allocations,1910.07,Revenue,B & Q Plc
Brighton & Hove City Council,http://statistics.data.gov.uk/id/local-authority/00ML,Children`s & Education Serv,BVAEDU,Child Srvcs - Fostering,FLF,Third Party Payments,F,Other Establishments,PE2L5,14/09/2016,PAY00894700,ASIT,Assessment and SIT,17.82,Capital,B & Q Plc
Brighton & Hove City Council,http://statistics.data.gov.uk/id/local-authority/00ML,Housing General Fund,BVAHOG,Hsing Benefits,HGB,Transfer Payments,G,Other Transfer Payments,CA,21/09/2016,PAY00896993,TAAS,Temp Accom and Allocations,322.98,Revenue,B & Q Plc
Brighton & Hove City Council,http://statistics.data.gov.uk/id/local-authority/00ML,Children`s & Education Serv,BVAEDU,Child Srvcs - Fostering,FLF,Third Party Payments,F,Other Establishments,CA,28/09/2016,PAY00898793,TAAS,Temp Accom and Allocations,306.94,Revenue,B & Q Plc
Brighton & Hove City Council,http://statistics.data.gov.uk/id/local-authority/00ML,Housing General Fund,BVAHOG,Homelessness,HML,Premises Related,C,Rents Payable,EF,28/09/2016,PAY00898793,CMNY,Communities and Equalities,99.63,Revenue,B & Q Plc
Brighton & Hove City Council,http://statistics.data.gov.uk/id/local-authority/00ML,Children`s & Education Serv,BVAEDU,Child Srvcs - Fostering,FLF,Third Party Payments,F,Other Establishments,EK,07/09/2016,PAY00893077,EYRS,Early Years,10173.23,Revenue,Baby Ducks Playgroup
Brighton & Hove City Council,http://statistics.data.gov.uk/id/local-authority/00ML,Children`s & Education Serv,BVAEDU,Child Srvcs - Fostering,FLF,Third Party Payments,F,Other Establishments,EK,09/09/2016,PAY00893819,EYRS,Early Years,1960.22,Revenue,Baby Ducks Playgroup
Brighton & Hove City Council,http://statistics.data.gov.uk/id/local-authority/00ML,Housing General Fund,BVAHOG,Homelessness,HML,Premises Related,C,Rents Payable,MB,16/09/2016,PAY00895947,LDIS,Learning Disabilities,-321.80,Revenue,Ballater House
Brighton & Hove City Council,http://statistics.data.gov.uk/id/local-authority/00ML,Children`s & Education Serv,BVAEDU,Child Srvcs Adoption,FAA,Third Party Payments,F,Other Establishments,FH,16/09/2016,PAY00895947,LDIS,Learning Disabilities,8909.25,Revenue,Ballater House
Brighton & Hove City Council,http://statistics.data.gov.uk/id/local-authority/00ML,Children`s & Education Serv,BVAEDU,Child Srvcs - Fostering,FLF,Third Party Payments,F,Other Establishments,EM,30/09/2016,PAY00899907,SPLE,Sport and Leisure,1155.00,Revenue,Bandstand Brighton Ltd
Brighton & Hove City Council,http://statistics.data.gov.uk/id/local-authority/00ML,Children`s & Education Serv,BVAEDU,Child Srvcs Leaving Care,FAL,Transfer Payments,G,Other Transfer Payments,CA,09/09/2016,PAY00894354,PROP,Property and Design,2121.85,Revenue,Banyard Maintenance Limited
Brighton & Hove City Council,http://statistics.data.gov.uk/id/local-authority/00ML,Housing General Fund,BVAHOG,Homelessness,HML,Premises Related,C,Rents Payable,CA,09/09/2016,PAY00894354,PROP,Property and Design,6468.92,Revenue,Banyard Maintenance Limited
Brighton & Hove City Council,http://statistics.data.gov.uk/id/local-authority/00ML,Housing General Fund,BVAHOG,Homelessness,HML,Premises Related,C,Rents Payable,CA,21/09/2016,PAY00897419,PROP,Property and Design,19277.62,Revenue,Banyard Maintenance Limited
Brighton & Hove City Council,http://statistics.data.gov.uk/id/local-authority/00ML,Children`s & Education Serv,BVAEDU,Child Srvcs Leaving Care,FAL,Transfer Payments,G,Other Transfer Payments,PBL5,30/09/2016,PAY00900108,OEDS,Other Education Support,4823.00,Capital,Banyard Maintenance Limited
Brighton & Hove City Council,http://statistics.data.gov.uk/id/local-authority/00ML,Children`s & Education Serv,BVAEDU,Child Srvcs - Othr LAC Svcs,FLX,Transfer Payments,G,Other Transfer Payments,FH,16/09/2016,PAY00896447,PHCM,PH Commissioning,3900.00,Revenue,Barbara Deacon-Hedges Limited
Brighton & Hove City Council,http://statistics.data.gov.uk/id/local-authority/00ML,Children`s & Education Serv,BVAEDU,Child Srvcs - Fostering,FLF,Third Party Payments,F,Other Establishments,MB,23/09/2016,PAY00897889,COGN,Memory Cognition Support,-2887.64,Revenue,Barchester Healthcare Ltd (Kingsland House)
Brighton & Hove City Council,http://statistics.data.gov.uk/id/local-authority/00ML,Children`s & Education Serv,BVAEDU,Child Srvcs - Fostering,FLF,Third Party Payments,F,Other Establishments,FH,23/09/2016,PAY00897889,COGN,Memory Cognition Support,13411.84,Revenue,Barchester Healthcare Ltd (Kingsland House)
Brighton & Hove City Council,http://statistics.data.gov.uk/id/local-authority/00ML,Children`s & Education Serv,BVAEDU,Child Srvcs - Fostering,FLF,Third Party Payments,F,Other Establishments,MB,23/09/2016,PAY00897889,PHYS,Physical Support,-901.00,Revenue,Barchester Healthcare Ltd (Kingsland House)
Brighton & Hove City Council,http://statistics.data.gov.uk/id/local-authority/00ML,Children`s & Education Serv,BVAEDU,Child Srvcs - Fostering,FLF,Third Party Payments,F,Other Establishments,FH,23/09/2016,PAY00897889,PHYS,Physical Support,4157.00,Revenue,Barchester Healthcare Ltd (Kingsland House)
Brighton & Hove City Council,http://statistics.data.gov.uk/id/local-authority/00ML,Housing General Fund,BVAHOG,Homelessness,HML,Premises Related,C,Rents Payable,EG,07/09/2016,PAY00893519,BERE,Bereavement,881.27,Revenue,Barleylands Glassworks Ltd t/a Ashes Into Glass
Brighton & Hove City Council,http://statistics.data.gov.uk/id/local-authority/00ML,Children`s & Education Serv,BVAEDU,Child Srvcs - Fostering,FLF,Third Party Payments,F,Other Establishments,EG,14/09/2016,PAY00895291,BERE,Bereavement,234.38,Revenue,Barleylands Glassworks Ltd t/a Ashes Into Glass
Brighton & Hove City Council,http://statistics.data.gov.uk/id/local-authority/00ML,Children`s & Education Serv,BVAEDU,Child Srvcs - Fostering,FLF,Third Party Payments,F,Other Establishments,MB,09/09/2016,PAY00893739,CHIC,Children In Care,3358.73,Revenue,Barnardo`s
Brighton & Hove City Council,http://statistics.data.gov.uk/id/local-authority/00ML,Children`s & Education Serv,BVAEDU,Child Srvcs - Fostering,FLF,Third Party Payments,F,Other Establishments,FH,09/09/2016,PAY00893739,CHIC,Children In Care,2050.00,Revenue,Barnardo`s
Brighton & Hove City Council,http://statistics.data.gov.uk/id/local-authority/00ML,Cultural and Related Serv,BVACUL,Culture and Heritage,CHG,Supplies and Services,E,Goods for Resale,FH,14/09/2016,PAY00894685,AVFM,Agency Placements\VFM,8054.68,Revenue,Barnardo`s
Brighton & Hove City Council,http://statistics.data.gov.uk/id/local-authority/00ML,Children`s & Education Serv,BVAEDU,Child Srvcs - Fostering,FLF,Third Party Payments,F,Other Establishments,FH,30/09/2016,PAY00899563,CHIC,Children In Care,1475.00,Revenue,Barnardo`s
Brighton & Hove City Council,http://statistics.data.gov.uk/id/local-authority/00ML,Adult Social Care,BVASOC,ASC Learning Disabilities,ALD,Third Party Payments,F,Other Establishments,DA,02/09/2016,PAY00892312,CICL,City Clean,120.00,Revenue,Barnes DAF
Brighton & Hove City Council,http://statistics.data.gov.uk/id/local-authority/00ML,Housing Revenue Account,BVAHOU,Hsing Strategy - HRA,HGT,Supplies and Services,E,Miscellaneous Expenses,DA,02/09/2016,PAY00892312,CIPK,City Parks,203.26,Revenue,Barnes DAF
Brighton & Hove City Council,http://statistics.data.gov.uk/id/local-authority/00ML,Children`s & Education Serv,BVAEDU,Child Srvcs Adoption,FAA,Third Party Payments,F,Other Establishments,DA,14/09/2016,PAY00894699,CICL,City Clean,528.05,Revenue,Barnes DAF
Brighton & Hove City Council,http://statistics.data.gov.uk/id/local-authority/00ML,Children`s & Education Serv,BVAEDU,Child Srvcs - Fostering,FLF,Third Party Payments,F,Other Establishments,CC,02/09/2016,PAY00892658,TAAS,Temp Accom and Allocations,1694.64,Revenue,Baron Developments Ltd
Brighton & Hove City Council,http://statistics.data.gov.uk/id/local-authority/00ML,Children`s & Education Serv,BVAEDU,Child Srvcs - Fostering,FLF,Third Party Payments,F,Other Establishments,CC,07/09/2016,PAY00893343,TAAS,Temp Accom and Allocations,2722.46,Revenue,Baron Developments Ltd
Brighton & Hove City Council,http://statistics.data.gov.uk/id/local-authority/00ML,Children`s & Education Serv,BVAEDU,Child Srvcs - Fostering,FLF,Third Party Payments,F,Other Establishments,CC,14/09/2016,PAY00895075,TAAS,Temp Accom and Allocations,2541.96,Revenue,Baron Developments Ltd
Brighton & Hove City Council,http://statistics.data.gov.uk/id/local-authority/00ML,Housing General Fund,BVAHOG,Homelessness,HML,Premises Related,C,Rents Payable,CC,16/09/2016,PAY00896233,TAAS,Temp Accom and Allocations,1875.14,Revenue,Baron Developments Ltd
Brighton & Hove City Council,http://statistics.data.gov.uk/id/local-authority/00ML,Children`s & Education Serv,BVAEDU,Child Srvcs - Fostering,FLF,Third Party Payments,F,Other Establishments,CC,21/09/2016,PAY00897343,TAAS,Temp Accom and Allocations,847.32,Revenue,Baron Developments Ltd
Brighton & Hove City Council,http://statistics.data.gov.uk/id/local-authority/00ML,Children`s & Education Serv,BVAEDU,Child Srvcs - Fostering,FLF,Third Party Payments,F,Other Establishments,CC,23/09/2016,PAY00898341,TAAS,Temp Accom and Allocations,847.32,Revenue,Baron Developments Ltd
Brighton & Hove City Council,http://statistics.data.gov.uk/id/local-authority/00ML,Central Support and Overheads,BVACEN,Support Services (SSC),PPT,Supplies and Services,E,Miscellaneous Expenses,CC,28/09/2016,PAY00899153,TAAS,Temp Accom and Allocations,2541.96,Revenue,Baron Developments Ltd
Brighton & Hove City Council,http://statistics.data.gov.uk/id/local-authority/00ML,Cultural and Related Serv,BVACUL,Culture and Heritage,CHG,Supplies and Services,E,Miscellaneous Expenses,CC,30/09/2016,PAY00900011,TAAS,Temp Accom and Allocations,1497.32,Revenue,Baron Developments Ltd
Brighton & Hove City Council,http://statistics.data.gov.uk/id/local-authority/00ML,Highways and Transportation,BVAHRT,Parking Services,PRK,Customer n Client Receipts,M,Fees n Charges,CC,07/09/2016,PAY00893189,TAAS,Temp Accom and Allocations,847.32,Revenue,Baron Management Ltd
Brighton & Hove City Council,http://statistics.data.gov.uk/id/local-authority/00ML,Children`s & Education Serv,BVAEDU,Child Srvcs Adoption,FAA,Third Party Payments,F,Other Establishments,CC,09/09/2016,PAY00894045,TAAS,Temp Accom and Allocations,2817.67,Revenue,Baron Management Ltd
Brighton & Hove City Council,http://statistics.data.gov.uk/id/local-authority/00ML,Children`s & Education Serv,BVAEDU,Child Srvcs - Fostering,FLF,Third Party Payments,F,Other Establishments,CC,14/09/2016,PAY00894887,TAAS,Temp Accom and Allocations,12403.98,Revenue,Baron Management Ltd
Brighton & Hove City Council,http://statistics.data.gov.uk/id/local-authority/00ML,Children`s & Education Serv,BVAEDU,Child Srvcs - Fostering,FLF,Third Party Payments,F,Other Establishments,CA,14/09/2016,PAY00894887,TAAS,Temp Accom and Allocations,1287.00,Revenue,Baron Management Ltd
Brighton & Hove City Council,http://statistics.data.gov.uk/id/local-authority/00ML,Housing General Fund,BVAHOG,Homelessness,HML,Premises Related,C,Rents Payable,CC,16/09/2016,PAY00895821,TAAS,Temp Accom and Allocations,1027.82,Revenue,Baron Management Ltd
Brighton & Hove City Council,http://statistics.data.gov.uk/id/local-authority/00ML,Children`s & Education Serv,BVAEDU,Child Srvcs - Fostering,FLF,Third Party Payments,F,Other Establishments,CC,23/09/2016,PAY00898147,TAAS,Temp Accom and Allocations,847.32,Revenue,Baron Management Ltd
Brighton & Hove City Council,http://statistics.data.gov.uk/id/local-authority/00ML,Children`s & Education Serv,BVAEDU,Child Srvcs Leaving Care,FAL,Transfer Payments,G,Other Transfer Payments,CA,28/09/2016,PAY00898983,TAAS,Temp Accom and Allocations,635.00,Revenue,Baron Management Ltd
Brighton & Hove City Council,http://statistics.data.gov.uk/id/local-authority/00ML,Housing General Fund,BVAHOG,Homelessness,HML,Premises Related,C,Rents Payable,CC,30/09/2016,PAY00899818,TAAS,Temp Accom and Allocations,847.32,Revenue,Baron Management Ltd
Brighton & Hove City Council,http://statistics.data.gov.uk/id/local-authority/00ML,Housing General Fund,BVAHOG,Homelessness,HML,Premises Related,C,Rents Payable,CC,09/09/2016,PAY00894514,TAAS,Temp Accom and Allocations,3128.40,Revenue,Barons Bay Limited
Brighton & Hove City Council,http://statistics.data.gov.uk/id/local-authority/00ML,Housing General Fund,BVAHOG,Homelessness,HML,Premises Related,C,Rents Payable,MB,28/09/2016,PAY00898733,PHYS,Physical Support,-653.50,Revenue,Barons Down Nursing Home
Brighton & Hove City Council,http://statistics.data.gov.uk/id/local-authority/00ML,Children`s & Education Serv,BVAEDU,Child Srvcs - Fostering,FLF,Third Party Payments,F,Other Establishments,FH,28/09/2016,PAY00898733,PHYS,Physical Support,2438.45,Revenue,Barons Down Nursing Home
Brighton & Hove City Council,http://statistics.data.gov.uk/id/local-authority/00ML,Children`s & Education Serv,BVAEDU,Child Srvcs - Fostering,FLF,Third Party Payments,F,Other Establishments,MB,30/09/2016,PAY00899753,LDIS,Learning Disabilities,-522.80,Revenue,Barrington House Ltd
Brighton & Hove City Council,http://statistics.data.gov.uk/id/local-authority/00ML,Children`s & Education Serv,BVAEDU,Child Srvcs - Fostering,FLF,Third Party Payments,F,Other Establishments,FH,30/09/2016,PAY00899753,LDIS,Learning Disabilities,1656.00,Revenue,Barrington House Ltd
Brighton & Hove City Council,http://statistics.data.gov.uk/id/local-authority/00ML,Children`s & Education Serv,BVAEDU,Child Srvcs - Fostering,FLF,Third Party Payments,F,Other Establishments,FC,21/09/2016,PAY00897395,PHCM,PH Commissioning,2140.30,Revenue,Barts Health NHS Trust
Brighton & Hove City Council,http://statistics.data.gov.uk/id/local-authority/00ML,Children`s & Education Serv,BVAEDU,Child Srvcs - Fostering,FLF,Third Party Payments,F,Other Establishments,EK,07/09/2016,PAY00893387,EYRS,Early Years,423.84,Revenue,Basinghall Electric Company (Brighton) Limited
Brighton & Hove City Council,http://statistics.data.gov.uk/id/local-authority/00ML,Children`s & Education Serv,BVAEDU,Child Srvcs Leaving Care,FAL,Third Party Payments,F,Other Establishments,FA,21/09/2016,PAY00897565,SPLE,Sport and Leisure,1325.53,Revenue,BC Groundcare Limited
Brighton & Hove City Council,http://statistics.data.gov.uk/id/local-authority/00ML,Children`s & Education Serv,BVAEDU,Child Srvcs Leaving Care,FAL,Transfer Payments,G,Other Transfer Payments,EM,02/09/2016,PAY00892743,FINS,Financial Services,3475.69,Revenue,BDI Securities UK Ltd
Brighton & Hove City Council,http://statistics.data.gov.uk/id/local-authority/00ML,Housing General Fund,BVAHOG,Homelessness,HML,Premises Related,C,Rents Payable,EM,02/09/2016,PAY00892743,RPMU,Royal Pavilion and Museums,1100.00,Revenue,BDI Securities UK Ltd
Brighton & Hove City Council,http://statistics.data.gov.uk/id/local-authority/00ML,Housing General Fund,BVAHOG,Homelessness,HML,Premises Related,C,Rents Payable,MB,02/09/2016,PAY00892743,PARK,Parking,350.00,Revenue,BDI Securities UK Ltd
Brighton & Hove City Council,http://statistics.data.gov.uk/id/local-authority/00ML,Children`s & Education Serv,BVAEDU,Child Srvcs - Fostering,FLF,Third Party Payments,F,Other Establishments,EM,09/09/2016,PAY00894366,FINS,Financial Services,5310.37,Revenue,BDI Securities UK Ltd
Brighton & Hove City Council,http://statistics.data.gov.uk/id/local-authority/00ML,Children`s & Education Serv,BVAEDU,Child Srvcs - Fostering,FLF,Third Party Payments,F,Other Establishments,EM,09/09/2016,PAY00894366,RPMU,Royal Pavilion and Museums,1100.00,Revenue,BDI Securities UK Ltd
Brighton & Hove City Council,http://statistics.data.gov.uk/id/local-authority/00ML,Children`s & Education Serv,BVAEDU,Child Srvcs - Fostering,FLF,Third Party Payments,F,Other Establishments,MB,09/09/2016,PAY00894366,PARK,Parking,350.00,Revenue,BDI Securities UK Ltd
Brighton & Hove City Council,http://statistics.data.gov.uk/id/local-authority/00ML,Housing General Fund,BVAHOG,Homelessness,HML,Premises Related,C,Rents Payable,EM,09/09/2016,PAY00894366,NBHC,Non Council,300.00,Revenue,BDI Securities UK Ltd
Brighton & Hove City Council,http://statistics.data.gov.uk/id/local-authority/00ML,Children`s & Education Serv,BVAEDU,Child Srvcs - Fostering,FLF,Third Party Payments,F,Other Establishments,EF,16/09/2016,PAY00896456,FINS,Financial Services,25677.66,Revenue,BDI Securities UK Ltd
Brighton & Hove City Council,http://statistics.data.gov.uk/id/local-authority/00ML,Housing General Fund,BVAHOG,Homelessness,HML,Premises Related,C,Rents Payable,EM,16/09/2016,PAY00896457,FINS,Financial Services,3044.00,Revenue,BDI Securities UK Ltd
Brighton & Hove City Council,http://statistics.data.gov.uk/id/local-authority/00ML,Children`s & Education Serv,BVAEDU,Child Srvcs Adoption,FAA,Third Party Payments,F,Other Establishments,MA,16/09/2016,PAY00896457,VENU,Venues,30000.00,Revenue,BDI Securities UK Ltd
Brighton & Hove City Council,http://statistics.data.gov.uk/id/local-authority/00ML,Housing General Fund,BVAHOG,Homelessness,HML,Premises Related,C,Rents Payable,EM,16/09/2016,PAY00896457,RPMU,Royal Pavilion and Museums,1100.00,Revenue,BDI Securities UK Ltd
Brighton & Hove City Council,http://statistics.data.gov.uk/id/local-authority/00ML,Children`s & Education Serv,BVAEDU,Child Srvcs - Fostering,FLF,Third Party Payments,F,Other Establishments,MB,16/09/2016,PAY00896457,PARK,Parking,350.00,Revenue,BDI Securities UK Ltd
Brighton & Hove City Council,http://statistics.data.gov.uk/id/local-authority/00ML,Central Services to the Public,BVACEN,Support Services (SSC),PPT,Supplies and Services,E,Services,EM,23/09/2016,PAY00898457,FINS,Financial Services,5019.76,Revenue,BDI Securities UK Ltd
Brighton & Hove City Council,http://statistics.data.gov.uk/id/local-authority/00ML,Children`s & Education Serv,BVAEDU,Child Srvcs - Fostering,FLF,Third Party Payments,F,Other Establishments,EM,23/09/2016,PAY00898457,RPMU,Royal Pavilion and Museums,1100.00,Revenue,BDI Securities UK Ltd
Brighton & Hove City Council,http://statistics.data.gov.uk/id/local-authority/00ML,Children`s & Education Serv,BVAEDU,Child Srvcs - Fostering,FLF,Third Party Payments,F,Other Establishments,MB,23/09/2016,PAY00898457,PARK,Parking,350.00,Revenue,BDI Securities UK Ltd
Brighton & Hove City Council,http://statistics.data.gov.uk/id/local-authority/00ML,Children`s & Education Serv,BVAEDU,Child Srvcs - Fostering,FLF,Third Party Payments,F,Other Establishments,EM,23/09/2016,PAY00898457,NBHC,Non Council,1741.00,Revenue,BDI Securities UK Ltd
Brighton & Hove City Council,http://statistics.data.gov.uk/id/local-authority/00ML,Children`s & Education Serv,BVAEDU,Child Srvcs - Fostering,FLF,Third Party Payments,F,Other Establishments,EF,28/09/2016,PAY00899232,FINS,Financial Services,545.05,Revenue,BDI Securities UK Ltd
Brighton & Hove City Council,http://statistics.data.gov.uk/id/local-authority/00ML,Children`s & Education Serv,BVAEDU,Child Srvcs Leaving Care,FAL,Transfer Payments,G,Other Transfer Payments,EM,30/09/2016,PAY00900125,FINS,Financial Services,4114.52,Revenue,BDI Securities UK Ltd
Brighton & Hove City Council,http://statistics.data.gov.uk/id/local-authority/00ML,Children`s & Education Serv,BVAEDU,Child Srvcs - Fostering,FLF,Third Party Payments,F,Other Establishments,EM,30/09/2016,PAY00900125,RPMU,Royal Pavilion and Museums,1100.00,Revenue,BDI Securities UK Ltd
Brighton & Hove City Council,http://statistics.data.gov.uk/id/local-authority/00ML,Children`s & Education Serv,BVAEDU,Child Srvcs Leaving Care,FAL,Transfer Payments,G,Other Transfer Payments,MB,30/09/2016,PAY00900125,PARK,Parking,350.00,Revenue,BDI Securities UK Ltd
Brighton & Hove City Council,http://statistics.data.gov.uk/id/local-authority/00ML,Children`s & Education Serv,BVAEDU,Child Srvcs - Fostering,FLF,Third Party Payments,F,Other Establishments,MB,28/09/2016,PAY00899177,SORY,Sensory Support,-522.80,Revenue,Beachlands Care Ltd
Brighton & Hove City Council,http://statistics.data.gov.uk/id/local-authority/00ML,Housing General Fund,BVAHOG,Homelessness,HML,Premises Related,C,Rents Payable,FH,28/09/2016,PAY00899177,SORY,Sensory Support,1572.00,Revenue,Beachlands Care Ltd
Brighton & Hove City Council,http://statistics.data.gov.uk/id/local-authority/00ML,Children`s & Education Serv,BVAEDU,Child Srvcs - Fostering,FLF,Third Party Payments,F,Other Establishments,FH,23/09/2016,PAY00897872,MENH,Mental Health Support,4407.04,Revenue,Beachside Rest Home
Brighton & Hove City Council,http://statistics.data.gov.uk/id/local-authority/00ML,Children`s & Education Serv,BVAEDU,Child Srvcs - Fostering,FLF,Third Party Payments,F,Other Establishments,MB,28/09/2016,PAY00898839,MENH,Mental Health Support,-1007.28,Revenue,Beachside Rest Home
Brighton & Hove City Council,http://statistics.data.gov.uk/id/local-authority/00ML,Children`s & Education Serv,BVAEDU,Child Srvcs - Fostering,FLF,Third Party Payments,F,Other Establishments,FH,28/09/2016,PAY00898839,MENH,Mental Health Support,3992.86,Revenue,Beachside Rest Home
Brighton & Hove City Council,http://statistics.data.gov.uk/id/local-authority/00ML,Children`s & Education Serv,BVAEDU,Child Srvcs - Fostering,FLF,Third Party Payments,F,Other Establishments,MB,28/09/2016,PAY00899352,CHIC,Children In Care,576.00,Revenue,Beacon House Psychological Services
Brighton & Hove City Council,http://statistics.data.gov.uk/id/local-authority/00ML,Children`s & Education Serv,BVAEDU,Child Srvcs - Other Fam Supp,FFX,Transfer Payments,G,Other Transfer Payments,FH,14/09/2016,PAY00895199,FINS,Financial Services,5845.80,Revenue,Beaumont NH Ltd
Brighton & Hove City Council,http://statistics.data.gov.uk/id/local-authority/00ML,Central Support and Overheads,BVACEN,Holding Accounts,PPH,Premises Related,C,Repair Maint n Alterations,MB,23/09/2016,PAY00898504,PHYS,Physical Support,-4001.44,Revenue,Beaumont NH Ltd
Brighton & Hove City Council,http://statistics.data.gov.uk/id/local-authority/00ML,Central Support and Overheads,BVACEN,Support Services (SSC),PPT,Premises Related,C,Repair Maint n Alterations,FH,23/09/2016,PAY00898504,PHYS,Physical Support,20073.80,Revenue,Beaumont NH Ltd
Brighton & Hove City Council,http://statistics.data.gov.uk/id/local-authority/00ML,Housing General Fund,BVAHOG,Homelessness,HML,Premises Related,C,Rents Payable,EK,07/09/2016,PAY00892995,EYRS,Early Years,1741.95,Revenue,BeCCA Pre-School Playgroup
Brighton & Hove City Council,http://statistics.data.gov.uk/id/local-authority/00ML,Children`s & Education Serv,BVAEDU,Child Srvcs - Fostering,FLF,Third Party Payments,F,Other Establishments,EK,09/09/2016,PAY00893746,EYRS,Early Years,7300.13,Revenue,BeCCA Pre-School Playgroup
Brighton & Hove City Council,http://statistics.data.gov.uk/id/local-authority/00ML,Adult Social Care,BVASOC,ASC Memory Cognition Support,MEM,Customer n Client Receipts,M,Fees n Charges,MB,23/09/2016,PAY00897855,LDIS,Learning Disabilities,-749.20,Revenue,Beech Lodge
Brighton & Hove City Council,http://statistics.data.gov.uk/id/local-authority/00ML,Adult Social Care,BVASOC,ASC Memory Cognition Support,MEM,Third Party Payments,F,Other Establishments,FH,23/09/2016,PAY00897855,LDIS,Learning Disabilities,10916.72,Revenue,Beech Lodge
Brighton & Hove City Council,http://statistics.data.gov.uk/id/local-authority/00ML,Planning and Development,BVAPLA,Economic Development,ECD,Supplies and Services,E,Grants n Subscriptions,MB,23/09/2016,PAY00897855,PHYS,Physical Support,-337.60,Revenue,Beech Lodge
Brighton & Hove City Council,http://statistics.data.gov.uk/id/local-authority/00ML,Housing General Fund,BVAHOG,Homelessness,HML,Premises Related,C,Rents Payable,FH,23/09/2016,PAY00897855,PHYS,Physical Support,6581.40,Revenue,Beech Lodge
Brighton & Hove City Council,http://statistics.data.gov.uk/id/local-authority/00ML,Children`s & Education Serv,BVAEDU,Child Srvcs - Fostering,FLF,Third Party Payments,F,Other Establishments,GD,02/09/2016,PAY00892518,FAMP,Families\Prevention,925.00,Revenue,Belvoir Lettings
Brighton & Hove City Council,http://statistics.data.gov.uk/id/local-authority/00ML,Children`s & Education Serv,BVAEDU,Child Srvcs - Fostering,FLF,Third Party Payments,F,Other Establishments,CA,23/09/2016,PAY00898032,CIPK,City Parks,331.36,Revenue,Berendsen UK Ltd
Brighton & Hove City Council,http://statistics.data.gov.uk/id/local-authority/00ML,Housing General Fund,BVAHOG,Homelessness,HML,Premises Related,C,Rents Payable,CA,23/09/2016,PAY00898032,CICL,City Clean,259.12,Revenue,Berendsen UK Ltd
Brighton & Hove City Council,http://statistics.data.gov.uk/id/local-authority/00ML,Children`s & Education Serv,BVAEDU,Child Srvcs - Fostering,FLF,Third Party Payments,F,Other Establishments,EF,07/09/2016,PAY00893204,LEGS,Legal Services,31902.00,Revenue,Bevan Brittan LLP
Brighton & Hove City Council,http://statistics.data.gov.uk/id/local-authority/00ML,Children`s & Education Serv,BVAEDU,Child Srvcs - Fostering,FLF,Third Party Payments,F,Other Establishments,EA,30/09/2016,PAY00899558,CHIC,Children In Care,600.00,Revenue,Bevern Bridge Stables
Brighton & Hove City Council,http://statistics.data.gov.uk/id/local-authority/00ML,Children`s & Education Serv,BVAEDU,Child Srvcs - Fostering,FLF,Third Party Payments,F,Other Establishments,EB,02/09/2016,PAY00892349,RCOP,Resource Centres Older People,222.40,Revenue,BFS Group Ltd t/a Bidvest Foodservice
Brighton & Hove City Council,http://statistics.data.gov.uk/id/local-authority/00ML,Children`s & Education Serv,BVAEDU,Child Srvcs - Other Fam Supp,FFX,Transfer Payments,G,Other Transfer Payments,EB,02/09/2016,PAY00892349,ASSA,Hostel Accommodation,211.92,Revenue,BFS Group Ltd t/a Bidvest Foodservice
Brighton & Hove City Council,http://statistics.data.gov.uk/id/local-authority/00ML,Children`s & Education Serv,BVAEDU,Child Srvcs - Fostering,FLF,Third Party Payments,F,Other Establishments,EB,07/09/2016,PAY00893084,RCOP,Resource Centres Older People,545.62,Revenue,BFS Group Ltd t/a Bidvest Foodservice
Brighton & Hove City Council,http://statistics.data.gov.uk/id/local-authority/00ML,Children`s & Education Serv,BVAEDU,Child Srvcs Adoption,FAA,Third Party Payments,F,Other Establishments,EB,07/09/2016,PAY00893084,RCOP,Resource Centres Older People,202.47,Revenue,BFS Group Ltd t/a Bidvest Foodservice
Brighton & Hove City Council,http://statistics.data.gov.uk/id/local-authority/00ML,Children`s & Education Serv,BVAEDU,Child Srvcs - Fostering,FLF,Third Party Payments,F,Other Establishments,EB,07/09/2016,PAY00893084,ASSA,Hostel Accommodation,261.02,Revenue,BFS Group Ltd t/a Bidvest Foodservice
Brighton & Hove City Council,http://statistics.data.gov.uk/id/local-authority/00ML,Children`s & Education Serv,BVAEDU,Child Srvcs - Fostering,FLF,Third Party Payments,F,Other Establishments,EB,09/09/2016,PAY00893826,RCOP,Resource Centres Older People,273.34,Revenue,BFS Group Ltd t/a Bidvest Foodservice
Brighton & Hove City Council,http://statistics.data.gov.uk/id/local-authority/00ML,Children`s & Education Serv,BVAEDU,Child Srvcs - Fostering,FLF,Third Party Payments,F,Other Establishments,EB,09/09/2016,PAY00893826,RCOP,Resource Centres Older People,262.15,Revenue,BFS Group Ltd t/a Bidvest Foodservice
Brighton & Hove City Council,http://statistics.data.gov.uk/id/local-authority/00ML,Children`s & Education Serv,BVAEDU,Child Srvcs - Fostering,FLF,Third Party Payments,F,Other Establishments,EB,14/09/2016,PAY00894780,RCOP,Resource Centres Older People,412.52,Revenue,BFS Group Ltd t/a Bidvest Foodservice
Brighton & Hove City Council,http://statistics.data.gov.uk/id/local-authority/00ML,Children`s & Education Serv,BVAEDU,Child Srvcs - Fostering,FLF,Third Party Payments,F,Other Establishments,EB,14/09/2016,PAY00894780,RCOP,Resource Centres Older People,326.85,Revenue,BFS Group Ltd t/a Bidvest Foodservice
Brighton & Hove City Council,http://statistics.data.gov.uk/id/local-authority/00ML,Housing Revenue Account,BVAHOU,Hsing Strategy - HRA,HGT,Supplies and Services,E,Miscellaneous Expenses,EB,16/09/2016,PAY00895621,RCOP,Resource Centres Older People,95.08,Revenue,BFS Group Ltd t/a Bidvest Foodservice
Brighton & Hove City Council,http://statistics.data.gov.uk/id/local-authority/00ML,Housing Revenue Account,BVAHOU,Hsing Strategy - HRA,HGT,Supplies and Services,E,Miscellaneous Expenses,EB,16/09/2016,PAY00895621,RCOP,Resource Centres Older People,230.31,Revenue,BFS Group Ltd t/a Bidvest Foodservice
Brighton & Hove City Council,http://statistics.data.gov.uk/id/local-authority/00ML,Housing Revenue Account,BVAHOU,Hsing Management - HRA,HGM,Supplies and Services,E,Miscellaneous Expenses,EB,16/09/2016,PAY00895621,ASSA,Hostel Accommodation,152.92,Revenue,BFS Group Ltd t/a Bidvest Foodservice
Brighton & Hove City Council,http://statistics.data.gov.uk/id/local-authority/00ML,Children`s & Education Serv,BVAEDU,Ed Ed Other Other,ENF,Third Party Payments,F,Other Establishments,EB,21/09/2016,PAY00897078,RCOP,Resource Centres Older People,181.21,Revenue,BFS Group Ltd t/a Bidvest Foodservice
Brighton & Hove City Council,http://statistics.data.gov.uk/id/local-authority/00ML,Children`s & Education Serv,BVAEDU,Child Srvcs - Fostering,FLF,Third Party Payments,F,Other Establishments,EB,21/09/2016,PAY00897078,ASSA,Hostel Accommodation,198.35,Revenue,BFS Group Ltd t/a Bidvest Foodservice
Brighton & Hove City Council,http://statistics.data.gov.uk/id/local-authority/00ML,Children`s & Education Serv,BVAEDU,Child Srvcs - Fostering,FLF,Third Party Payments,F,Other Establishments,EB,23/09/2016,PAY00897901,RCOP,Resource Centres Older People,580.32,Revenue,BFS Group Ltd t/a Bidvest Foodservice
Brighton & Hove City Council,http://statistics.data.gov.uk/id/local-authority/00ML,Children`s & Education Serv,BVAEDU,Child Srvcs - Fostering,FLF,Third Party Payments,F,Other Establishments,EB,23/09/2016,PAY00897901,RCOP,Resource Centres Older People,156.89,Revenue,BFS Group Ltd t/a Bidvest Foodservice
Brighton & Hove City Council,http://statistics.data.gov.uk/id/local-authority/00ML,Housing General Fund,BVAHOG,Homelessness,HML,Premises Related,C,Rents Payable,EB,28/09/2016,PAY00898876,RCOP,Resource Centres Older People,36.88,Revenue,BFS Group Ltd t/a Bidvest Foodservice
Brighton & Hove City Council,http://statistics.data.gov.uk/id/local-authority/00ML,Environment & Regulatory Serv,BVAERS,Cem Crem and Mortuary Services,CCM,Supplies and Services,E,Services,EB,28/09/2016,PAY00898876,ASSA,Hostel Accommodation,361.33,Revenue,BFS Group Ltd t/a Bidvest Foodservice
Brighton & Hove City Council,http://statistics.data.gov.uk/id/local-authority/00ML,Children`s & Education Serv,BVAEDU,Management Services (DEC),MGT,Supplies and Services,E,Services,EB,30/09/2016,PAY00899618,RCOP,Resource Centres Older People,530.60,Revenue,BFS Group Ltd t/a Bidvest Foodservice
Brighton & Hove City Council,http://statistics.data.gov.uk/id/local-authority/00ML,Children`s & Education Serv,BVAEDU,Child Srvcs - Other Fam Supp,FFX,Transfer Payments,G,Other Transfer Payments,EB,30/09/2016,PAY00899618,RCOP,Resource Centres Older People,415.92,Revenue,BFS Group Ltd t/a Bidvest Foodservice
Brighton & Hove City Council,http://statistics.data.gov.uk/id/local-authority/00ML,Children`s & Education Serv,BVAEDU,Child Srvcs - Othr LAC Svcs,FLX,Transfer Payments,G,Other Transfer Payments,CH,30/09/2016,PAY00899618,ASSA,Hostel Accommodation,60.94,Revenue,BFS Group Ltd t/a Bidvest Foodservice
Brighton & Hove City Council,http://statistics.data.gov.uk/id/local-authority/00ML,Cultural and Related Serv,BVACUL,Culture and Heritage,CHG,Supplies and Services,E,Services,EA,21/09/2016,PAY00897578,SUPE,Supported Employment,493.40,Revenue,BGE SA
Brighton & Hove City Council,http://statistics.data.gov.uk/id/local-authority/00ML,Non-BHC Organisations,BVANON,Trusts,TRT,Supplies and Services,E,Miscellaneous Expenses,FH,07/09/2016,PAY00893088,PHCM,PH Commissioning,12000.00,Revenue,BHAFC Albion in the Community
Brighton & Hove City Council,http://statistics.data.gov.uk/id/local-authority/00ML,Housing General Fund,BVAHOG,Homelessness,HML,Supplies and Services,E,Services,EH,07/09/2016,PAY00893043,LIBS,Libraries,6000.00,Revenue,Bibliotheca Ltd
Brighton & Hove City Council,http://statistics.data.gov.uk/id/local-authority/00ML,Children`s & Education Serv,BVAEDU,Ed Ed Other Other,ENF,Supplies and Services,E,Equip't Furniture n Materials,FH,14/09/2016,PAY00894686,LDIS,Learning Disabilities,69.44,Revenue,Big Box Storage Centres Ltd
Brighton & Hove City Council,http://statistics.data.gov.uk/id/local-authority/00ML,Adult Social Care,BVASOC,ASC Physical Support,PHY,Customer n Client Receipts,M,Fees n Charges,FH,14/09/2016,PAY00894686,MENH,Mental Health Support,470.69,Revenue,Big Box Storage Centres Ltd
Brighton & Hove City Council,http://statistics.data.gov.uk/id/local-authority/00ML,Adult Social Care,BVASOC,ASC Physical Support,PHY,Third Party Payments,F,Other Establishments,MB,02/09/2016,PAY00892331,COGN,Memory Cognition Support,-8643.19,Revenue,Birchgrove Healthcare (Sussex) Ltd
Brighton & Hove City Council,http://statistics.data.gov.uk/id/local-authority/00ML,Adult Social Care,BVASOC,ASC Mental Health Support,MHP,Third Party Payments,F,Other Establishments,FH,02/09/2016,PAY00892331,COGN,Memory Cognition Support,38678.57,Revenue,Birchgrove Healthcare (Sussex) Ltd
Brighton & Hove City Council,http://statistics.data.gov.uk/id/local-authority/00ML,Children`s & Education Serv,BVAEDU,Ed EY PVI,ENP,Supplies and Services,E,Grants n Subscriptions,FH,02/09/2016,PAY00892331,FINS,Financial Services,-6515.95,Revenue,Birchgrove Healthcare (Sussex) Ltd
Brighton & Hove City Council,http://statistics.data.gov.uk/id/local-authority/00ML,Children`s & Education Serv,BVAEDU,Ed Special Ed,EKE,Third Party Payments,F,Other Agencies,EM,02/09/2016,PAY00892331,NBHC,Non Council,138.05,Revenue,Birchgrove Healthcare (Sussex) Ltd
Brighton & Hove City Council,http://statistics.data.gov.uk/id/local-authority/00ML,Cultural and Related Serv,BVACUL,Culture and Heritage,CHG,Premises Related,C,Repair Maint n Alterations,MB,07/09/2016,PAY00893038,PHYS,Physical Support,5571.03,Revenue,Birchgrove Healthcare (Sussex) Ltd
Brighton & Hove City Council,http://statistics.data.gov.uk/id/local-authority/00ML,Adult Social Care,BVASOC,ASC Memory Cognition Support,MEM,Customer n Client Receipts,M,Fees n Charges,FH,14/09/2016,PAY00894736,FINS,Financial Services,1557.28,Revenue,Birchgrove Healthcare (Sussex) Ltd
Brighton & Hove City Council,http://statistics.data.gov.uk/id/local-authority/00ML,Adult Social Care,BVASOC,ASC Memory Cognition Support,MEM,Third Party Payments,F,Other Establishments,MB,23/09/2016,PAY00897854,COGN,Memory Cognition Support,-5824.20,Revenue,Birchgrove Healthcare (Sussex) Ltd
Brighton & Hove City Council,http://statistics.data.gov.uk/id/local-authority/00ML,Adult Social Care,BVASOC,ASC Physical Support,PHY,Customer n Client Receipts,M,Fees n Charges,FH,23/09/2016,PAY00897854,COGN,Memory Cognition Support,13973.76,Revenue,Birchgrove Healthcare (Sussex) Ltd
Brighton & Hove City Council,http://statistics.data.gov.uk/id/local-authority/00ML,Adult Social Care,BVASOC,ASC Physical Support,PHY,Third Party Payments,F,Other Establishments,MB,23/09/2016,PAY00897854,PHYS,Physical Support,-10141.26,Revenue,Birchgrove Healthcare (Sussex) Ltd
Brighton & Hove City Council,http://statistics.data.gov.uk/id/local-authority/00ML,Central Support and Overheads,BVACEN,Support Services (SSC),PPT,Third Party Payments,F,Other Establishments,FH,23/09/2016,PAY00897854,PHYS,Physical Support,49031.74,Revenue,Birchgrove Healthcare (Sussex) Ltd
Brighton & Hove City Council,http://statistics.data.gov.uk/id/local-authority/00ML,Children`s & Education Serv,BVAEDU,Ed EY PVI,ENP,Supplies and Services,E,Grants n Subscriptions,FH,28/09/2016,PAY00898824,FINS,Financial Services,1235.28,Revenue,Birchgrove Healthcare (Sussex) Ltd
Brighton & Hove City Council,http://statistics.data.gov.uk/id/local-authority/00ML,Children`s & Education Serv,BVAEDU,Ed EY PVI,ENP,Supplies and Services,E,Grants n Subscriptions,MB,30/09/2016,PAY00899597,COGN,Memory Cognition Support,3398.20,Revenue,Birchgrove Healthcare (Sussex) Ltd
Brighton & Hove City Council,http://statistics.data.gov.uk/id/local-authority/00ML,Children`s & Education Serv,BVAEDU,Ed EY PVI,ENP,Supplies and Services,E,Grants n Subscriptions,EM,02/09/2016,PAY00892519,TAAS,Temp Accom and Allocations,3163.25,Revenue,Bishop`s Move
Brighton & Hove City Council,http://statistics.data.gov.uk/id/local-authority/00ML,Children`s & Education Serv,BVAEDU,Ed EY PVI,ENP,Supplies and Services,E,Grants n Subscriptions,CB,09/09/2016,PAY00893774,SUPE,Supported Employment,293.08,Revenue,Bizspace Ltd
Brighton & Hove City Council,http://statistics.data.gov.uk/id/local-authority/00ML,Children`s & Education Serv,BVAEDU,Ed EY PVI,ENP,Supplies and Services,E,Grants n Subscriptions,CC,09/09/2016,PAY00893774,SUPE,Supported Employment,192.00,Revenue,Bizspace Ltd
Brighton & Hove City Council,http://statistics.data.gov.uk/id/local-authority/00ML,Children`s & Education Serv,BVAEDU,Ed EY PVI,ENP,Supplies and Services,E,Grants n Subscriptions,CC,14/09/2016,PAY00894715,SUPE,Supported Employment,2037.80,Revenue,Bizspace Ltd
Brighton & Hove City Council,http://statistics.data.gov.uk/id/local-authority/00ML,Children`s & Education Serv,BVAEDU,Ed EY PVI,ENP,Supplies and Services,E,Grants n Subscriptions,EA,14/09/2016,PAY00894732,COMU,Communications,1532.88,Revenue,Blackburns Metals Ltd
Brighton & Hove City Council,http://statistics.data.gov.uk/id/local-authority/00ML,Children`s & Education Serv,BVAEDU,Ed EY PVI,ENP,Supplies and Services,E,Grants n Subscriptions,EA,28/09/2016,PAY00898819,COMU,Communications,255.68,Revenue,Blackburns Metals Ltd
Brighton & Hove City Council,http://statistics.data.gov.uk/id/local-authority/00ML,Children`s & Education Serv,BVAEDU,Ed EY PVI,ENP,Supplies and Services,E,Grants n Subscriptions,EF,07/09/2016,PAY00893306,HPAI,Property & Investment,595.00,Revenue,BLB Chartered Engineers Ltd
Brighton & Hove City Council,http://statistics.data.gov.uk/id/local-authority/00ML,Children`s & Education Serv,BVAEDU,Ed EY PVI,ENP,Supplies and Services,E,Grants n Subscriptions,PBL5,23/09/2016,PAY00897900,HREG,Head of Regeneration,3250.00,Capital,BLB Surveyors Ltd
Brighton & Hove City Council,http://statistics.data.gov.uk/id/local-authority/00ML,Children`s & Education Serv,BVAEDU,Ed EY PVI,ENP,Supplies and Services,E,Grants n Subscriptions,EH,23/09/2016,PAY00897899,RPMU,Royal Pavilion and Museums,13.50,Revenue,Bleep Computing
Brighton & Hove City Council,http://statistics.data.gov.uk/id/local-authority/00ML,Children`s & Education Serv,BVAEDU,Ed EY PVI,ENP,Supplies and Services,E,Grants n Subscriptions,EA,23/09/2016,PAY00897899,RPMU,Royal Pavilion and Museums,405.00,Revenue,Bleep Computing
Brighton & Hove City Council,http://statistics.data.gov.uk/id/local-authority/00ML,Adult Social Care,BVASOC,ASC Learning Disabilities,ALD,Supplies and Services,E,Catering,PBL5,14/09/2016,PAY00895228,OEDS,Other Education Support,79182.37,Capital,Blenheim Roofing Service Ltd
Brighton & Hove City Council,http://statistics.data.gov.uk/id/local-authority/00ML,Adult Social Care,BVASOC,ASC Learning Disabilities,ALD,Supplies and Services,E,Equip't Furniture n Materials,MB,14/09/2016,PAY00894687,PHYS,Physical Support,-1717.80,Revenue,Blind Veterans UK
Brighton & Hove City Council,http://statistics.data.gov.uk/id/local-authority/00ML,Adult Social Care,BVASOC,ASC Learning Disabilities,ALD,Supplies and Services,E,Expenses,FH,14/09/2016,PAY00894687,PHYS,Physical Support,5361.80,Revenue,Blind Veterans UK
Brighton & Hove City Council,http://statistics.data.gov.uk/id/local-authority/00ML,Adult Social Care,BVASOC,ASC Learning Disabilities,ALD,Transport Related,D,Other Transport Costs,FH,14/09/2016,PAY00894687,FINS,Financial Services,5803.48,Revenue,Blind Veterans UK
Brighton & Hove City Council,http://statistics.data.gov.uk/id/local-authority/00ML,Adult Social Care,BVASOC,ASC Learning Disabilities,ALD,Transport Related,D,Public Transport,MB,23/09/2016,PAY00897819,PHYS,Physical Support,-460.52,Revenue,Blind Veterans UK
Brighton & Hove City Council,http://statistics.data.gov.uk/id/local-authority/00ML,Environment & Regulatory Serv,BVAERS,Court Services,CRT,Supplies and Services,E,Grants n Subscriptions,FH,23/09/2016,PAY00897819,PHYS,Physical Support,2172.00,Revenue,Blind Veterans UK
Brighton & Hove City Council,http://statistics.data.gov.uk/id/local-authority/00ML,Environment & Regulatory Serv,BVAERS,Court Services,CRT,Supplies and Services,E,Miscellaneous Expenses,CA,16/09/2016,PAY00895522,SPLE,Sport and Leisure,397.00,Revenue,Blockbusters Contracts Ltd
Brighton & Hove City Council,http://statistics.data.gov.uk/id/local-authority/00ML,Environment & Regulatory Serv,BVAERS,Court Services,CRT,Supplies and Services,E,Print Stat & Gen Office Exps,EF,09/09/2016,PAY00894061,TAAS,Temp Accom and Allocations,11238.00,Revenue,BLSM LLP
Brighton & Hove City Council,http://statistics.data.gov.uk/id/local-authority/00ML,Environment & Regulatory Serv,BVAERS,Court Services,CRT,Supplies and Services,E,Services,EF,14/09/2016,PAY00894896,TAAS,Temp Accom and Allocations,23772.00,Revenue,BLSM LLP
Brighton & Hove City Council,http://statistics.data.gov.uk/id/local-authority/00ML,Environment & Regulatory Serv,BVAERS,Court Services,CRT,Transport Related,D,Other Transport Costs,EF,16/09/2016,PAY00895853,TAAS,Temp Accom and Allocations,11570.00,Revenue,BLSM LLP
Brighton & Hove City Council,http://statistics.data.gov.uk/id/local-authority/00ML,Non I&E,BVANON,CAP Libs Culture and Hertage,4LH,New Construction n Conversion,PB,New Construction n Conversion,EF,23/09/2016,PAY00898168,TAAS,Temp Accom and Allocations,11512.00,Revenue,BLSM LLP
Brighton & Hove City Council,http://statistics.data.gov.uk/id/local-authority/00ML,Housing General Fund,BVAHOG,Hsing Benefits,HGB,Transfer Payments,G,Other Transfer Payments,EF,28/09/2016,PAY00898998,TAAS,Temp Accom and Allocations,11317.00,Revenue,BLSM LLP
Brighton & Hove City Council,http://statistics.data.gov.uk/id/local-authority/00ML,Children`s & Education Serv,BVAEDU,Ed EY PVI,ENP,Supplies and Services,E,Grants n Subscriptions,GD,09/09/2016,PAY00894101,CHIC,Children In Care,4000.00,Revenue,Blue Sky Fostering Limited
Brighton & Hove City Council,http://statistics.data.gov.uk/id/local-authority/00ML,Corporate and Democratic Core,BVACOR,Non Service Costs,NVC,Capital Financing Costs,J,Capital Financing Costs,FH,14/09/2016,PAY00894943,AVFM,Agency Placements\VFM,56874.61,Revenue,Blue Sky Fostering Limited
Brighton & Hove City Council,http://statistics.data.gov.uk/id/local-authority/00ML,Children`s & Education Serv,BVAEDU,Ed Special Ed,EKE,Third Party Payments,F,Other Agencies,FH,14/09/2016,PAY00894943,DISS,Disability Services,5880.00,Revenue,Blue Sky Fostering Limited
Brighton & Hove City Council,http://statistics.data.gov.uk/id/local-authority/00ML,Children`s & Education Serv,BVAEDU,Ed EY PVI,ENP,Supplies and Services,E,Grants n Subscriptions,EK,07/09/2016,PAY00893150,EYRS,Early Years,32910.41,Revenue,Blueberry Nursery & Early Learning Organisation Ld
Brighton & Hove City Council,http://statistics.data.gov.uk/id/local-authority/00ML,Central Support and Overheads,BVACEN,Support Services (SSC),PPT,Supplies and Services,E,Services,EK,09/09/2016,PAY00893980,EYRS,Early Years,4866.75,Revenue,Blueberry Nursery & Early Learning Organisation Ld
Brighton & Hove City Council,http://statistics.data.gov.uk/id/local-authority/00ML,Non I&E,BVANON,CAP Transport,4TR,New Construction n Conversion,PB,New Construction n Conversion,EK,21/09/2016,PAY00897141,EYRS,Early Years,688.25,Revenue,Blueberry Nursery & Early Learning Organisation Ld
Brighton & Hove City Council,http://statistics.data.gov.uk/id/local-authority/00ML,Housing Revenue Account,BVAHOU,Hsing Management - HRA,HGM,Supplies and Services,E,Equip't Furniture n Materials,PBL5,28/09/2016,PAY00899288,OEDS,Other Education Support,3109.00,Capital,Bluestone Design & Construction Ltd
Brighton & Hove City Council,http://statistics.data.gov.uk/id/local-authority/00ML,Environment & Regulatory Serv,BVAERS,Flood Drainage and Coast Prtn,FDC,Premises Related,C,Repair Maint n Alterations,CC,14/09/2016,PAY00895282,TAAS,Temp Accom and Allocations,750.00,Revenue,BN Property Services Limited
Brighton & Hove City Council,http://statistics.data.gov.uk/id/local-authority/00ML,Children`s & Education Serv,BVAEDU,Ed EY PVI,ENP,Supplies and Services,E,Grants n Subscriptions,CC,21/09/2016,PAY00897545,TAAS,Temp Accom and Allocations,950.00,Revenue,BN Property Services Limited
Brighton & Hove City Council,http://statistics.data.gov.uk/id/local-authority/00ML,Adult Social Care,BVASOC,ASC Learning Disabilities,ALD,Customer n Client Receipts,M,Fees n Charges,CC,23/09/2016,PAY00898588,TAAS,Temp Accom and Allocations,860.00,Revenue,BN Property Services Limited
Brighton & Hove City Council,http://statistics.data.gov.uk/id/local-authority/00ML,Adult Social Care,BVASOC,ASC Learning Disabilities,ALD,Third Party Payments,F,Other Establishments,CC,28/09/2016,PAY00899351,TAAS,Temp Accom and Allocations,1400.00,Revenue,BN Property Services Limited
Brighton & Hove City Council,http://statistics.data.gov.uk/id/local-authority/00ML,Adult Social Care,BVASOC,ASC Learning Disabilities,ALD,Customer n Client Receipts,M,Fees n Charges,EM,16/09/2016,PAY00896428,ELEC,Elections,500.00,Revenue,BN1 Media
Brighton & Hove City Council,http://statistics.data.gov.uk/id/local-authority/00ML,Adult Social Care,BVASOC,ASC Learning Disabilities,ALD,Third Party Payments,F,Other Establishments,EM,16/09/2016,PAY00895903,EYRS,Early Years,340.00,Revenue,Boogie Mites UK Ltd
Brighton & Hove City Council,http://statistics.data.gov.uk/id/local-authority/00ML,Children`s & Education Serv,BVAEDU,Ed Ed Other Other,ENF,Third Party Payments,F,Other Establishments,EK,07/09/2016,PAY00893000,EYRS,Early Years,31947.60,Revenue,Boomerang Kids
Brighton & Hove City Council,http://statistics.data.gov.uk/id/local-authority/00ML,Central Support and Overheads,BVACEN,Support Services (SSC),PPT,Supplies and Services,E,Communications n Computing,EK,09/09/2016,PAY00893752,EYRS,Early Years,5581.31,Revenue,Boomerang Kids
Brighton & Hove City Council,http://statistics.data.gov.uk/id/local-authority/00ML,Housing Revenue Account,BVAHOU,Hsing Management - HRA,HGM,Supplies and Services,E,Catering,BM,23/09/2016,PAY00897846,FINS,Financial Services,800.00,Revenue,BPP Professional Education
Brighton & Hove City Council,http://statistics.data.gov.uk/id/local-authority/00ML,Highways and Transportation,BVAHRT,Public Transport,PTR,Supplies and Services,E,Miscellaneous Expenses,FH,14/09/2016,PAY00894920,LDIS,Learning Disabilities,6900.00,Revenue,Bradfield House
Brighton & Hove City Council,http://statistics.data.gov.uk/id/local-authority/00ML,Children`s & Education Serv,BVAEDU,Ed EY PVI,ENP,Supplies and Services,E,Grants n Subscriptions,FH,30/09/2016,PAY00899855,LDIS,Learning Disabilities,6900.00,Revenue,Bradfield House
Brighton & Hove City Council,http://statistics.data.gov.uk/id/local-authority/00ML,Children`s & Education Serv,BVAEDU,Child Srvcs Asylum Seekers,FAY,Third Party Payments,F,Other Establishments,EB,16/09/2016,PAY00895498,RESP,Respite Services,275.58,Revenue,Brake Bros Ltd t/a Brakes Catering Equip
Brighton & Hove City Council,http://statistics.data.gov.uk/id/local-authority/00ML,Children`s & Education Serv,BVAEDU,Child Srvcs - Fostering,FLF,Third Party Payments,F,Other Establishments,PBL5,14/09/2016,PAY00894857,OEDS,Other Education Support,9872.16,Capital,Bramber Construction Co Ltd
Brighton & Hove City Council,http://statistics.data.gov.uk/id/local-authority/00ML,Adult Social Care,BVASOC,ASC Physical Support,PHY,Customer n Client Receipts,M,Fees n Charges,PBL5,16/09/2016,PAY00895772,OEDS,Other Education Support,2460.70,Capital,Bramber Construction Co Ltd
Brighton & Hove City Council,http://statistics.data.gov.uk/id/local-authority/00ML,Adult Social Care,BVASOC,ASC Physical Support,PHY,Third Party Payments,F,Other Establishments,GD,23/09/2016,PAY00898329,CHIC,Children In Care,51124.40,Revenue,Bramley Care Ltd T/A Apple Orchard
Brighton & Hove City Council,http://statistics.data.gov.uk/id/local-authority/00ML,Housing General Fund,BVAHOG,Homelessness,HML,Premises Related,C,Rents Payable,CA,23/09/2016,PAY00898626,PROP,Property and Design,2271.21,Revenue,Bransbury Construction Ltd
Brighton & Hove City Council,http://statistics.data.gov.uk/id/local-authority/00ML,Central Services to the Public,BVACEN,Elections,ELE,Supplies and Services,E,Communications n Computing,FH,16/09/2016,PAY00895760,COGN,Memory Cognition Support,656.50,Revenue,Bravery Care
Brighton & Hove City Council,http://statistics.data.gov.uk/id/local-authority/00ML,Central Services to the Public,BVACEN,Local Tax Collection,LTC,Supplies and Services,E,Communications n Computing,MB,23/09/2016,PAY00898087,COGN,Memory Cognition Support,-5117.64,Revenue,Bravery Care
Brighton & Hove City Council,http://statistics.data.gov.uk/id/local-authority/00ML,Cultural and Related Serv,BVACUL,Tourism,TRM,Customer n Client Receipts,M,Fees n Charges,FH,23/09/2016,PAY00898087,COGN,Memory Cognition Support,19113.00,Revenue,Bravery Care
Brighton & Hove City Council,http://statistics.data.gov.uk/id/local-authority/00ML,Adult Social Care,BVASOC,Social Care Activities,ACM,Third Party Payments,F,Other Establishments,CA,30/09/2016,PAY00900148,SPLE,Sport and Leisure,880.00,Revenue,Bricks 2 Mortar Ltd
Brighton & Hove City Council,http://statistics.data.gov.uk/id/local-authority/00ML,Housing Revenue Account,BVAHOU,Hsing Management - HRA,HGM,Supplies and Services,E,Services,CC,14/09/2016,PAY00894749,CHIC,Children In Care,100.00,Revenue,Bridge Community Education Centre
Brighton & Hove City Council,http://statistics.data.gov.uk/id/local-authority/00ML,Children`s & Education Serv,BVAEDU,Child Srvcs Other,FAX,Third Party Payments,F,Other Establishments,EM,14/09/2016,PAY00894749,SAFE,Safeguarding,324.00,Revenue,Bridge Community Education Centre
Brighton & Hove City Council,http://statistics.data.gov.uk/id/local-authority/00ML,Children`s & Education Serv,BVAEDU,Ed EY PVI,ENP,Supplies and Services,E,Grants n Subscriptions,FH,14/09/2016,PAY00894935,AVFM,Agency Placements\VFM,20614.80,Revenue,Brighter Futures Foster Care Ltd
Brighton & Hove City Council,http://statistics.data.gov.uk/id/local-authority/00ML,Children`s & Education Serv,BVAEDU,Ed EY PVI,ENP,Supplies and Services,E,Grants n Subscriptions,FH,28/09/2016,PAY00899030,AVFM,Agency Placements\VFM,2718.50,Revenue,Brighter Futures Foster Care Ltd
Brighton & Hove City Council,http://statistics.data.gov.uk/id/local-authority/00ML,Housing Revenue Account,BVAHOU,Hsing Management - HRA,HGM,Premises Related,C,Repair Maint n Alterations,EK,07/09/2016,PAY00893178,EYRS,Early Years,5599.13,Revenue,Brighthelm Pre-School 
Brighton & Hove City Council,http://statistics.data.gov.uk/id/local-authority/00ML,Children`s & Education Serv,BVAEDU,Ed Ed Other Other,ENF,Third Party Payments,F,Other Establishments,EK,09/09/2016,PAY00894016,EYRS,Early Years,811.13,Revenue,Brighthelm Pre-School 
Brighton & Hove City Council,http://statistics.data.gov.uk/id/local-authority/00ML,Cultural and Related Serv,BVACUL,Culture and Heritage,CHG,Supplies and Services,E,Services,EK,21/09/2016,PAY00897163,EYRS,Early Years,463.50,Revenue,Brighthelm Pre-School 
Brighton & Hove City Council,http://statistics.data.gov.uk/id/local-authority/00ML,Environment & Regulatory Serv,BVAERS,Management Services (DEC),MGT,Transport Related,D,Direct Transport Costs,CC,07/09/2016,PAY00893092,SACH,Standards and Achievement,411.00,Revenue,Brighthelm Trading Ltd
Brighton & Hove City Council,http://statistics.data.gov.uk/id/local-authority/00ML,Children`s & Education Serv,BVAEDU,Child Srvcs - Othr LAC Svcs,FLX,Transfer Payments,G,Other Transfer Payments,CC,23/09/2016,PAY00897905,CMNY,Communities and Equalities,262.75,Revenue,Brighthelm Trading Ltd
Brighton & Hove City Council,http://statistics.data.gov.uk/id/local-authority/00ML,Children`s & Education Serv,BVAEDU,Ed Ed Other Other,ENF,Third Party Payments,F,Other Establishments,MB,14/09/2016,PAY00894647,PHYS,Physical Support,-1945.73,Revenue,Brighton & Hove Bethesda Home
Brighton & Hove City Council,http://statistics.data.gov.uk/id/local-authority/00ML,Children`s & Education Serv,BVAEDU,Ed EY PVI,ENP,Supplies and Services,E,Grants n Subscriptions,FH,14/09/2016,PAY00894647,PHYS,Physical Support,5108.22,Revenue,Brighton & Hove Bethesda Home
Brighton & Hove City Council,http://statistics.data.gov.uk/id/local-authority/00ML,Children`s & Education Serv,BVAEDU,Ed EY PVI,ENP,Supplies and Services,E,Grants n Subscriptions,MB,23/09/2016,PAY00897773,PHYS,Physical Support,-2837.60,Revenue,Brighton & Hove Bethesda Home
Brighton & Hove City Council,http://statistics.data.gov.uk/id/local-authority/00ML,Children`s & Education Serv,BVAEDU,Ed EY PVI,ENP,Supplies and Services,E,Grants n Subscriptions,FH,23/09/2016,PAY00897773,PHYS,Physical Support,7315.88,Revenue,Brighton & Hove Bethesda Home
Brighton & Hove City Council,http://statistics.data.gov.uk/id/local-authority/00ML,Adult Social Care,BVASOC,ASC Learning Disabilities,ALD,Premises Related,C,Repair Maint n Alterations,DD,07/09/2016,PAY00893169,OEDS,Other Education Support,6613.26,Revenue,Brighton & Hove Bus and Coach Co Ltd
Brighton & Hove City Council,http://statistics.data.gov.uk/id/local-authority/00ML,Public Health,BVAPHE,Public Health,PHE,Premises Related,C,Rents Payable,DD,09/09/2016,PAY00894004,PUPO,Public Protection,271.20,Revenue,Brighton & Hove Bus and Coach Co Ltd
Brighton & Hove City Council,http://statistics.data.gov.uk/id/local-authority/00ML,Central Support and Overheads,BVACEN,Holding Accounts,PPH,Premises Related,C,Repair Maint n Alterations,DD,14/09/2016,PAY00894865,ASIT,Assessment and SIT,585.00,Revenue,Brighton & Hove Bus and Coach Co Ltd
Brighton & Hove City Council,http://statistics.data.gov.uk/id/local-authority/00ML,Central Support and Overheads,BVACEN,Support Services (SSC),PPT,Premises Related,C,Repair Maint n Alterations,FH,14/09/2016,PAY00894865,CHIC,Children In Care,1287.60,Revenue,Brighton & Hove Bus and Coach Co Ltd
Brighton & Hove City Council,http://statistics.data.gov.uk/id/local-authority/00ML,Cultural and Related Serv,BVACUL,Open Spaces,PEN,Supplies and Services,E,Equip't Furniture n Materials,DB,14/09/2016,PAY00894865,PUPO,Public Protection,1199.89,Revenue,Brighton & Hove Bus and Coach Co Ltd
Brighton & Hove City Council,http://statistics.data.gov.uk/id/local-authority/00ML,Housing General Fund,BVAHOG,Homelessness,HML,Supplies and Services,E,Services,DD,14/09/2016,PAY00894865,HIGH,Highways,175.00,Revenue,Brighton & Hove Bus and Coach Co Ltd
Brighton & Hove City Council,http://statistics.data.gov.uk/id/local-authority/00ML,Children`s & Education Serv,BVAEDU,Ed EY PVI,ENP,Supplies and Services,E,Grants n Subscriptions,DB,14/09/2016,PAY00894865,TRAV,Travellers,253.71,Revenue,Brighton & Hove Bus and Coach Co Ltd
Brighton & Hove City Council,http://statistics.data.gov.uk/id/local-authority/00ML,Cultural and Related Serv,BVACUL,Culture and Heritage,CHG,Supplies and Services,E,Services,DD,16/09/2016,PAY00895779,HOME,Home Care,216.00,Revenue,Brighton & Hove Bus and Coach Co Ltd
Brighton & Hove City Council,http://statistics.data.gov.uk/id/local-authority/00ML,Children`s & Education Serv,BVAEDU,Ed EY PVI,ENP,Supplies and Services,E,Grants n Subscriptions,DD,16/09/2016,PAY00895779,ASIT,Assessment and SIT,195.00,Revenue,Brighton & Hove Bus and Coach Co Ltd
Brighton & Hove City Council,http://statistics.data.gov.uk/id/local-authority/00ML,Adult Social Care,BVASOC,ASC Learning Disabilities,ALD,Customer n Client Receipts,M,Fees n Charges,DD,21/09/2016,PAY00897156,SOCK,Social Work,4415.20,Revenue,Brighton & Hove Bus and Coach Co Ltd
Brighton & Hove City Council,http://statistics.data.gov.uk/id/local-authority/00ML,Adult Social Care,BVASOC,ASC Learning Disabilities,ALD,Third Party Payments,F,Other Establishments,CC,21/09/2016,PAY00897156,CICL,City Clean,4000.00,Revenue,Brighton & Hove Bus and Coach Co Ltd
Brighton & Hove City Council,http://statistics.data.gov.uk/id/local-authority/00ML,Children`s & Education Serv,BVAEDU,Ed EY PVI,ENP,Supplies and Services,E,Grants n Subscriptions,DD,21/09/2016,PAY00897156,HIII,Income Involvement Improvement,1808.00,Revenue,Brighton & Hove Bus and Coach Co Ltd
Brighton & Hove City Council,http://statistics.data.gov.uk/id/local-authority/00ML,Adult Social Care,BVASOC,ASC Physical Support,PHY,Premises Related,C,Cleaning n Domestic Supps,GD,23/09/2016,PAY00898116,REVS,Revenues and Benefits,452.00,Revenue,Brighton & Hove Bus and Coach Co Ltd
Brighton & Hove City Council,http://statistics.data.gov.uk/id/local-authority/00ML,Children`s & Education Serv,BVAEDU,Ed EY PVI,ENP,Supplies and Services,E,Grants n Subscriptions,DD,28/09/2016,PAY00898960,YOTS,Youth Service,226.00,Revenue,Brighton & Hove Bus and Coach Co Ltd
Brighton & Hove City Council,http://statistics.data.gov.uk/id/local-authority/00ML,Highways and Transportation,BVAHRT,Highways and Roads - Mntnce,HRM,Supplies and Services,E,Communications n Computing,GD,28/09/2016,PAY00898960,FAMP,Families\Prevention,1386.40,Revenue,Brighton & Hove Bus and Coach Co Ltd
Brighton & Hove City Council,http://statistics.data.gov.uk/id/local-authority/00ML,Children`s & Education Serv,BVAEDU,Child Srvcs - Other Fam Supp,FFX,Transfer Payments,G,Other Transfer Payments,DD,28/09/2016,PAY00898960,FAMP,Families\Prevention,339.00,Revenue,Brighton & Hove Bus and Coach Co Ltd
Brighton & Hove City Council,http://statistics.data.gov.uk/id/local-authority/00ML,Adult Social Care,BVASOC,ASC Memory Cognition Support,MEM,Customer n Client Receipts,M,Fees n Charges,EM,28/09/2016,PAY00898960,TPRS,Transport Plan and Road Safety,11150.00,Revenue,Brighton & Hove Bus and Coach Co Ltd
Brighton & Hove City Council,http://statistics.data.gov.uk/id/local-authority/00ML,Adult Social Care,BVASOC,ASC Memory Cognition Support,MEM,Third Party Payments,F,Other Establishments,DD,30/09/2016,PAY00899788,ASIT,Assessment and SIT,195.00,Revenue,Brighton & Hove Bus and Coach Co Ltd
Brighton & Hove City Council,http://statistics.data.gov.uk/id/local-authority/00ML,Adult Social Care,BVASOC,ASC Mental Health Support,MHP,Customer n Client Receipts,M,Fees n Charges,FJ,30/09/2016,PAY00899788,TPRS,Transport Plan and Road Safety,5940.00,Revenue,Brighton & Hove Bus and Coach Co Ltd
Brighton & Hove City Council,http://statistics.data.gov.uk/id/local-authority/00ML,Adult Social Care,BVASOC,ASC Mental Health Support,MHP,Third Party Payments,F,Other Establishments,DD,30/09/2016,PAY00899788,CONF,Concessionary Fares,799183.08,Revenue,Brighton & Hove Bus and Coach Co Ltd
Brighton & Hove City Council,http://statistics.data.gov.uk/id/local-authority/00ML,Adult Social Care,BVASOC,ASC Physical Support,PHY,Customer n Client Receipts,M,Fees n Charges,DD,30/09/2016,PAY00899788,DEVP,Development Planning,226.00,Revenue,Brighton & Hove Bus and Coach Co Ltd
Brighton & Hove City Council,http://statistics.data.gov.uk/id/local-authority/00ML,Adult Social Care,BVASOC,ASC Physical Support,PHY,Third Party Payments,F,Other Establishments,EM,14/09/2016,PAY00894873,ECOD,Economic Development,1250.00,Revenue,Brighton & Hove Chamber of Commerce
Brighton & Hove City Council,http://statistics.data.gov.uk/id/local-authority/00ML,Adult Social Care,BVASOC,ASC Learning Disabilities,ALD,Customer n Client Receipts,M,Fees n Charges,EK,02/09/2016,PAY00892352,CMNY,Communities and Equalities,25000.00,Revenue,Brighton & Hove Citizens Advice Bureau
Brighton & Hove City Council,http://statistics.data.gov.uk/id/local-authority/00ML,Adult Social Care,BVASOC,ASC Learning Disabilities,ALD,Third Party Payments,F,Other Establishments,EM,30/09/2016,PAY00899620,CMNY,Communities and Equalities,50625.00,Revenue,Brighton & Hove Citizens Advice Bureau
Brighton & Hove City Council,http://statistics.data.gov.uk/id/local-authority/00ML,Central Support and Overheads,BVACEN,Support Services (SSC),PPT,Transport Related,D,Contract Hire n Operating Leas,EF,28/09/2016,PAY00898877,NBHC,Non Council,3693.60,Revenue,Brighton & Hove City Council
Brighton & Hove City Council,http://statistics.data.gov.uk/id/local-authority/00ML,Central Support and Overheads,BVACEN,Support Services (SSC),PPT,Transport Related,D,Direct Transport Costs,EF,28/09/2016,PAY00898803,OEDS,Other Education Support,257862.65,Revenue,Brighton & Hove City Schools Services Ltd
Brighton & Hove City Council,http://statistics.data.gov.uk/id/local-authority/00ML,Children`s & Education Serv,BVAEDU,Ed EY PVI,ENP,Supplies and Services,E,Grants n Subscriptions,EK,14/09/2016,PAY00895244,CMNY,Communities and Equalities,5000.00,Revenue,Brighton & Hove Faith In Action
Brighton & Hove City Council,http://statistics.data.gov.uk/id/local-authority/00ML,Housing General Fund,BVAHOG,Hsing Welfare,HGW,Transfer Payments,G,Supporting People,EK,07/09/2016,PAY00892963,EYRS,Early Years,19525.84,Revenue,Brighton & Hove High School- Junior Dept
Brighton & Hove City Council,http://statistics.data.gov.uk/id/local-authority/00ML,Adult Social Care,BVASOC,ASC Memory Cognition Support,MEM,Customer n Client Receipts,M,Fees n Charges,EK,09/09/2016,PAY00893730,CMNY,Communities and Equalities,12500.00,Revenue,Brighton & Hove Impetus Ltd
Brighton & Hove City Council,http://statistics.data.gov.uk/id/local-authority/00ML,Adult Social Care,BVASOC,ASC Memory Cognition Support,MEM,Third Party Payments,F,Other Establishments,EK,02/09/2016,PAY00892486,CMNY,Communities and Equalities,5000.00,Revenue,Brighton & Hove Inter-Faith Contact Group
Brighton & Hove City Council,http://statistics.data.gov.uk/id/local-authority/00ML,Adult Social Care,BVASOC,ASC Mental Health Support,MHP,Third Party Payments,F,Other Establishments,EK,07/09/2016,PAY00892941,EYRS,Early Years,6221.25,Revenue,Brighton & Hove Montessori School
Brighton & Hove City Council,http://statistics.data.gov.uk/id/local-authority/00ML,Adult Social Care,BVASOC,ASC Physical Support,PHY,Customer n Client Receipts,M,Fees n Charges,EK,23/09/2016,PAY00897785,EYRS,Early Years,520.00,Revenue,Brighton & Hove Montessori School
Brighton & Hove City Council,http://statistics.data.gov.uk/id/local-authority/00ML,Adult Social Care,BVASOC,ASC Physical Support,PHY,Third Party Payments,F,Other Establishments,DG,28/09/2016,PAY00898959,OEDS,Other Education Support,206.60,Revenue,Brighton & Hove Radio Cabs Ltd
Brighton & Hove City Council,http://statistics.data.gov.uk/id/local-authority/00ML,Children`s & Education Serv,BVAEDU,Ed EY PVI,ENP,Supplies and Services,E,Grants n Subscriptions,DD,28/09/2016,PAY00898959,OEDS,Other Education Support,1331.80,Revenue,Brighton & Hove Radio Cabs Ltd
Brighton & Hove City Council,http://statistics.data.gov.uk/id/local-authority/00ML,Housing Revenue Account,BVAHOU,Hsing Management - HRA,HGM,Premises Related,C,Repair Maint n Alterations,DD,28/09/2016,PAY00898959,VENU,Venues,284.94,Revenue,Brighton & Hove Radio Cabs Ltd
Brighton & Hove City Council,http://statistics.data.gov.uk/id/local-authority/00ML,Children`s & Education Serv,BVAEDU,Child Srvcs Direct Pymts,FFD,Third Party Payments,F,Other Establishments,DD,28/09/2016,PAY00898959,CONF,Concessionary Fares,461.00,Revenue,Brighton & Hove Radio Cabs Ltd
Brighton & Hove City Council,http://statistics.data.gov.uk/id/local-authority/00ML,Adult Social Care,BVASOC,Social Care Activities,ACM,Transport Related,D,Public Transport,EK,23/09/2016,PAY00897898,HIII,Income Involvement Improvement,8417.50,Revenue,Brighton & Hove Social Welfare Educational Trust
Brighton & Hove City Council,http://statistics.data.gov.uk/id/local-authority/00ML,Central Support and Overheads,BVACEN,Support Services (SSC),PPT,Transport Related,D,Contract Hire n Operating Leas,DD,07/09/2016,PAY00893085,ELEC,Elections,27.94,Revenue,Brighton & Hove Streamline Taxis Ltd
Brighton & Hove City Council,http://statistics.data.gov.uk/id/local-authority/00ML,Highways and Transportation,BVAHRT,Highways and Roads - Mntnce,HRM,Transport Related,D,Public Transport,DD,07/09/2016,PAY00893085,RPMU,Royal Pavilion and Museums,23.54,Revenue,Brighton & Hove Streamline Taxis Ltd
Brighton & Hove City Council,http://statistics.data.gov.uk/id/local-authority/00ML,Library Services,BVACUL,Library Service,LBR,Transport Related,D,Other Transport Costs,DD,07/09/2016,PAY00893085,TOMA,Tourism and Marketing,261.30,Revenue,Brighton & Hove Streamline Taxis Ltd
Brighton & Hove City Council,http://statistics.data.gov.uk/id/local-authority/00ML,Housing General Fund,BVAHOG,Homelessness,HML,Premises Related,C,Rents Payable,DD,07/09/2016,PAY00893085,LIBS,Libraries,33.00,Revenue,Brighton & Hove Streamline Taxis Ltd
Brighton & Hove City Council,http://statistics.data.gov.uk/id/local-authority/00ML,Adult Social Care,BVASOC,ASC Learning Disabilities,ALD,Direct Employees,A,Salaries,DD,09/09/2016,PAY00893827,POLY,Policy,41.80,Revenue,Brighton & Hove Streamline Taxis Ltd
Brighton & Hove City Council,http://statistics.data.gov.uk/id/local-authority/00ML,Adult Social Care,BVASOC,ASC Learning Disabilities,ALD,Direct Employees,A,Salaries,DD,09/09/2016,PAY00893827,YOTS,Youth Service,52.14,Revenue,Brighton & Hove Streamline Taxis Ltd
Brighton & Hove City Council,http://statistics.data.gov.uk/id/local-authority/00ML,Adult Social Care,BVASOC,ASC Learning Disabilities,ALD,Direct Employees,A,Salaries,DD,09/09/2016,PAY00893827,CONF,Concessionary Fares,1581.00,Revenue,Brighton & Hove Streamline Taxis Ltd
Brighton & Hove City Council,http://statistics.data.gov.uk/id/local-authority/00ML,Adult Social Care,BVASOC,ASC Memory Cognition Support,MEM,Direct Employees,A,Salaries,EA,02/09/2016,PAY00892353,CORO,Coroner,9420.00,Revenue,Brighton & Sussex University Hospitals NHS Trust
Brighton & Hove City Council,http://statistics.data.gov.uk/id/local-authority/00ML,Adult Social Care,BVASOC,ASC Memory Cognition Support,MEM,Direct Employees,A,Salaries,EK,07/09/2016,PAY00893087,EYRS,Early Years,18201.60,Revenue,Brighton & Sussex University Hospitals NHS Trust
Brighton & Hove City Council,http://statistics.data.gov.uk/id/local-authority/00ML,Adult Social Care,BVASOC,ASC Physical Support,PHY,Direct Employees,A,Salaries,EK,09/09/2016,PAY00893829,EYRS,Early Years,3090.00,Revenue,Brighton & Sussex University Hospitals NHS Trust
Brighton & Hove City Council,http://statistics.data.gov.uk/id/local-authority/00ML,Adult Social Care,BVASOC,ASC Physical Support,PHY,Direct Employees,A,Salaries,FH,14/09/2016,PAY00894782,ASIT,Assessment and SIT,3007.32,Revenue,Brighton & Sussex University Hospitals NHS Trust
Brighton & Hove City Council,http://statistics.data.gov.uk/id/local-authority/00ML,Adult Social Care,BVASOC,Social Care Activities,ACM,Direct Employees,A,Salaries,CC,14/09/2016,PAY00894782,DIRO,Director Office,108.00,Revenue,Brighton & Sussex University Hospitals NHS Trust
Brighton & Hove City Council,http://statistics.data.gov.uk/id/local-authority/00ML,Adult Social Care,BVASOC,Social Care Activities,ACM,Direct Employees,A,Salaries,CA,16/09/2016,PAY00895622,SPLE,Sport and Leisure,224.60,Revenue,Brighton & Sussex University Hospitals NHS Trust
Brighton & Hove City Council,http://statistics.data.gov.uk/id/local-authority/00ML,Adult Social Care,BVASOC,Social Care Activities,ACM,Direct Employees,A,Salaries,EK,21/09/2016,PAY00897081,EYRS,Early Years,249.50,Revenue,Brighton & Sussex University Hospitals NHS Trust
Brighton & Hove City Council,http://statistics.data.gov.uk/id/local-authority/00ML,Central Services to the Public,BVACEN,Elections,ELE,Direct Employees,A,Salaries,FC,21/09/2016,PAY00897081,PHCM,PH Commissioning,823714.04,Revenue,Brighton & Sussex University Hospitals NHS Trust
Brighton & Hove City Council,http://statistics.data.gov.uk/id/local-authority/00ML,Central Support and Overheads,BVACEN,Support Services (SSC),PPT,Direct Employees,A,Salaries,FH,23/09/2016,PAY00897903,ASIT,Assessment and SIT,1002.44,Revenue,Brighton & Sussex University Hospitals NHS Trust
Brighton & Hove City Council,http://statistics.data.gov.uk/id/local-authority/00ML,Central Support and Overheads,BVACEN,Support Services (SSC),PPT,Direct Employees,A,Salaries,EM,23/09/2016,PAY00897903,PHCM,PH Commissioning,2000.00,Revenue,Brighton & Sussex University Hospitals NHS Trust
Brighton & Hove City Council,http://statistics.data.gov.uk/id/local-authority/00ML,Central Support and Overheads,BVACEN,Support Services (SSC),PPT,Direct Employees,A,Salaries,EA,28/09/2016,PAY00898879,CORO,Coroner,5840.50,Revenue,Brighton & Sussex University Hospitals NHS Trust
Brighton & Hove City Council,http://statistics.data.gov.uk/id/local-authority/00ML,Central Support and Overheads,BVACEN,Support Services (SSC),PPT,Direct Employees,A,Salaries,MB,07/09/2016,PAY00893323,SSHS,Seaside Homes (BHSCH),330546.00,Revenue,Brighton and Hove Seaside Community Homes Ltd
Brighton & Hove City Council,http://statistics.data.gov.uk/id/local-authority/00ML,Central Support and Overheads,BVACEN,Support Services (SSC),PPT,Direct Employees,A,Salaries,MB,07/09/2016,PAY00893305,LDIS,Learning Disabilities,-104.00,Revenue,Brighton and Sussex Care Ltd
Brighton & Hove City Council,http://statistics.data.gov.uk/id/local-authority/00ML,Central Support and Overheads,BVACEN,Support Services (SSC),PPT,Direct Employees,A,Salaries,FH,07/09/2016,PAY00893305,LDIS,Learning Disabilities,28897.20,Revenue,Brighton and Sussex Care Ltd
Brighton & Hove City Council,http://statistics.data.gov.uk/id/local-authority/00ML,Central Support and Overheads,BVACEN,Support Services (SSC),PPT,Direct Employees,A,Salaries,FH,14/09/2016,PAY00894771,DEVP,Development Planning,93060.65,Revenue,Brighton BID Limited
Brighton & Hove City Council,http://statistics.data.gov.uk/id/local-authority/00ML,Children`s & Education Serv,BVAEDU,Child Srvcs Com and Scl Work,FCW,Direct Employees,A,Salaries,EK,07/09/2016,PAY00893161,EYRS,Early Years,44481.94,Revenue,Brighton College
Brighton & Hove City Council,http://statistics.data.gov.uk/id/local-authority/00ML,Children`s & Education Serv,BVAEDU,Child Srvcs Com and Scl Work,FCW,Direct Employees,A,Salaries,EM,30/09/2016,PAY00900244,ECOD,Economic Development,15400.00,Revenue,Brighton Digital Festival CIC
Brighton & Hove City Council,http://statistics.data.gov.uk/id/local-authority/00ML,Children`s & Education Serv,BVAEDU,Child Srvcs Com and Scl Work,FCW,Direct Employees,A,Salaries,CC,07/09/2016,PAY00893053,ELEC,Elections,2580.00,Revenue,Brighton Dome & Festival (Trading) Ltd
Brighton & Hove City Council,http://statistics.data.gov.uk/id/local-authority/00ML,Children`s & Education Serv,BVAEDU,Child Srvcs - Fostering,FLF,Direct Employees,A,Salaries,EB,07/09/2016,PAY00893053,ELEC,Elections,785.00,Revenue,Brighton Dome & Festival (Trading) Ltd
Brighton & Hove City Council,http://statistics.data.gov.uk/id/local-authority/00ML,Children`s & Education Serv,BVAEDU,Child Srvcs - Fostering,FLF,Direct Employees,A,Salaries,CB,09/09/2016,PAY00893723,RPMU,Royal Pavilion and Museums,4641.74,Revenue,Brighton Dome & Festival Ltd
Brighton & Hove City Council,http://statistics.data.gov.uk/id/local-authority/00ML,Children`s & Education Serv,BVAEDU,Child Srvcs - Residential Svcs,FLR,Direct Employees,A,Salaries,CE,09/09/2016,PAY00893723,RPMU,Royal Pavilion and Museums,588.17,Revenue,Brighton Dome & Festival Ltd
Brighton & Hove City Council,http://statistics.data.gov.uk/id/local-authority/00ML,Children`s & Education Serv,BVAEDU,Child Srvcs - Yth Offender Tm,FYY,Direct Employees,A,Salaries,EK,09/09/2016,PAY00894025,CMNY,Communities and Equalities,5000.00,Revenue,Brighton Festival Fringe Limited
Brighton & Hove City Council,http://statistics.data.gov.uk/id/local-authority/00ML,Children`s & Education Serv,BVAEDU,Ed EY Central,EAE,Direct Employees,A,Salaries,DA,28/09/2016,PAY00898851,CICL,City Clean,314.05,Revenue,Brighton Honda
Brighton & Hove City Council,http://statistics.data.gov.uk/id/local-authority/00ML,Children`s & Education Serv,BVAEDU,Ed Special Ed,EKE,Direct Employees,A,Salaries,EK,02/09/2016,PAY00892354,CMNY,Communities and Equalities,10000.00,Revenue,Brighton Housing Trust
Brighton & Hove City Council,http://statistics.data.gov.uk/id/local-authority/00ML,Children`s & Education Serv,BVAEDU,Management Services (DEC),MGT,Direct Employees,A,Salaries,FH,07/09/2016,PAY00893091,MENH,Mental Health Support,28257.00,Revenue,Brighton Housing Trust
Brighton & Hove City Council,http://statistics.data.gov.uk/id/local-authority/00ML,Cultural and Related Serv,BVACUL,Culture and Heritage,CHG,Direct Employees,A,Salaries,MB,23/09/2016,PAY00897904,MENH,Mental Health Support,-309.00,Revenue,Brighton Housing Trust
Brighton & Hove City Council,http://statistics.data.gov.uk/id/local-authority/00ML,Cultural and Related Serv,BVACUL,Open Spaces,PEN,Direct Employees,A,Salaries,FH,23/09/2016,PAY00897904,MENH,Mental Health Support,15712.71,Revenue,Brighton Housing Trust
Brighton & Hove City Council,http://statistics.data.gov.uk/id/local-authority/00ML,Environment & Regulatory Serv,BVAERS,Cem Crem and Mortuary Services,CCM,Direct Employees,A,Salaries,EK,14/09/2016,PAY00895049,CMNY,Communities and Equalities,2600.00,Revenue,Brighton Malayalee Association
Brighton & Hove City Council,http://statistics.data.gov.uk/id/local-authority/00ML,Environment & Regulatory Serv,BVAERS,Management Services (DEC),MGT,Direct Employees,A,Salaries,EK,02/09/2016,PAY00892314,CMNY,Communities and Equalities,6250.00,Revenue,Brighton Oasis Project
Brighton & Hove City Council,http://statistics.data.gov.uk/id/local-authority/00ML,Environment & Regulatory Serv,BVAERS,Street Cleansing,CLE,Direct Employees,A,Salaries,CA,07/09/2016,PAY00893104,OEDS,Other Education Support,1290.00,Revenue,Brighton Paper Round Ltd
Brighton & Hove City Council,http://statistics.data.gov.uk/id/local-authority/00ML,Environment & Regulatory Serv,BVAERS,Waste Management,WMT,Direct Employees,A,Salaries,GD,28/09/2016,PAY00899271,FAMP,Families\Prevention,270.00,Revenue,Brighton Parent Infant Psychological Therapy
Brighton & Hove City Council,http://statistics.data.gov.uk/id/local-authority/00ML,Highways and Transportation,BVAHRT,Highways and Roads - Mntnce,HRM,Direct Employees,A,Salaries,EK,02/09/2016,PAY00892299,CMNY,Communities and Equalities,1250.00,Revenue,Brighton Peace & Environment Centre
Brighton & Hove City Council,http://statistics.data.gov.uk/id/local-authority/00ML,Highways and Transportation,BVAHRT,Parking Services,PRK,Direct Employees,A,Salaries,EB,07/09/2016,PAY00892979,HIII,Income Involvement Improvement,278.50,Revenue,Brighton Quaker Meeting
Brighton & Hove City Council,http://statistics.data.gov.uk/id/local-authority/00ML,Highways and Transportation,BVAHRT,Public Transport,PTR,Direct Employees,A,Salaries,EK,07/09/2016,PAY00893238,EYRS,Early Years,14308.88,Revenue,Brighton Steiner School Ltd
Brighton & Hove City Council,http://statistics.data.gov.uk/id/local-authority/00ML,Highways and Transportation,BVAHRT,Transport Plan Policy Strategy,TPP,Direct Employees,A,Salaries,EM,28/09/2016,PAY00898730,SPLE,Sport and Leisure,300.00,Revenue,Brighton Swimming Club
Brighton & Hove City Council,http://statistics.data.gov.uk/id/local-authority/00ML,Housing General Fund,BVAHOG,Homelessness,HML,Direct Employees,A,Salaries,EA,14/09/2016,PAY00894783,COMU,Communications,295.20,Revenue,Brighton Tools & Fixings Ltd
Brighton & Hove City Council,http://statistics.data.gov.uk/id/local-authority/00ML,Housing General Fund,BVAHOG,Homelessness,HML,Direct Employees,A,Salaries,CA,14/09/2016,PAY00894783,VENU,Venues,111.87,Revenue,Brighton Tools & Fixings Ltd
Brighton & Hove City Council,http://statistics.data.gov.uk/id/local-authority/00ML,Housing General Fund,BVAHOG,Homelessness,HML,Direct Employees,A,Salaries,EA,14/09/2016,PAY00894783,CICL,City Clean,53.93,Revenue,Brighton Tools & Fixings Ltd
Brighton & Hove City Council,http://statistics.data.gov.uk/id/local-authority/00ML,Housing General Fund,BVAHOG,Hsing Benefits,HGB,Direct Employees,A,Salaries,CA,28/09/2016,PAY00898881,VENU,Venues,323.87,Revenue,Brighton Tools & Fixings Ltd
Brighton & Hove City Council,http://statistics.data.gov.uk/id/local-authority/00ML,Housing Revenue Account,BVAHOU,Hsing Management - HRA,HGM,Direct Employees,A,Salaries,EK,09/09/2016,PAY00893833,CMNY,Communities and Equalities,20500.00,Revenue,Brighton Unemployed Ctr Families Project Playroom
Brighton & Hove City Council,http://statistics.data.gov.uk/id/local-authority/00ML,Housing Revenue Account,BVAHOU,Hsing Management - HRA,HGM,Direct Employees,A,Salaries,MB,07/09/2016,PAY00893390,LDIS,Learning Disabilities,-320.00,Revenue,Brighton Vision
Brighton & Hove City Council,http://statistics.data.gov.uk/id/local-authority/00ML,Housing Revenue Account,BVAHOU,Hsing Management - HRA,HGM,Direct Employees,A,Salaries,FH,07/09/2016,PAY00893390,LDIS,Learning Disabilities,4814.60,Revenue,Brighton Vision
Brighton & Hove City Council,http://statistics.data.gov.uk/id/local-authority/00ML,Planning and Development,BVAPLA,Building Control,BLD,Direct Employees,A,Salaries,FH,07/09/2016,PAY00893317,CSTP,Comm Safety Team & Partnership,19517.24,Revenue,Brighton Voices in Exile
Brighton & Hove City Council,http://statistics.data.gov.uk/id/local-authority/00ML,Planning and Development,BVAPLA,Economic Development,ECD,Direct Employees,A,Salaries,EM,07/09/2016,PAY00893303,TOMA,Tourism and Marketing,280.00,Revenue,Brighton Walks
Brighton & Hove City Council,http://statistics.data.gov.uk/id/local-authority/00ML,Planning and Development,BVAPLA,Planning Policy,PLP,Direct Employees,A,Salaries,EK,02/09/2016,PAY00892351,CMNY,Communities and Equalities,3000.00,Revenue,Brighton Women`s Centre
Brighton & Hove City Council,http://statistics.data.gov.uk/id/local-authority/00ML,Public Health,BVAPHE,Public Health,PHE,Direct Employees,A,Salaries,EK,07/09/2016,PAY00893086,EYRS,Early Years,384.52,Revenue,Brighton Women`s Centre
Brighton & Hove City Council,http://statistics.data.gov.uk/id/local-authority/00ML,Children`s & Education Serv,BVAEDU,Child Srvcs Direct Pymts,FFD,Third Party Payments,F,Other Establishments,EK,09/09/2016,PAY00893828,EYRS,Early Years,811.13,Revenue,Brighton Women`s Centre
Brighton & Hove City Council,http://statistics.data.gov.uk/id/local-authority/00ML,Adult Social Care,BVASOC,ASC Mental Health Support,MHP,Third Party Payments,F,Other Establishments,GF,07/09/2016,PAY00893307,CONT,Contracts,48461.83,Revenue,Brighton YMCA
Brighton & Hove City Council,http://statistics.data.gov.uk/id/local-authority/00ML,Children`s & Education Serv,BVAEDU,Ed EY PVI,ENP,Supplies and Services,E,Grants n Subscriptions,EK,09/09/2016,PAY00893830,CMNY,Communities and Equalities,2500.00,Revenue,Brighton Youth Centre
Brighton & Hove City Council,http://statistics.data.gov.uk/id/local-authority/00ML,Adult Social Care,BVASOC,ASC Physical Support,PHY,Customer n Client Receipts,M,Fees n Charges,CC,21/09/2016,PAY00897082,PHCM,PH Commissioning,750.00,Revenue,Brighton Youth Centre
Brighton & Hove City Council,http://statistics.data.gov.uk/id/local-authority/00ML,Children`s & Education Serv,BVAEDU,Child Srvcs Leaving Care,FAL,Transfer Payments,G,Other Transfer Payments,EK,02/09/2016,PAY00892311,CMNY,Communities and Equalities,2000.00,Revenue,"Brighton, Hove & District Early Childhood Project"
Brighton & Hove City Council,http://statistics.data.gov.uk/id/local-authority/00ML,Children`s & Education Serv,BVAEDU,Child Srvcs - Othr LAC Svcs,FLX,Transfer Payments,G,Other Transfer Payments,EK,07/09/2016,PAY00893394,EYRS,Early Years,14228.89,Revenue,Brightsaurus Nursery
Brighton & Hove City Council,http://statistics.data.gov.uk/id/local-authority/00ML,Children`s & Education Serv,BVAEDU,Ed EY Central,EAE,Supplies and Services,E,Equip't Furniture n Materials,EK,09/09/2016,PAY00894320,EYRS,Early Years,4492.09,Revenue,Brightsaurus Nursery
Brighton & Hove City Council,http://statistics.data.gov.uk/id/local-authority/00ML,Children`s & Education Serv,BVAEDU,Ed EY PVI,ENP,Supplies and Services,E,Grants n Subscriptions,EA,09/09/2016,PAY00894109,PROP,Property and Design,375.60,Revenue,Bristol Card Solutions 
Brighton & Hove City Council,http://statistics.data.gov.uk/id/local-authority/00ML,Library Services,BVACUL,Library Service,LBR,Supplies and Services,E,Communications n Computing,EA,14/09/2016,PAY00895147,PUPO,Public Protection,246.77,Revenue,British Geological Survey
Brighton & Hove City Council,http://statistics.data.gov.uk/id/local-authority/00ML,Library Services,BVACUL,Library Service,LBR,Supplies and Services,E,Miscellaneous Expenses,EH,16/09/2016,PAY00895778,HIGH,Highways,1262.32,Revenue,British Telecommunications Plc
Brighton & Hove City Council,http://statistics.data.gov.uk/id/local-authority/00ML,Children`s & Education Serv,BVAEDU,Ed EY PVI,ENP,Supplies and Services,E,Grants n Subscriptions,PBL5,21/09/2016,PAY00897083,OEDS,Other Education Support,37833.95,Capital,BSW Building Services Ltd
Brighton & Hove City Council,http://statistics.data.gov.uk/id/local-authority/00ML,Cultural and Related Serv,BVACUL,Culture and Heritage,CHG,Supplies and Services,E,Equip't Furniture n Materials,DA,28/09/2016,PAY00898768,CICL,City Clean,697.16,Revenue,BTR Brakes (Sussex) Ltd
Brighton & Hove City Council,http://statistics.data.gov.uk/id/local-authority/00ML,Housing General Fund,BVAHOG,Homelessness,HML,Premises Related,C,Rents Payable,EG,28/09/2016,PAY00899064,LIBS,Libraries,274.02,Revenue,Bug Art Ltd
Brighton & Hove City Council,http://statistics.data.gov.uk/id/local-authority/00ML,Children`s & Education Serv,BVAEDU,Ed EY PVI,ENP,Supplies and Services,E,Grants n Subscriptions,MB,02/09/2016,PAY00892464,COGN,Memory Cognition Support,1725.68,Revenue,BUPA Care Services
Brighton & Hove City Council,http://statistics.data.gov.uk/id/local-authority/00ML,Adult Social Care,BVASOC,ASC Memory Cognition Support,MEM,Customer n Client Receipts,M,Fees n Charges,FH,02/09/2016,PAY00892464,COGN,Memory Cognition Support,-2700.00,Revenue,BUPA Care Services
Brighton & Hove City Council,http://statistics.data.gov.uk/id/local-authority/00ML,Adult Social Care,BVASOC,ASC Memory Cognition Support,MEM,Third Party Payments,F,Other Establishments,MB,02/09/2016,PAY00892464,PHYS,Physical Support,-7180.57,Revenue,BUPA Care Services
Brighton & Hove City Council,http://statistics.data.gov.uk/id/local-authority/00ML,Adult Social Care,BVASOC,ASC Mental Health Support,MHP,Third Party Payments,F,Other Establishments,FH,02/09/2016,PAY00892464,PHYS,Physical Support,9541.58,Revenue,BUPA Care Services
Brighton & Hove City Council,http://statistics.data.gov.uk/id/local-authority/00ML,Adult Social Care,BVASOC,ASC Physical Support,PHY,Customer n Client Receipts,M,Fees n Charges,MB,07/09/2016,PAY00893138,PHYS,Physical Support,-5298.29,Revenue,BUPA Care Services
Brighton & Hove City Council,http://statistics.data.gov.uk/id/local-authority/00ML,Adult Social Care,BVASOC,ASC Physical Support,PHY,Third Party Payments,F,Other Establishments,FH,07/09/2016,PAY00893138,PHYS,Physical Support,6981.70,Revenue,BUPA Care Services
Brighton & Hove City Council,http://statistics.data.gov.uk/id/local-authority/00ML,Adult Social Care,BVASOC,ASC Sensory Support,AHV,Third Party Payments,F,Other Establishments,MB,14/09/2016,PAY00894845,PHYS,Physical Support,-4263.08,Revenue,BUPA Care Services
Brighton & Hove City Council,http://statistics.data.gov.uk/id/local-authority/00ML,Adult Social Care,BVASOC,ASC Substance Misuse,ADM,Customer n Client Receipts,M,Fees n Charges,FH,14/09/2016,PAY00894845,PHYS,Physical Support,8621.22,Revenue,BUPA Care Services
Brighton & Hove City Council,http://statistics.data.gov.uk/id/local-authority/00ML,Adult Social Care,BVASOC,ASC Substance Misuse,ADM,Third Party Payments,F,Other Establishments,FH,14/09/2016,PAY00894845,FINS,Financial Services,13239.70,Revenue,BUPA Care Services
Brighton & Hove City Council,http://statistics.data.gov.uk/id/local-authority/00ML,Adult Social Care,BVASOC,ASC Mental Health Support,MHP,Third Party Payments,F,Other Establishments,MB,21/09/2016,PAY00897139,PHYS,Physical Support,-297.72,Revenue,BUPA Care Services
Brighton & Hove City Council,http://statistics.data.gov.uk/id/local-authority/00ML,Central Services to the Public,BVACEN,Elections,ELE,Premises Related,C,Rents Payable,FH,21/09/2016,PAY00897139,PHYS,Physical Support,4521.34,Revenue,BUPA Care Services
Brighton & Hove City Council,http://statistics.data.gov.uk/id/local-authority/00ML,Central Services to the Public,BVACEN,Elections,ELE,Supplies and Services,E,Catering,MB,23/09/2016,PAY00898090,COGN,Memory Cognition Support,-7043.36,Revenue,BUPA Care Services
Brighton & Hove City Council,http://statistics.data.gov.uk/id/local-authority/00ML,Environment & Regulatory Serv,BVAERS,Cem Crem and Mortuary Services,CCM,Supplies and Services,E,Clothing Uniforms n Laundry,FH,23/09/2016,PAY00898090,COGN,Memory Cognition Support,11948.68,Revenue,BUPA Care Services
Brighton & Hove City Council,http://statistics.data.gov.uk/id/local-authority/00ML,Environment & Regulatory Serv,BVAERS,Cem Crem and Mortuary Services,CCM,Supplies and Services,E,Equip't Furniture n Materials,MB,23/09/2016,PAY00898090,PHYS,Physical Support,-15024.24,Revenue,BUPA Care Services
Brighton & Hove City Council,http://statistics.data.gov.uk/id/local-authority/00ML,Environment & Regulatory Serv,BVAERS,Cem Crem and Mortuary Services,CCM,Transport Related,D,Other Transport Costs,FH,23/09/2016,PAY00898090,PHYS,Physical Support,39105.96,Revenue,BUPA Care Services
Brighton & Hove City Council,http://statistics.data.gov.uk/id/local-authority/00ML,Environment & Regulatory Serv,BVAERS,Cem Crem and Mortuary Services,CCM,Transport Related,D,Public Transport,FH,30/09/2016,PAY00899764,PHYS,Physical Support,1150.50,Revenue,BUPA Care Services
Brighton & Hove City Council,http://statistics.data.gov.uk/id/local-authority/00ML,Environment & Regulatory Serv,BVAERS,Court Services,CRT,Supplies and Services,E,Expenses,DA,28/09/2016,PAY00899221,CICL,City Clean,1120.00,Revenue,Burden Bros Agri Ltd
Brighton & Hove City Council,http://statistics.data.gov.uk/id/local-authority/00ML,Environment & Regulatory Serv,BVAERS,Court Services,CRT,Supplies and Services,E,Print Stat & Gen Office Exps,MB,07/09/2016,PAY00893476,PHYS,Physical Support,-550.52,Revenue,Burdyke Lodge
Brighton & Hove City Council,http://statistics.data.gov.uk/id/local-authority/00ML,Environment & Regulatory Serv,BVAERS,Court Services,CRT,Transport Related,D,Direct Transport Costs,FH,07/09/2016,PAY00893476,PHYS,Physical Support,1746.36,Revenue,Burdyke Lodge
Brighton & Hove City Council,http://statistics.data.gov.uk/id/local-authority/00ML,Environment & Regulatory Serv,BVAERS,Court Services,CRT,Transport Related,D,Other Transport Costs,EM,07/09/2016,PAY00893548,PHCM,PH Commissioning,565.00,Revenue,Business Merchandise & Marketing Ltd
Brighton & Hove City Council,http://statistics.data.gov.uk/id/local-authority/00ML,Environment & Regulatory Serv,BVAERS,Court Services,CRT,Transport Related,D,Public Transport,EH,30/09/2016,PAY00900014,ICTA,ICT,11866.00,Revenue,Business Web Software Ltd (Trading as Firmstep)
Brighton & Hove City Council,http://statistics.data.gov.uk/id/local-authority/00ML,Housing General Fund,BVAHOG,Homelessness,HML,Premises Related,C,Rents Payable,EK,07/09/2016,PAY00893143,EYRS,Early Years,15225.08,Revenue,Busy Bees Brighton
Brighton & Hove City Council,http://statistics.data.gov.uk/id/local-authority/00ML,Housing General Fund,BVAHOG,Homelessness,HML,Premises Related,C,Rents Payable,EK,09/09/2016,PAY00893977,EYRS,Early Years,3901.13,Revenue,Busy Bees Brighton
Brighton & Hove City Council,http://statistics.data.gov.uk/id/local-authority/00ML,Children`s & Education Serv,BVAEDU,Ed Ed Other LA Attrib Sch,ELA,Transport Related,D,Other Transport Costs,EK,07/09/2016,PAY00893157,EYRS,Early Years,16295.73,Revenue,Busy Bees Hove
Brighton & Hove City Council,http://statistics.data.gov.uk/id/local-authority/00ML,Children`s & Education Serv,BVAEDU,Ed EY PVI,ENP,Supplies and Services,E,Grants n Subscriptions,EK,09/09/2016,PAY00893986,EYRS,Early Years,4055.63,Revenue,Busy Bees Hove
Brighton & Hove City Council,http://statistics.data.gov.uk/id/local-authority/00ML,Adult Social Care,BVASOC,ASC Mental Health Support,MHP,Customer n Client Receipts,M,Fees n Charges,EK,21/09/2016,PAY00897143,EYRS,Early Years,596.50,Revenue,Busy Bees Hove
Brighton & Hove City Council,http://statistics.data.gov.uk/id/local-authority/00ML,Adult Social Care,BVASOC,ASC Mental Health Support,MHP,Third Party Payments,F,Other Establishments,PE2L5,28/09/2016,PAY00899098,ICTA,ICT,950.00,Capital,Bytes Security Partnerships Limited
Brighton & Hove City Council,http://statistics.data.gov.uk/id/local-authority/00ML,Cultural and Related Serv,BVACUL,Culture and Heritage,CHG,Supplies and Services,E,Equip't Furniture n Materials,CA,09/09/2016,PAY00893771,ASSA,Hostel Accommodation,285.00,Revenue,C & C Cleaning Services Ltd
Brighton & Hove City Council,http://statistics.data.gov.uk/id/local-authority/00ML,Children`s & Education Serv,BVAEDU,Ed EY PVI,ENP,Supplies and Services,E,Grants n Subscriptions,CA,09/09/2016,PAY00893835,VENU,Venues,117.24,Revenue,C Brewer & Sons Ltd
Brighton & Hove City Council,http://statistics.data.gov.uk/id/local-authority/00ML,Children`s & Education Serv,BVAEDU,Ed EY PVI,ENP,Supplies and Services,E,Grants n Subscriptions,EA,09/09/2016,PAY00893835,CICL,City Clean,632.57,Revenue,C Brewer & Sons Ltd
Brighton & Hove City Council,http://statistics.data.gov.uk/id/local-authority/00ML,Housing General Fund,BVAHOG,Hsing Welfare,HGW,Transfer Payments,G,Supporting People,CA,23/09/2016,PAY00897906,VENU,Venues,509.79,Revenue,C Brewer & Sons Ltd
Brighton & Hove City Council,http://statistics.data.gov.uk/id/local-authority/00ML,Children`s & Education Serv,BVAEDU,Ed EY PVI,ENP,Supplies and Services,E,Grants n Subscriptions,EA,23/09/2016,PAY00897906,HTEN,Tenancy Services,18.00,Revenue,C Brewer & Sons Ltd
Brighton & Hove City Council,http://statistics.data.gov.uk/id/local-authority/00ML,Children`s & Education Serv,BVAEDU,Child Srvcs Other,FAX,Third Party Payments,F,Other Establishments,EB,07/09/2016,PAY00893095,RCOP,Resource Centres Older People,317.50,Revenue,C H Mears And Sons Ltd
Brighton & Hove City Council,http://statistics.data.gov.uk/id/local-authority/00ML,Children`s & Education Serv,BVAEDU,Child Srvcs - Other Fam Supp,FFX,Transfer Payments,G,Other Transfer Payments,EB,21/09/2016,PAY00897085,RCOP,Resource Centres Older People,405.80,Revenue,C H Mears And Sons Ltd
Brighton & Hove City Council,http://statistics.data.gov.uk/id/local-authority/00ML,Environment & Regulatory Serv,BVAERS,Cem Crem and Mortuary Services,CCM,Supplies and Services,E,Goods for Resale,EB,21/09/2016,PAY00897085,ASSA,Hostel Accommodation,25.85,Revenue,C H Mears And Sons Ltd
Brighton & Hove City Council,http://statistics.data.gov.uk/id/local-authority/00ML,Children`s & Education Serv,BVAEDU,Child Srvcs Direct Pymts,FFD,Third Party Payments,F,Other Establishments,CA,09/09/2016,PAY00894002,HWEN,Highways Engineering,558.48,Revenue,C J Thorne & Co Ltd
Brighton & Hove City Council,http://statistics.data.gov.uk/id/local-authority/00ML,Non I&E,BVANON,Cap - Housing Services - HRA,4HR,New Construction n Conversion,PB,New Construction n Conversion,CA,23/09/2016,PAY00898113,HWEN,Highways Engineering,2759.00,Revenue,C J Thorne & Co Ltd
Brighton & Hove City Council,http://statistics.data.gov.uk/id/local-authority/00ML,Children`s & Education Serv,BVAEDU,Child Srvcs Leaving Care,FAL,Transfer Payments,G,Other Transfer Payments,CA,23/09/2016,PAY00898113,HWEN,Highways Engineering,541.30,Revenue,C J Thorne & Co Ltd
Brighton & Hove City Council,http://statistics.data.gov.uk/id/local-authority/00ML,Children`s & Education Serv,BVAEDU,Ed EY PVI,ENP,Supplies and Services,E,Grants n Subscriptions,PBL5,28/09/2016,PAY00898955,HWEN,Highways Engineering,4549.75,Capital,C J Thorne & Co Ltd
Brighton & Hove City Council,http://statistics.data.gov.uk/id/local-authority/00ML,Central Services to the Public,BVACEN,Reg - Birth Death and Marriage,RBD,Supplies and Services,E,Communications n Computing,PBL5,07/09/2016,PAY00892968,HWEN,Highways Engineering,550.00,Capital,CA Traffic Ltd
Brighton & Hove City Council,http://statistics.data.gov.uk/id/local-authority/00ML,Cultural and Related Serv,BVACUL,Culture and Heritage,CHG,Premises Related,C,Repair Maint n Alterations,EH,14/09/2016,PAY00894861,OEDS,Other Education Support,3176.60,Revenue,CACI Limited
Brighton & Hove City Council,http://statistics.data.gov.uk/id/local-authority/00ML,Non I&E,BVANON,CAP Libs Culture and Hertage,4LH,New Construction n Conversion,PB,New Construction n Conversion,EM,28/09/2016,PAY00898956,EYRS,Early Years,950.00,Revenue,CACI Limited
Brighton & Hove City Council,http://statistics.data.gov.uk/id/local-authority/00ML,Housing General Fund,BVAHOG,Homelessness,HML,Supplies and Services,E,Services,FH,07/09/2016,PAY00893140,LDIS,Learning Disabilities,15384.00,Revenue,Cambian Autism Services Ltd
Brighton & Hove City Council,http://statistics.data.gov.uk/id/local-authority/00ML,Housing General Fund,BVAHOG,Homelessness,HML,Supplies and Services,E,Services,MB,23/09/2016,PAY00897753,PHYS,Physical Support,-522.80,Revenue,Camelot Nursing Home
Brighton & Hove City Council,http://statistics.data.gov.uk/id/local-authority/00ML,Adult Social Care,BVASOC,ASC Memory Cognition Support,MEM,Supplies and Services,E,Catering,FH,23/09/2016,PAY00897753,PHYS,Physical Support,2644.24,Revenue,Camelot Nursing Home
Brighton & Hove City Council,http://statistics.data.gov.uk/id/local-authority/00ML,Adult Social Care,BVASOC,ASC Physical Support,PHY,Supplies and Services,E,Catering,EF,07/09/2016,PAY00893245,YOTS,Youth Service,450.00,Revenue,Can Control Team
Brighton & Hove City Council,http://statistics.data.gov.uk/id/local-authority/00ML,Housing General Fund,BVAHOG,Homelessness,HML,Supplies and Services,E,Catering,EM,07/09/2016,PAY00893483,SPLE,Sport and Leisure,375.00,Revenue,Cap Trac
Brighton & Hove City Council,http://statistics.data.gov.uk/id/local-authority/00ML,Central Services to the Public,BVACEN,Elections,ELE,Transport Related,D,Public Transport,CH,28/09/2016,PAY00898750,OEDS,Other Education Support,75.00,Revenue,Capital Hygiene/Capital Cleaning
Brighton & Hove City Council,http://statistics.data.gov.uk/id/local-authority/00ML,Cultural and Related Serv,BVACUL,Culture and Heritage,CHG,Transport Related,D,Public Transport,CA,28/09/2016,PAY00898750,OEDS,Other Education Support,175.00,Revenue,Capital Hygiene/Capital Cleaning
Brighton & Hove City Council,http://statistics.data.gov.uk/id/local-authority/00ML,Cultural and Related Serv,BVACUL,Tourism,TRM,Transport Related,D,Public Transport,FH,14/09/2016,PAY00894979,AVFM,Agency Placements\VFM,3076.00,Revenue,Capstone Foster Care (South East) Ltd
Brighton & Hove City Council,http://statistics.data.gov.uk/id/local-authority/00ML,Library Services,BVACUL,Library Service,LBR,Transport Related,D,Public Transport,FH,09/09/2016,PAY00894333,CHIC,Children In Care,337.50,Revenue,Care First
Brighton & Hove City Council,http://statistics.data.gov.uk/id/local-authority/00ML,Children`s & Education Serv,BVAEDU,Ed EY PVI,ENP,Supplies and Services,E,Grants n Subscriptions,FH,16/09/2016,PAY00896395,CHIC,Children In Care,375.00,Revenue,Care First
Brighton & Hove City Council,http://statistics.data.gov.uk/id/local-authority/00ML,Children`s & Education Serv,BVAEDU,Ed EY PVI,ENP,Supplies and Services,E,Grants n Subscriptions,EH,07/09/2016,PAY00893243,HOME,Home Care,5405.74,Revenue,Care Monitoring 2000 Ltd
Brighton & Hove City Council,http://statistics.data.gov.uk/id/local-authority/00ML,Public Health,BVAPHE,Public Health,PHE,Third Party Payments,F,Other Establishments,EH,07/09/2016,PAY00893243,CONT,Contracts,8011.03,Revenue,Care Monitoring 2000 Ltd
Brighton & Hove City Council,http://statistics.data.gov.uk/id/local-authority/00ML,Adult Social Care,BVASOC,Social Care Activities,ACM,Third Party Payments,F,Other Establishments,EH,28/09/2016,PAY00899053,HOME,Home Care,5408.44,Revenue,Care Monitoring 2000 Ltd
Brighton & Hove City Council,http://statistics.data.gov.uk/id/local-authority/00ML,Children`s & Education Serv,BVAEDU,Ed Mgmt and Support Services,EMG,Premises Related,C,Rents Payable,EH,28/09/2016,PAY00899053,CONT,Contracts,8302.21,Revenue,Care Monitoring 2000 Ltd
Brighton & Hove City Council,http://statistics.data.gov.uk/id/local-authority/00ML,Planning and Development,BVAPLA,Community Development,CDV,Supplies and Services,E,Grants n Subscriptions,MB,09/09/2016,PAY00894130,COGN,Memory Cognition Support,-830.00,Revenue,Care Outlook
Brighton & Hove City Council,http://statistics.data.gov.uk/id/local-authority/00ML,Adult Social Care,BVASOC,ASC Memory Cognition Support,MEM,Supplies and Services,E,Catering,FH,09/09/2016,PAY00894130,COGN,Memory Cognition Support,2448.47,Revenue,Care Outlook
Brighton & Hove City Council,http://statistics.data.gov.uk/id/local-authority/00ML,Non I&E,BVANON,CAP Libs Culture and Hertage,4LH,New Construction n Conversion,PB,New Construction n Conversion,FH,09/09/2016,PAY00894130,MENH,Mental Health Support,857.80,Revenue,Care Outlook
Brighton & Hove City Council,http://statistics.data.gov.uk/id/local-authority/00ML,Cultural and Related Serv,BVACUL,Culture and Heritage,CHG,Third Party Payments,F,Other Local Authorities,MB,09/09/2016,PAY00894130,PHYS,Physical Support,-2226.00,Revenue,Care Outlook
Brighton & Hove City Council,http://statistics.data.gov.uk/id/local-authority/00ML,Central Support and Overheads,BVACEN,Support Services (SSC),PPT,Supplies and Services,E,Services,FH,09/09/2016,PAY00894130,PHYS,Physical Support,15427.66,Revenue,Care Outlook
Brighton & Hove City Council,http://statistics.data.gov.uk/id/local-authority/00ML,Library Services,BVACUL,Library Service,LBR,Supplies and Services,E,Grants n Subscriptions,FH,09/09/2016,PAY00894130,SORY,Sensory Support,196.56,Revenue,Care Outlook
Brighton & Hove City Council,http://statistics.data.gov.uk/id/local-authority/00ML,Central Support and Overheads,BVACEN,Support Services (SSC),PPT,Supplies and Services,E,Grants n Subscriptions,MB,21/09/2016,PAY00897245,COGN,Memory Cognition Support,-322.00,Revenue,Care Outlook
Brighton & Hove City Council,http://statistics.data.gov.uk/id/local-authority/00ML,Cultural and Related Serv,BVACUL,Highways and Roads - Mntnce,HRM,Premises Related,C,Repair Maint n Alterations,FH,21/09/2016,PAY00897245,COGN,Memory Cognition Support,1172.42,Revenue,Care Outlook
Brighton & Hove City Council,http://statistics.data.gov.uk/id/local-authority/00ML,Children`s & Education Serv,BVAEDU,Ed Ed Other Other,ENF,Premises Related,C,Repair Maint n Alterations,FH,21/09/2016,PAY00897245,MENH,Mental Health Support,377.75,Revenue,Care Outlook
Brighton & Hove City Council,http://statistics.data.gov.uk/id/local-authority/00ML,Highways and Transportation,BVAHRT,Transport Plan Policy Strategy,TPP,Supplies and Services,E,Services,MB,21/09/2016,PAY00897245,PHYS,Physical Support,-1079.00,Revenue,Care Outlook
Brighton & Hove City Council,http://statistics.data.gov.uk/id/local-authority/00ML,Highways and Transportation,BVAHRT,Transport Plan Policy Strategy,TPP,Supplies and Services,E,Services,FH,21/09/2016,PAY00897245,PHYS,Physical Support,7385.81,Revenue,Care Outlook
Brighton & Hove City Council,http://statistics.data.gov.uk/id/local-authority/00ML,Central Support and Overheads,BVACEN,Support Services (SSC),PPT,Supplies and Services,E,Equip't Furniture n Materials,FH,21/09/2016,PAY00897245,SORY,Sensory Support,101.80,Revenue,Care Outlook
Brighton & Hove City Council,http://statistics.data.gov.uk/id/local-authority/00ML,Children`s & Education Serv,BVAEDU,Child Srvcs Leaving Care,FAL,Transfer Payments,G,Other Transfer Payments,FH,09/09/2016,PAY00893722,COGN,Memory Cognition Support,3758.96,Revenue,Care UK Community Partnerships Ltd
Brighton & Hove City Council,http://statistics.data.gov.uk/id/local-authority/00ML,Library Services,BVACUL,Library Service,LBR,Supplies and Services,E,Goods for Resale,FH,23/09/2016,PAY00897799,COGN,Memory Cognition Support,6334.40,Revenue,Care UK Community Partnerships Ltd
Brighton & Hove City Council,http://statistics.data.gov.uk/id/local-authority/00ML,Adult Social Care,BVASOC,S Svcs Other Adult Services,ADT,Indirect Employees,B,Training,MB,23/09/2016,PAY00897824,COGN,Memory Cognition Support,-287.00,Revenue,Care UK Homecare
Brighton & Hove City Council,http://statistics.data.gov.uk/id/local-authority/00ML,Central Support and Overheads,BVACEN,Support Services (SSC),PPT,Indirect Employees,B,Training,FH,23/09/2016,PAY00897824,COGN,Memory Cognition Support,1239.70,Revenue,Care UK Homecare
Brighton & Hove City Council,http://statistics.data.gov.uk/id/local-authority/00ML,Children`s & Education Serv,BVAEDU,Ed EY PVI,ENP,Supplies and Services,E,Grants n Subscriptions,MB,23/09/2016,PAY00897824,MENH,Mental Health Support,-185.00,Revenue,Care UK Homecare
Brighton & Hove City Council,http://statistics.data.gov.uk/id/local-authority/00ML,Housing Revenue Account,BVAHOU,Hsing Management - HRA,HGM,Premises Related,C,Cleaning n Domestic Supps,FH,23/09/2016,PAY00897824,MENH,Mental Health Support,654.92,Revenue,Care UK Homecare
Brighton & Hove City Council,http://statistics.data.gov.uk/id/local-authority/00ML,Adult Social Care,BVASOC,ASC Physical Support,PHY,Supplies and Services,E,Equip't Furniture n Materials,MB,23/09/2016,PAY00897824,PHYS,Physical Support,-4023.00,Revenue,Care UK Homecare
Brighton & Hove City Council,http://statistics.data.gov.uk/id/local-authority/00ML,Children`s & Education Serv,BVAEDU,Ed EY Central,EAE,Premises Related,C,Cleaning n Domestic Supps,FH,23/09/2016,PAY00897824,PHYS,Physical Support,19552.18,Revenue,Care UK Homecare
Brighton & Hove City Council,http://statistics.data.gov.uk/id/local-authority/00ML,Cultural and Related Serv,BVACUL,Culture and Heritage,CHG,Premises Related,C,Cleaning n Domestic Supps,FH,23/09/2016,PAY00897824,SORY,Sensory Support,184.80,Revenue,Care UK Homecare
Brighton & Hove City Council,http://statistics.data.gov.uk/id/local-authority/00ML,Cultural and Related Serv,BVACUL,Open Spaces,PEN,Supplies and Services,E,Equip't Furniture n Materials,MB,30/09/2016,PAY00899569,COGN,Memory Cognition Support,-331.00,Revenue,Care UK Homecare
Brighton & Hove City Council,http://statistics.data.gov.uk/id/local-authority/00ML,Adult Social Care,BVASOC,ASC Learning Disabilities,ALD,Third Party Payments,F,Other Establishments,FH,30/09/2016,PAY00899569,COGN,Memory Cognition Support,1418.73,Revenue,Care UK Homecare
Brighton & Hove City Council,http://statistics.data.gov.uk/id/local-authority/00ML,Adult Social Care,BVASOC,ASC Memory Cognition Support,MEM,Customer n Client Receipts,M,Fees n Charges,MB,30/09/2016,PAY00899569,MENH,Mental Health Support,-265.00,Revenue,Care UK Homecare
Brighton & Hove City Council,http://statistics.data.gov.uk/id/local-authority/00ML,Adult Social Care,BVASOC,ASC Memory Cognition Support,MEM,Third Party Payments,F,Other Establishments,FH,30/09/2016,PAY00899569,MENH,Mental Health Support,1029.71,Revenue,Care UK Homecare
Brighton & Hove City Council,http://statistics.data.gov.uk/id/local-authority/00ML,Adult Social Care,BVASOC,ASC Mental Health Support,MHP,Customer n Client Receipts,M,Fees n Charges,MB,30/09/2016,PAY00899569,PHYS,Physical Support,-4370.43,Revenue,Care UK Homecare
Brighton & Hove City Council,http://statistics.data.gov.uk/id/local-authority/00ML,Adult Social Care,BVASOC,ASC Mental Health Support,MHP,Third Party Payments,F,Other Establishments,FH,30/09/2016,PAY00899569,PHYS,Physical Support,22623.33,Revenue,Care UK Homecare
Brighton & Hove City Council,http://statistics.data.gov.uk/id/local-authority/00ML,Adult Social Care,BVASOC,ASC Physical Support,PHY,Customer n Client Receipts,M,Fees n Charges,FH,30/09/2016,PAY00899569,SORY,Sensory Support,231.00,Revenue,Care UK Homecare
Brighton & Hove City Council,http://statistics.data.gov.uk/id/local-authority/00ML,Adult Social Care,BVASOC,ASC Physical Support,PHY,Third Party Payments,F,Other Establishments,FH,14/09/2016,PAY00894976,LDIS,Learning Disabilities,1477.60,Revenue,Caretech Community Services
Brighton & Hove City Council,http://statistics.data.gov.uk/id/local-authority/00ML,Children`s & Education Serv,BVAEDU,Ed EY PVI,ENP,Supplies and Services,E,Grants n Subscriptions,CA,02/09/2016,PAY00892473,OEDS,Other Education Support,1008.07,Revenue,Catercraft Supplies Ltd
Brighton & Hove City Council,http://statistics.data.gov.uk/id/local-authority/00ML,Children`s & Education Serv,BVAEDU,Ed EY PVI,ENP,Supplies and Services,E,Grants n Subscriptions,CA,07/09/2016,PAY00893166,OEDS,Other Education Support,788.40,Revenue,Catercraft Supplies Ltd
Brighton & Hove City Council,http://statistics.data.gov.uk/id/local-authority/00ML,Children`s & Education Serv,BVAEDU,Ed EY PVI,ENP,Supplies and Services,E,Grants n Subscriptions,EA,14/09/2016,PAY00894863,OEDS,Other Education Support,269.76,Revenue,Catercraft Supplies Ltd
Brighton & Hove City Council,http://statistics.data.gov.uk/id/local-authority/00ML,Children`s & Education Serv,BVAEDU,Ed EY PVI,ENP,Supplies and Services,E,Grants n Subscriptions,CA,14/09/2016,PAY00894863,OEDS,Other Education Support,1440.77,Revenue,Catercraft Supplies Ltd
Brighton & Hove City Council,http://statistics.data.gov.uk/id/local-authority/00ML,Children`s & Education Serv,BVAEDU,Ed EY PVI,ENP,Supplies and Services,E,Grants n Subscriptions,EA,14/09/2016,PAY00894863,OEDS,Other Education Support,311.33,Revenue,Catercraft Supplies Ltd
Brighton & Hove City Council,http://statistics.data.gov.uk/id/local-authority/00ML,Adult Social Care,BVASOC,ASC Memory Cognition Support,MEM,Third Party Payments,F,Other Establishments,PE2L5,14/09/2016,PAY00894863,OEDS,Other Education Support,70107.78,Capital,Catercraft Supplies Ltd
Brighton & Hove City Council,http://statistics.data.gov.uk/id/local-authority/00ML,Adult Social Care,BVASOC,ASC Learning Disabilities,ALD,Customer n Client Receipts,M,Fees n Charges,PBL5,16/09/2016,PAY00895776,OEDS,Other Education Support,880.00,Capital,Catercraft Supplies Ltd
Brighton & Hove City Council,http://statistics.data.gov.uk/id/local-authority/00ML,Adult Social Care,BVASOC,ASC Learning Disabilities,ALD,Third Party Payments,F,Other Establishments,CA,21/09/2016,PAY00897153,PROP,Property and Design,415.63,Revenue,Catercraft Supplies Ltd
Brighton & Hove City Council,http://statistics.data.gov.uk/id/local-authority/00ML,Children`s & Education Serv,BVAEDU,Ed EY PVI,ENP,Supplies and Services,E,Grants n Subscriptions,EA,21/09/2016,PAY00897153,OEDS,Other Education Support,38.00,Revenue,Catercraft Supplies Ltd
Brighton & Hove City Council,http://statistics.data.gov.uk/id/local-authority/00ML,Children`s & Education Serv,BVAEDU,Ed EY PVI,ENP,Supplies and Services,E,Grants n Subscriptions,CA,21/09/2016,PAY00897153,OEDS,Other Education Support,2201.35,Revenue,Catercraft Supplies Ltd
Brighton & Hove City Council,http://statistics.data.gov.uk/id/local-authority/00ML,Adult Social Care,BVASOC,ASC Physical Support,PHY,Customer n Client Receipts,M,Fees n Charges,EA,21/09/2016,PAY00897153,OEDS,Other Education Support,2425.14,Revenue,Catercraft Supplies Ltd
Brighton & Hove City Council,http://statistics.data.gov.uk/id/local-authority/00ML,Adult Social Care,BVASOC,ASC Physical Support,PHY,Third Party Payments,F,Other Establishments,PE2L5,23/09/2016,PAY00898115,OEDS,Other Education Support,17599.00,Capital,Catercraft Supplies Ltd
Brighton & Hove City Council,http://statistics.data.gov.uk/id/local-authority/00ML,Central Support and Overheads,BVACEN,Support Services (SSC),PPT,Third Party Payments,F,Other Establishments,CA,30/09/2016,PAY00899783,PROP,Property and Design,2908.42,Revenue,Catercraft Supplies Ltd
Brighton & Hove City Council,http://statistics.data.gov.uk/id/local-authority/00ML,Children`s & Education Serv,BVAEDU,Ed EY PVI,ENP,Supplies and Services,E,Grants n Subscriptions,EG,28/09/2016,PAY00898787,LIBS,Libraries,216.00,Revenue,Cath Tate Cards Ltd
Brighton & Hove City Council,http://statistics.data.gov.uk/id/local-authority/00ML,Children`s & Education Serv,BVAEDU,Ed EY PVI,ENP,Supplies and Services,E,Grants n Subscriptions,CA,14/09/2016,PAY00894938,PROP,Property and Design,9980.00,Revenue,Cavitytech Systems Ltd
Brighton & Hove City Council,http://statistics.data.gov.uk/id/local-authority/00ML,Children`s & Education Serv,BVAEDU,Ed EY PVI,ENP,Supplies and Services,E,Grants n Subscriptions,CA,16/09/2016,PAY00895941,PROP,Property and Design,820.00,Revenue,Cavitytech Systems Ltd
Brighton & Hove City Council,http://statistics.data.gov.uk/id/local-authority/00ML,Children`s & Education Serv,BVAEDU,Ed EY PVI,ENP,Supplies and Services,E,Grants n Subscriptions,PBL5,28/09/2016,PAY00899032,OEDS,Other Education Support,74135.00,Capital,Cavitytech Systems Ltd
Brighton & Hove City Council,http://statistics.data.gov.uk/id/local-authority/00ML,Adult Social Care,BVASOC,ASC Physical Support,PHY,Customer n Client Receipts,M,Fees n Charges,EK,07/09/2016,PAY00893037,EYRS,Early Years,17042.12,Revenue,Cbabiesafe
Brighton & Hove City Council,http://statistics.data.gov.uk/id/local-authority/00ML,Adult Social Care,BVASOC,ASC Physical Support,PHY,Third Party Payments,F,Other Establishments,EK,09/09/2016,PAY00893788,EYRS,Early Years,7519.00,Revenue,Cbabiesafe
Brighton & Hove City Council,http://statistics.data.gov.uk/id/local-authority/00ML,Children`s & Education Serv,BVAEDU,Ed EY PVI,ENP,Supplies and Services,E,Grants n Subscriptions,EA,28/09/2016,PAY00898731,DISS,Disability Services,741.66,Revenue,CDA Southern Ltd t/a Carters Domestic Appliances
Brighton & Hove City Council,http://statistics.data.gov.uk/id/local-authority/00ML,Children`s & Education Serv,BVAEDU,Ed Special Ed,EKE,Supplies and Services,E,Grants n Subscriptions,PBL5,16/09/2016,PAY00896588,OEDS,Other Education Support,35680.20,Capital,Cedar Green Projects Ltd
Brighton & Hove City Council,http://statistics.data.gov.uk/id/local-authority/00ML,Children`s & Education Serv,BVAEDU,Ed EY PVI,ENP,Supplies and Services,E,Grants n Subscriptions,PBL5,21/09/2016,PAY00897498,OEDS,Other Education Support,24836.75,Capital,Cedar Green Projects Ltd
Brighton & Hove City Council,http://statistics.data.gov.uk/id/local-authority/00ML,Children`s & Education Serv,BVAEDU,Ed EY PVI,ENP,Supplies and Services,E,Grants n Subscriptions,PBL5,28/09/2016,PAY00899292,OEDS,Other Education Support,66008.37,Capital,Cedar Green Projects Ltd
Brighton & Hove City Council,http://statistics.data.gov.uk/id/local-authority/00ML,Adult Social Care,BVASOC,ASC Physical Support,PHY,Customer n Client Receipts,M,Fees n Charges,EM,30/09/2016,PAY00899543,TOMA,Tourism and Marketing,11812.50,Revenue,Centaur Communications Ltd 
Brighton & Hove City Council,http://statistics.data.gov.uk/id/local-authority/00ML,Adult Social Care,BVASOC,ASC Physical Support,PHY,Third Party Payments,F,Other Establishments,FC,09/09/2016,PAY00894322,PHCM,PH Commissioning,996.25,Revenue,Central and North West London NHS Foundation Trust
Brighton & Hove City Council,http://statistics.data.gov.uk/id/local-authority/00ML,Children`s & Education Serv,BVAEDU,Ed EY PVI,ENP,Supplies and Services,E,Grants n Subscriptions,DA,02/09/2016,PAY00892458,CICL,City Clean,320.00,Revenue,Certas Energy UK Ltd t/a Emo Oil
Brighton & Hove City Council,http://statistics.data.gov.uk/id/local-authority/00ML,Adult Social Care,BVASOC,ASC Learning Disabilities,ALD,Third Party Payments,F,Other Establishments,CB,16/09/2016,PAY00895743,PROP,Property and Design,1251.64,Revenue,Certas Energy UK Ltd t/a Emo Oil
Brighton & Hove City Council,http://statistics.data.gov.uk/id/local-authority/00ML,Adult Social Care,BVASOC,ASC Physical Support,PHY,Third Party Payments,F,Other Establishments,DA,21/09/2016,PAY00897116,CICL,City Clean,3376.62,Revenue,Certas Energy UK Ltd t/a Emo Oil
Brighton & Hove City Council,http://statistics.data.gov.uk/id/local-authority/00ML,Children`s & Education Serv,BVAEDU,Ed EY PVI,ENP,Supplies and Services,E,Grants n Subscriptions,CB,23/09/2016,PAY00898028,SCHL,Schools,939.21,Revenue,Certas Energy UK Ltd t/a Emo Oil
Brighton & Hove City Council,http://statistics.data.gov.uk/id/local-authority/00ML,Children`s & Education Serv,BVAEDU,Ed EY PVI,ENP,Supplies and Services,E,Grants n Subscriptions,FL,07/09/2016,PAY00892937,SEN,SEN,34008.99,Revenue,Chailey Heritage Foundation
Brighton & Hove City Council,http://statistics.data.gov.uk/id/local-authority/00ML,Adult Social Care,BVASOC,ASC Memory Cognition Support,MEM,Customer n Client Receipts,M,Fees n Charges,GF,07/09/2016,PAY00893023,CONT,Contracts,2490.00,Revenue,Change Grow Live Limited
Brighton & Hove City Council,http://statistics.data.gov.uk/id/local-authority/00ML,Adult Social Care,BVASOC,ASC Memory Cognition Support,MEM,Third Party Payments,F,Other Establishments,GF,14/09/2016,PAY00894714,CONT,Contracts,4166.67,Revenue,Change Grow Live Limited
Brighton & Hove City Council,http://statistics.data.gov.uk/id/local-authority/00ML,Children`s & Education Serv,BVAEDU,Ed EY PVI,ENP,Supplies and Services,E,Grants n Subscriptions,FH,16/09/2016,PAY00895543,PHCM,PH Commissioning,62380.20,Revenue,Change Grow Live Limited
Brighton & Hove City Council,http://statistics.data.gov.uk/id/local-authority/00ML,Children`s & Education Serv,BVAEDU,Ed EY PVI,ENP,Supplies and Services,E,Grants n Subscriptions,GF,28/09/2016,PAY00898799,CONT,Contracts,2651.00,Revenue,Change Grow Live Limited
Brighton & Hove City Council,http://statistics.data.gov.uk/id/local-authority/00ML,Adult Social Care,BVASOC,Social Care Activities,ACM,Supplies and Services,E,Equip't Furniture n Materials,EK,09/09/2016,PAY00894477,EYRS,Early Years,1622.25,Revenue,Char`s Childminding
Brighton & Hove City Council,http://statistics.data.gov.uk/id/local-authority/00ML,Children`s & Education Serv,BVAEDU,Ed EY PVI,ENP,Supplies and Services,E,Grants n Subscriptions,EF,09/09/2016,PAY00894531,RPMU,Royal Pavilion and Museums,500.00,Revenue,Charles Dickens Museum 
